Workbook

Sheet Suivi Stats Accueil (Séniors A)
A1: ASSOCIATION SPORTIVE DE CERISY GAILLY
A2: SAISON SENIORS 2011-2012
A3: SUIVI STATISTIQUE - SENIORS A & B
B5: Championnats : | F5: 1ère division / 3ème division | M5: Stade : | P5: rue du marais - 80800 Cerisy | Y5: Site internet : | AB5: as-cerisy.footeo.com
B7: Entraîneur : | F7: DUPUTEL David | N7: Adjoint : | R7: DUBOIS Sébastien | Z7: Coach B : | AD7: DEFOSSEZ Martial
F8: duputel.david@gmail.com | R8: sebastien.dubois@aerolia.com | AD8: martial.defossez@wanadoo.fr
F9: Tél : 03.22.96.00.51 / 06.17.16.09.47 | R9: Tél : 03.22.05.83.80 / 06.73.82.67.81 | AD9: Tél : 03.22.76.61.50
J13: L'actualité du week-end
R17: Championnat 1ère division - 11ème journée
R18: Dimanche 15 janvier - 15h
R20: As Cerisy - Sailly Saillisel Us
J38: CLIQUEZ SUR LA CATEGORIE VOULUE

Sheet Suivi Stats Accueil (Séniors B)
A1: ASSOCIATION SPORTIVE DE CERISY GAILLY
A2: SAISON SENIORS 2011-2012
A3: SUIVI STATISTIQUE - SENIORS A & B
B5: Championnats : | F5: 1ère division / 3ème division | M5: Stade : | P5: rue du marais - 80800 Cerisy | Y5: Site internet : | AB5: as-cerisy.footeo.com
B7: Entraîneur : | F7: DUPUTEL David | N7: Adjoint : | R7: DUBOIS Sébastien | Z7: Coach B : | AD7: DEFOSSEZ Martial
F8: duputel.david@gmail.com | R8: sebastien.dubois@aerolia.com | AD8: martial.defossez@wanadoo.fr
F9: Tél : 03.22.96.00.51 / 06.17.16.09.47 | R9: Tél : 03.22.05.83.80 / 06.73.82.67.81 | AD9: Tél : 03.22.76.61.50
J13: L'actualité du week-end
R17: Championnat - Journée 11
R18: Dimanche 15 janvier - 15h
R20: Monchy Ol - Cerisy As 2
J38: CLIQUEZ SUR LA CATEGORIE VOULUE

Sheet Suivi Stats Accueil (U18)
A1: ASSOCIATION SPORTIVE DE CERISY GAILLY
A2: SAISON SENIORS 2011-2012
A3: SUIVI STATISTIQUE - SENIORS A & B
B5: Championnats : | F5: 1ère division / 3ème division | M5: Stade : | P5: rue du marais - 80800 Cerisy | Y5: Site internet : | AB5: as-cerisy.footeo.com
B7: Entraîneur : | F7: DUPUTEL David | N7: Adjoint : | R7: DUBOIS Sébastien | Z7: Coach B : | AD7: DEFOSSEZ Martial
F8: duputel.david@gmail.com | R8: sebastien.dubois@aerolia.com | AD8: martial.defossez@wanadoo.fr
F9: Tél : 03.22.96.00.51 / 06.17.16.09.47 | R9: Tél : 03.22.05.83.80 / 06.73.82.67.81 | AD9: Tél : 03.22.76.61.50
J13: L'actualité du week-end
R17: Championnat 1ère Division - Journée 4
R19: Marchelepot - As Cerisy
J38: CLIQUEZ SUR LA CATEGORIE VOULUE

Sheet Suivi Stats Accueil (U11-1)
A1: ASSOCIATION SPORTIVE DE CERISY GAILLY
A2: SAISON SENIORS 2011-2012
A3: SUIVI STATISTIQUE - SENIORS A & B
B5: Championnats : | F5: 1ère division / 3ème division | M5: Stade : | P5: rue du marais - 80800 Cerisy | Y5: Site internet : | AB5: as-cerisy.footeo.com
B7: Entraîneur : | F7: DUPUTEL David | N7: Adjoint : | R7: DUBOIS Sébastien | Z7: Coach B : | AD7: DEFOSSEZ Martial
F8: duputel.david@gmail.com | R8: sebastien.dubois@aerolia.com | AD8: martial.defossez@wanadoo.fr
F9: Tél : 03.22.96.00.51 / 06.17.16.09.47 | R9: Tél : 03.22.05.83.80 / 06.73.82.67.81 | AD9: Tél : 03.22.76.61.50
J13: L'actualité du week-end
R17: Plateau Péronne - 10h-12h
R19: En salle
J38: CLIQUEZ SUR LA CATEGORIE VOULUE

Sheet Suivi Stats Accueil (U11-2)
A1: ASSOCIATION SPORTIVE DE CERISY GAILLY
A2: SAISON SENIORS 2011-2012
A3: SUIVI STATISTIQUE - SENIORS A & B
B5: Championnats : | F5: 1ère division / 3ème division | M5: Stade : | P5: rue du marais - 80800 Cerisy | Y5: Site internet : | AB5: as-cerisy.footeo.com
B7: Entraîneur : | F7: DUPUTEL David | N7: Adjoint : | R7: DUBOIS Sébastien | Z7: Coach B : | AD7: DEFOSSEZ Martial
F8: duputel.david@gmail.com | R8: sebastien.dubois@aerolia.com | AD8: martial.defossez@wanadoo.fr
F9: Tél : 03.22.96.00.51 / 06.17.16.09.47 | R9: Tél : 03.22.05.83.80 / 06.73.82.67.81 | AD9: Tél : 03.22.76.61.50
J13: L'actualité du week-end
Q17: REPRISE SAMEDI 4 SEPTEMBRE A 10H AU STADE DE CERISY
J38: CLIQUEZ SUR LA CATEGORIE VOULUE

Sheet Suivi Stats Accueil (U9)
A1: ASSOCIATION SPORTIVE DE CERISY GAILLY
A2: SAISON SENIORS 2011-2012
A3: SUIVI STATISTIQUE - SENIORS A & B
B5: Championnats : | F5: 1ère division / 3ème division | M5: Stade : | P5: rue du marais - 80800 Cerisy | Y5: Site internet : | AB5: as-cerisy.footeo.com
B7: Entraîneur : | F7: DUPUTEL David | N7: Adjoint : | R7: DUBOIS Sébastien | Z7: Coach B : | AD7: DEFOSSEZ Martial
F8: duputel.david@gmail.com | R8: sebastien.dubois@aerolia.com | AD8: martial.defossez@wanadoo.fr
F9: Tél : 03.22.96.00.51 / 06.17.16.09.47 | R9: Tél : 03.22.05.83.80 / 06.73.82.67.81 | AD9: Tél : 03.22.76.61.50
J13: L'actualité du week-end
R17: Plateau Péronne
R19: En salle - 15h-17h
J38: CLIQUEZ SUR LA CATEGORIE VOULUE

Sheet Suivi Stats Accueil (U7)
A1: ASSOCIATION SPORTIVE DE CERISY GAILLY
A2: SAISON SENIORS 2011-2012
A3: SUIVI STATISTIQUE - SENIORS A & B
B5: Championnats : | F5: 1ère division / 3ème division | M5: Stade : | P5: rue du marais - 80800 Cerisy | Y5: Site internet : | AB5: as-cerisy.footeo.com
B7: Entraîneur : | F7: DUPUTEL David | N7: Adjoint : | R7: DUBOIS Sébastien | Z7: Coach B : | AD7: DEFOSSEZ Martial
F8: duputel.david@gmail.com | R8: sebastien.dubois@aerolia.com | AD8: martial.defossez@wanadoo.fr
F9: Tél : 03.22.96.00.51 / 06.17.16.09.47 | R9: Tél : 03.22.05.83.80 / 06.73.82.67.81 | AD9: Tél : 03.22.76.61.50
J13: L'actualité du week-end
R17: Plateau
R19: Repos
J38: CLIQUEZ SUR LA CATEGORIE VOULUE

Sheet Résultats A
A1: ASSOCIATION SPORTIVE DE CERISY GAILLY
A2: SAISON SENIORS 2011-2012
A3: SUIVI STATISTIQUE - SENIORS A
B5: Championnats : | F5: 1ère division / 3ème division | M5: Stade : | P5: rue du marais - 80800 Cerisy | Y5: Site internet : | AB5: as-cerisy.footeo.com
B7: Entraîneur : | F7: DUPUTEL David | N7: Adjoint : | R7: DUBOIS Sébastien | Z7: Coach B : | AD7: DEFOSSEZ Martial
F8: duputel.david@gmail.com | R8: sebastien.dubois@aerolia.com | AD8: martial.defossez@wanadoo.fr
F9: Tél : 03.22.96.00.51 / 06.17.16.09.47 | R9: Tél : 03.22.05.83.80 / 06.73.82.67.81 | AD9: Tél : 03.22.76.61.50
O13: =J22 -> Es Pigeonnier Amiens 2 | Q13: =J23 -> As Cerisy | S13: =J24 -> Us Corbie | U13: =J25 -> Us Daours | W13: =J26 -> Esc Longueau 2 | Y13: =J27 -> Sc Moreuil | AA13: =J28 -> Asp Neslois 2 | AC13: =J29 -> Js Querrieu | AE13: =J30 -> Fr Ribemont | AG13: =J31 -> Us Sailly Saillisel | AI13: =J32 -> Es Sains StFuscien | AK13: =J33 -> Fc Saleux
J22: Es Pigeonnier Amiens 2 | S22: 0 | T22: 4 | W22: 0 | X22: 2 | AE22: 3 | AF22: 7 | AG22: 0 | AH22: 3 | AK22: 2 | AL22: 2
J23: As Cerisy | O23: 5 | P23: 0 | S23: 2 | T23: 0 | Y23: 1 | Z23: 1 | AA23: 1 | AB23: 1 | AE23: 4 | AF23: 1 | AK23: 1 | AL23: 4
J24: Us Corbie | U24: 1 | V24: 0 | W24: 3 | X24: 1 | AC24: 2 | AD24: 0 | AI24: 0 | AJ24: 1 | AK24: 1 | AL24: 2
J25: Us Daours | O25: 3 | P25: 1 | Q25: 2 | R25: 3 | Y25: 1 | Z25: 6 | AA25: 0 | AB25: 1 | AC25: 1 | AD25: 1
J26: Esc Longueau 2 | Q26: 0 | R26: 0 | AA26: 0 | AB26: 2 | AC26: 1 | AD26: 2 | AI26: 2 | AJ26: 0 | AK26: 4 | AL26: 2
J27: Sc Moreuil | S27: 2 | T27: 0 | AE27: 9 | AF27: 0 | AG27: 1 | AH27: 1 | AI27: 3 | AJ27: 3
J28: Asp Neslois 2 | O28: 3 | P28: 0 | Y28: 3 | Z28: 0 | AC28: 3 | AD28: 1 | AG28: 3 | AH28: 0
J29: Js Querrieu | O29: 5 | P29: 0 | Q29: 1 | R29: 2 | Y29: 0 | Z29: 3 | AG29: 2 | AH29: 1 | AK29: 3 | AL29: 0
J30: Fr Ribemont | S30: 0 | T30: 5 | U30: 1 | V30: 3 | W30: 0 | X30: 1 | AA30: 1 | AB30: 2 | AI30: 0 | AJ30: 2 | AK30: 3 | AL30: 3
J31: Us Sailly Saillisel | S31: 0 | T31: 0 | U31: 2 | V31: 1 | W31: 2 | X31: 4 | AE31: 2 | AF31: 2 | AI31: 0 | AJ31: 1
J32: Es Sains StFuscien | O32: 10 | P32: 1 | Q32: 0 | R32: 0 | U32: 3 | V32: 4 | AA32: 0 | AB32: 0 | AC32: 1 | AD32: 2
J33: Fc Saleux | U33: 4 | V33: 0 | Y33: 0 | Z33: 4 | AA33: 1 | AB33: 2 | AG33: 1 | AH33: 4

Sheet Clst A
A1: ASSOCIATION SPORTIVE DE CERISY GAILLY
A2: SAISON SENIORS 2011-2012
A3: SUIVI STATISTIQUE - SENIORS A
B5: Championnats : | F5: 1ère division / 3ème division | M5: Stade : | P5: rue du marais - 80800 Cerisy | Y5: Site internet : | AB5: as-cerisy.footeo.com
B7: Entraîneur : | F7: DUPUTEL David | N7: Adjoint : | R7: DUBOIS Sébastien | Z7: Coach B : | AD7: DEFOSSEZ Martial
F8: duputel.david@gmail.com | R8: sebastien.dubois@aerolia.com | AD8: martial.defossez@wanadoo.fr
F9: Tél : 03.22.96.00.51 / 06.17.16.09.47 | R9: Tél : 03.22.05.83.80 / 06.73.82.67.81 | AD9: Tél : 03.22.76.61.50
K13: Saison 2011 - 2012 / 1ère division
L14: CLUB | R14: PTS | S14: J | T14: G | U14: N | V14: P | W14: F | X14: BP | Y14: BC | Z14: DIF. | AA14: CHA | AB14: PEN. | AC14: Ratio BP | AE14: Ratio BC
K15: 1 | L15: Asp Neslois 2 | R15: =((((T15*4)+(U15*2)+(V15*1)))-(AA15+AB15)) -> 36 | S15: =T15+U15+V15+W15 -> 10 | T15: 8 | U15: 2 | V15: 0 | W15: 0 | X15: 20 | Y15: 4 | Z15: =X15-Y15 -> 16 | AC15: =X15/S15 -> 2 | AE15: =Y15/S15 -> 0.4
K16: 2 | L16: As Cerisy | R16: =((((T16*4)+(U16*2)+(V16*1)))-(AA16+AB16)) -> 28 | S16: =T16+U16+V16+W16 -> 10 | T16: 5 | U16: 4 | V16: 1 | W16: 0 | X16: 19 | Y16: 10 | Z16: =X16-Y16 -> 9 | AA16: 1 | AC16: =X16/S16 -> 1.9 | AE16: =Y16/S16 -> 1
K17: 3 | L17: Sc Moreuil | R17: =((((T17*4)+(U17*2)+(V17*1)))-(AA17+AB17)) -> 26 | S17: =T17+U17+V17+W17 -> 9 | T17: 5 | U17: 3 | V17: 1 | W17: 0 | X17: 29 | Y17: 9 | Z17: =X17-Y17 -> 20 | AA17: 1 | AC17: =X17/S17 -> 3.222222222 | AE17: =Y17/S17 -> 1
K18: 4 | L18: Es Sains StFuscien | R18: =((((T18*4)+(U18*2)+(V18*1)))-(AA18+AB18)) -> 25 | S18: =T18+U18+V18+W18 -> 10 | T18: 4 | U18: 3 | V18: 3 | W18: 0 | X18: 21 | Y18: 12 | Z18: =X18-Y18 -> 9 | AC18: =X18/S18 -> 2.1 | AE18: =Y18/S18 -> 1.2
K19: 5 | L19: Us Corbie | R19: =((((T19*4)+(U19*2)+(V19*1)))-(AA19+AB19)) -> 25 | S19: =T19+U19+V19+W19 -> 10 | T19: 5 | U19: 1 | V19: 4 | W19: 0 | X19: 16 | Y19: 8 | Z19: =X19-Y19 -> 8 | AA19: 1 | AC19: =X19/S19 -> 1.6 | AE19: =Y19/S19 -> 0.8
K20: 6 | L20: Js Querrieu | R20: =((((T20*4)+(U20*2)+(V20*1)))-(AA20+AB20)) -> 25 | S20: =T20+U20+V20+W20 -> 10 | T20: 5 | U20: 1 | V20: 4 | W20: 0 | X20: 17 | Y20: 14 | Z20: =X20-Y20 -> 3 | AA20: 1 | AC20: =X20/S20 -> 1.7 | AE20: =Y20/S20 -> 1.4
K21: 7 | L21: Esc Longueau 2 | R21: =((((T21*4)+(U21*2)+(V21*1)))-(AA21+AB21)) -> 23 | S21: =T21+U21+V21+W21 -> 9 | T21: 5 | U21: 1 | V21: 3 | W21: 0 | X21: 15 | Y21: 11 | Z21: =X21-Y21 -> 4 | AA21: 2 | AC21: =X21/S21 -> 1.666666667 | AE21: =Y21/S21 -> 1.222222222
K22: 8 | L22: Us Sailly Saillisel | R22: =((((T22*4)+(U22*2)+(V22*1)))-(AA22+AB22)) -> 22 | S22: =T22+U22+V22+W22 -> 10 | T22: 3 | U22: 3 | V22: 4 | W22: 0 | X22: 15 | Y22: 15 | Z22: =X22-Y22 -> 0 | AC22: =X22/S22 -> 1.5 | AE22: =Y22/S22 -> 1.5
K23: 9 | L23: Us Daours | R23: =((((T23*4)+(U23*2)+(V23*1)))-(AA23+AB23)) -> 18 | S23: =T23+U23+V23+W23 -> 10 | T23: 3 | U23: 1 | V23: 6 | W23: 0 | X23: 15 | Y23: 23 | Z23: =X23-Y23 -> -8 | AA23: 2 | AC23: =X23/S23 -> 1.5 | AE23: =Y23/S23 -> 2.3
K24: 10 | L24: Fc Saleux | R24: =((((T24*4)+(U24*2)+(V24*1)))-(AA24+AB24)) -> 13 | S24: =T24+U24+V24+W24 -> 10 | T24: 3 | U24: 2 | V24: 5 | W24: 0 | X24: 19 | Y24: 24 | Z24: =X24-Y24 -> -5 | AA24: 8 | AC24: =X24/S24 -> 1.9 | AE24: =Y24/S24 -> 2.4
K25: 11 | L25: Fr Ribemont | R25: =((((T25*4)+(U25*2)+(V25*1)))-(AA25+AB25)) -> 13 | S25: =T25+U25+V25+W25 -> 10 | T25: 1 | U25: 2 | V25: 7 | W25: 0 | X25: 15 | Y25: 34 | Z25: =X25-Y25 -> -19 | AA25: 2 | AC25: =X25/S25 -> 1.5 | AE25: =Y25/S25 -> 3.4
K26: 12 | L26: Es Pigeonnier Amiens 2 | R26: =((((T26*4)+(U26*2)+(V26*1)))-(AA26+AB26)) -> 7 | S26: =T26+U26+V26+W26 -> 10 | T26: 0 | U26: 1 | V26: 8 | W26: 1 | X26: 7 | Y26: 44 | Z26: =X26-Y26 -> -37 | AA26: 3 | AC26: =X26/S26 -> 0.7 | AE26: =Y26/S26 -> 4.4
X27: =SUM(X15:X26) -> 208 | Y27: =SUM(Y15:Y26) -> 208 | AA27: =SUM(AA15:AA26) -> 21
R28: Maxi | T28: =MAX(T15:T26) -> 8 | U28: =MAX(U15:U26) -> 4 | V28: 8 | W28: 1 | X28: 29 | Y28: 44 | Z28: 20 | AA28: 8 | AB28: 0 | AC28: =MAX(AC15:AD26) -> 3.222222222 | AE28: =MAX(AE15:AF26) -> 4.4
R29: Mini | T29: =MIN(T15:T27) -> 0 | U29: =MIN(U15:U27) -> 1 | V29: 0 | W29: 0 | X29: 7 | Y29: 4 | Z29: -37 | AA29: 1 | AB29: 0 | AC29: =MIN(AC15:AD26) -> 0.7 | AE29: =MIN(AE15:AF26) -> 0.4

Sheet Evolution A
A1: ASSOCIATION SPORTIVE DE CERISY GAILLY
A2: SAISON SENIORS 2011-2012
A3: SUIVI STATISTIQUE - SENIORS A
B5: Championnats : | F5: 1ère division / 3ème division | M5: Stade : | P5: rue du marais - 80800 Cerisy | Y5: Site internet : | AB5: as-cerisy.footeo.com
B7: Entraîneur : | F7: DUPUTEL David | N7: Adjoint : | R7: DUBOIS Sébastien | Z7: Coach B : | AD7: DEFOSSEZ Martial
F8: duputel.david@gmail.com | R8: sebastien.dubois@aerolia.com | AD8: martial.defossez@wanadoo.fr
F9: Tél : 03.22.96.00.51 / 06.17.16.09.47 | R9: Tél : 03.22.05.83.80 / 06.73.82.67.81 | AD9: Tél : 03.22.76.61.50
L13: EVOLUTION CHAMPIONNAT
L14: Saison 2010-2011 | AH14: Joués
L15: Aller | W15: Retour | AH15: ='Clst A'!S16 -> 10
L16: 1 | M16: 2 | N16: 3 | O16: 4 | P16: 5 | Q16: 6 | R16: 7 | S16: 8 | T16: 9 | U16: 10 | V16: 11 | W16: 12 | X16: 13 | Y16: 14 | Z16: 15 | AA16: 16 | AB16: 17 | AC16: 18 | AD16: 19 | AE16: 20 | AF16: 21 | AG16: 22
I17: 2011 - 2012 | L17: 2 | M17: 2 | N17: 4 | O17: 2 | P17: 1 | Q17: 4 | R17: 4 | S17: 4 | T17: 4 | U17: 2 | AH17: =SUM(L17:AG17) -> 29
I18: 2010 - 2011 | L18: 2 | M18: 4 | N18: 4 | O18: 2 | P18: 4 | Q18: 4 | R18: 1 | S18: 4 | T18: 4 | U18: 1 | V18: 1 | W18: 4 | X18: 1 | Y18: 4 | Z18: 4 | AA18: 4 | AB18: 4 | AC18: 2 | AD18: 4 | AE18: 4 | AF18: 4 | AG18: 4 | AH18: 70
I19: 2009 - 2010 | L19: 1 | M19: 4 | N19: 4 | O19: 1 | P19: 1 | Q19: 1 | R19: 1 | S19: 1 | T19: 4 | U19: 2 | V19: 4 | W19: 4 | X19: 4 | Y19: 2 | Z19: 4 | AA19: 2 | AB19: 1 | AC19: 4 | AD19: 4 | AE19: 4 | AF19: 1 | AH19: 54
I20: 2008 - 2009 | L20: 4 | M20: 4 | N20: 1 | O20: 4 | P20: 4 | Q20: 4 | R20: 4 | S20: 1 | T20: 4 | U20: 1 | V20: 4 | W20: 2 | X20: 1 | Y20: 4 | Z20: 1 | AA20: 1 | AB20: 4 | AC20: 4 | AD20: 1 | AE20: 4 | AF20: 4 | AG20: 4 | AH20: 65
I21: 2007 - 2008 | L21: 2 | M21: 1 | N21: 4 | O21: 4 | P21: 4 | Q21: 4 | R21: 1 | S21: 4 | T21: 4 | U21: 2 | V21: 4 | W21: 4 | X21: 2 | Y21: 2 | Z21: 2 | AA21: 1 | AB21: 4 | AC21: 4 | AD21: 4 | AE21: 4 | AF21: 4 | AG21: 4 | AH21: 69
I22: 2006 - 2007 | L22: 1 | M22: 2 | N22: 4 | O22: 4 | P22: 4 | Q22: 1 | R22: 4 | S22: 4 | T22: 4 | U22: 2 | V22: 4 | W22: 4 | X22: 2 | Y22: 4 | Z22: 2 | AA22: 4 | AB22: 2 | AC22: 2 | AD22: 4 | AE22: 4 | AF22: 4 | AH22: 66
L23: =SUM(L17:L22) -> 12 | M23: 17 | N23: 21 | O23: 17 | P23: 18 | Q23: 18 | R23: 15 | S23: 18 | T23: 24 | U23: 10 | V23: 17 | W23: =SUM(W17:W22) -> 18 | X23: =SUM(X17:X22) -> 10 | Y23: 16 | Z23: 13 | AA23: 12 | AB23: 15 | AC23: 16 | AD23: 17 | AE23: 20 | AF23: 17 | AG23: 12
S24: Bilan aller | V24: =L23+M23+N23+O23+P23+Q23+R23+S23+T23+U23+V23 -> 187 | AD24: Bilan retour | AG24: =W23+X23+Y23+Z23+AA23+AB23+AC23+AD23+AE23+AF23+AG23 -> 166

Sheet Moyenne pts-matches
A1: ASSOCIATION SPORTIVE DE CERISY GAILLY
A2: SAISON SENIORS 2011-2012
A3: SUIVI STATISTIQUE - SENIORS A
B5: Championnats : | F5: 1ère division / 3ème division | M5: Stade : | P5: rue du marais - 80800 Cerisy | Y5: Site internet : | AB5: as-cerisy.footeo.com
B7: Entraîneur : | F7: DUPUTEL David | N7: Adjoint : | R7: DUBOIS Sébastien | Z7: Coach B : | AD7: DEFOSSEZ Martial
F8: duputel.david@gmail.com | R8: sebastien.dubois@aerolia.com | AD8: martial.defossez@wanadoo.fr
F9: Tél : 03.22.96.00.51 / 06.17.16.09.47 | R9: Tél : 03.22.05.83.80 / 06.73.82.67.81 | AD9: Tél : 03.22.76.61.50
N15: MOYENNE PTS/MATCHES HORS CHARTE DE L'ETHIQUE
N16: Matches | P16: Points | R16: Années | V16: Moy | X16: Clst final | AA16: Division jouée
N17: ='Clst A'!S16 -> 10 | P17: ='Evolution A'!AH17 -> 29 | S17: 2011-2012 | V17: =P17/N17 -> 2.9 | AA17: 1ère Div.
N18: 22 | P18: 70 | S18: 2010-2011 | V18: =P18/N18 -> 3.181818182 | X18: 3ème | AA18: 1ère Div.
N19: 18 | P19: 42 | S19: 2009-2010 | V19: =P19/N19 -> 2.333333333 | X19: 5ème | AA19: 1ère Div.
N20: 22 | P20: 64 | S20: 2008-2009 | V20: 2.909090909 | X20: 3ème | AA20: 1ère Div.
N21: 22 | P21: 71 | S21: 2007-2008 | V21: 3.227272727 | X21: 3ème | AA21: 1ère Div.
N22: 18 | P22: 57 | S22: 2006-2007 | V22: 3.166666667 | X22: 1er | AA22: Promo 1ère Div.
N23: 22 | P23: 84 | S23: 2003-2004 | V23: 3.818181818 | X23: 1er | AA23: 3ème Div.
N24: 22 | P24: 55 | S24: 1990-1991 | V24: 2.5 | X24: 2ème | AA24: 2ème Div. | AC24: (victoire à 3pts)
N25: 22 | P25: 59 | S25: 1989-1990 | V25: 2.681818182 | X25: 2ème | AA25: 2ème Div. | AC25: (victoire à 3pts)
N26: 22 | P26: 61 | S26: 1988-1989 | V26: 2.772727273 | X26: 2ème | AA26: 3ème Div. | AC26: (victoire à 3pts)

Sheet Répartition 11-12
A1: ASSOCIATION SPORTIVE DE CERISY GAILLY
A2: SAISON SENIORS 2011-2012
A3: SUIVI STATISTIQUE - SENIORS A
B5: Championnats : | F5: 1ère division / 3ème division | M5: Stade : | P5: rue du marais - 80800 Cerisy | Y5: Site internet : | AB5: as-cerisy.footeo.com
B7: Entraîneur : | F7: DUPUTEL David | N7: Adjoint : | R7: DUBOIS Sébastien | Z7: Coach B : | AD7: DEFOSSEZ Martial
F8: duputel.david@gmail.com | R8: sebastien.dubois@aerolia.com | AD8: martial.defossez@wanadoo.fr
F9: Tél : 03.22.96.00.51 / 06.17.16.09.47 | R9: Tél : 03.22.05.83.80 / 06.73.82.67.81 | AD9: Tél : 03.22.76.61.50
K14: STATISTIQUES GENERALES SAISON 2011-2012 | AC14: Total Matches
K15: Temps | M15: Pour | O15: % | P15: Contre | R15: % | T15: Temps | V15: Pour | X15: % | Y15: Contre | AA15: % | AC15: =AC21+AC27 -> 16
K16: 1 | L16: 15 | M16: =M22+M28 -> 6 | O16: =M16/($M$19+$V$19) -> 0.24 | P16: =P22+P28 -> 4 | R16: =P16/($P$19+$Y$19) -> 0.2222222222 | T16: 45 | U16: 60 | V16: =V22+V28 -> 2 | X16: =V16/($M$19+$V$19) -> 0.08 | Y16: =Y22+Y28 -> 3 | AA16: =Y16/($P$19+$Y$19) -> 0.1666666667
K17: 16 | L17: 30 | M17: =M23+M29 -> 5 | O17: =M17/($M$19+$V$19) -> 0.2 | P17: =P23+P29 -> 1 | R17: =P17/($P$19+$Y$19) -> 0.05555555556 | T17: 61 | U17: 75 | V17: =V23+V29 -> 4 | X17: =V17/($M$19+$V$19) -> 0.16 | Y17: =Y23+Y29 -> 4 | AA17: =Y17/($P$19+$Y$19) -> 0.2222222222
K18: 31 | L18: 45 | M18: =M24+M30 -> 2 | O18: =M18/($M$19+$V$19) -> 0.08 | P18: =P24+P30 -> 3 | R18: =P18/($P$19+$Y$19) -> 0.1666666667 | T18: 76 | U18: 90 | V18: =V24+V30 -> 6 | X18: =V18/($M$19+$V$19) -> 0.24 | Y18: =Y24+Y30 -> 3 | AA18: =Y18/($P$19+$Y$19) -> 0.1666666667
K19: Total | M19: =SUM(M16:N18) -> 13 | P19: =SUM(P16:Q18) -> 8 | T19: Total | V19: =SUM(V16:W18) -> 12 | Y19: =SUM(Y16:Z18) -> 10 | AB19: =M19+V19 -> 25 | AD19: =P19+Y19 -> 18
K20: STATISTIQUES CHAMPIONNAT | AC20: Matches
K21: Temps | M21: Pour | O21: % | P21: Contre | R21: % | T21: Temps | V21: Pour | X21: % | Y21: Contre | AA21: % | AC21: ='Moyenne pts-matches'!N17 -> 10
K22: 1 | L22: 15 | M22: 5 | O22: =M22/($M$25+$V$25) -> 0.2631578947 | P22: 1 | R22: =P22/($P$25+$Y$25) -> 0.1 | T22: 45 | U22: 60 | V22: 2 | X22: =V22/($M$25+$V$25) -> 0.1052631579 | Y22: 2 | AA22: =Y22/($P$25+$Y$25) -> 0.2
K23: 16 | L23: 30 | M23: 3 | O23: =M23/($M$25+$V$25) -> 0.1578947368 | P23: 0 | R23: =P23/($P$25+$Y$25) -> 0 | T23: 61 | U23: 75 | V23: 3 | X23: =V23/($M$25+$V$25) -> 0.1578947368 | Y23: 1 | AA23: =Y23/($P$25+$Y$25) -> 0.1
K24: 31 | L24: 45 | M24: 2 | O24: =M24/($M$25+$V$25) -> 0.1052631579 | P24: 3 | R24: =P24/($P$25+$Y$25) -> 0.3 | T24: 76 | U24: 90 | V24: 4 | X24: =V24/($M$25+$V$25) -> 0.2105263158 | Y24: 3 | AA24: =Y24/($P$25+$Y$25) -> 0.3
K25: Total | M25: =SUM(M22:N24) -> 10 | P25: =SUM(P22:Q24) -> 4 | T25: Total | V25: =SUM(V22:W24) -> 9 | Y25: =SUM(Y22:Z24) -> 6 | AB25: =M25+V25 -> 19 | AD25: =P25+Y25 -> 10
K26: STATISTIQUES COUPE | AC26: Matches
K27: Temps | M27: Pour | O27: % | P27: Contre | R27: % | T27: Temps | V27: Pour | X27: % | Y27: Contre | AA27: % | AC27: 6
K28: 1 | L28: 15 | M28: 1 | O28: =M28/($M$31+$V$31) -> 0.1666666667 | P28: 3 | R28: =P28/($P$31+$Y$31) -> 0.375 | T28: 45 | U28: 60 | V28: 0 | X28: =V28/($M$31+$V$31) -> 0 | Y28: 1 | AA28: =Y28/($P$31+$Y$31) -> 0.125
K29: 16 | L29: 30 | M29: 2 | O29: =M29/($M$31+$V$31) -> 0.3333333333 | P29: 1 | R29: =P29/($P$31+$Y$31) -> 0.125 | T29: 61 | U29: 75 | V29: 1 | X29: =V29/($M$31+$V$31) -> 0.1666666667 | Y29: 3 | AA29: =Y29/($P$31+$Y$31) -> 0.375
K30: 31 | L30: 45 | M30: 0 | O30: =M30/($M$31+$V$31) -> 0 | P30: 0 | R30: =P30/($P$31+$Y$31) -> 0 | T30: 76 | U30: 90 | V30: 2 | X30: =V30/($M$31+$V$31) -> 0.3333333333 | Y30: 0 | AA30: =Y30/($P$31+$Y$31) -> 0
K31: Total | M31: =SUM(M28:N30) -> 3 | P31: =SUM(P28:Q30) -> 4 | T31: Total | V31: =SUM(V28:W30) -> 3 | Y31: =SUM(Y28:Z30) -> 4 | AB31: =M31+V31 -> 6 | AD31: =P31+Y31 -> 8

Sheet Répartition Générale
A1: ASSOCIATION SPORTIVE DE CERISY GAILLY
A2: SAISON SENIORS 2011-2012
A3: SUIVI STATISTIQUE - SENIORS A
B5: Championnats : | F5: 1ère division / 3ème division | M5: Stade : | P5: rue du marais - 80800 Cerisy | Y5: Site internet : | AB5: as-cerisy.footeo.com
B7: Entraîneur : | F7: DUPUTEL David | N7: Adjoint : | R7: DUBOIS Sébastien | Z7: Coach B : | AD7: DEFOSSEZ Martial
F8: duputel.david@gmail.com | R8: sebastien.dubois@aerolia.com | AD8: martial.defossez@wanadoo.fr
F9: Tél : 03.22.96.00.51 / 06.17.16.09.47 | R9: Tél : 03.22.05.83.80 / 06.73.82.67.81 | AD9: Tél : 03.22.76.61.50
K13: CHAMPIONNAT / BUTS POUR | S13: ECART | Z13: CHAMPIONNAT / BUTS CONTRE
I14: SAISONS | L14: 1-15 | M14: 16-30 | N14: 31-45 | O14: 46-60 | P14: 61-75 | Q14: 76-90 | S14: 1-15 | T14: 16-30 | U14: 31-45 | V14: 46-60 | W14: 61-75 | X14: 76-90 | Z14: SAISONS | AC14: 1-15 | AD14: 16-30 | AE14: 31-45 | AF14: 46-60 | AG14: 61-75 | AH14: 76-90
I15: 2006-2007 | L15: 6 | M15: 8 | N15: 7 | O15: 11 | P15: 11 | Q15: 6 | R15: =SUM(L15:Q15) -> 49 | S15: =L15-AC15 -> 5 | T15: =M15-AD15 -> 4 | U15: 5 | V15: 8 | W15: 8 | X15: 4 | Y15: =SUM(S15:X15) -> 34 | Z15: 2006-2007 | AC15: 1 | AD15: 4 | AE15: 2 | AF15: 3 | AG15: 3 | AH15: 2 | AI15: =SUM(AC15:AH15) -> 15
I16: 2007-2008 | L16: 5 | M16: 8 | N16: 8 | O16: 7 | P16: 5 | Q16: 17 | R16: 50 | S16: 3 | T16: 7 | U16: 7 | V16: 3 | W16: 3 | X16: 14 | Y16: 37 | Z16: 2007-2008 | AC16: 2 | AD16: 1 | AE16: 1 | AF16: 4 | AG16: 2 | AH16: 3 | AI16: 13
I17: 2008-2009 | L17: 5 | M17: 7 | N17: 6 | O17: 8 | P17: 7 | Q17: 9 | R17: 42 | S17: 5 | T17: 0 | U17: 0 | V17: 6 | W17: 3 | X17: 9 | Y17: 23 | Z17: 2008-2009 | AC17: 0 | AD17: 7 | AE17: 6 | AF17: 2 | AG17: 4 | AH17: 0 | AI17: 19
I18: 2009-2010 | L18: 3 | M18: 5 | N18: 6 | O18: 6 | P18: 4 | Q18: 8 | R18: 32 | S18: -1 | T18: 2 | U18: 0 | V18: 4 | W18: 1 | X18: 0 | Y18: 6 | Z18: 2009-2010 | AC18: 4 | AD18: 3 | AE18: 6 | AF18: 2 | AG18: 3 | AH18: 8 | AI18: 26
I19: 2010-2011 | L19: 4 | M19: 9 | N19: 4 | O19: 6 | P19: 9 | Q19: 12 | R19: 44 | S19: 1 | T19: 4 | U19: 1 | V19: 3 | W19: 9 | X19: 4 | Y19: 22 | Z19: 2010-2011 | AC19: 3 | AD19: 5 | AE19: 3 | AF19: 3 | AG19: 0 | AH19: 8 | AI19: 22
I20: 2011-2012 | L20: ='Répartition 11-12'!M22 -> 5 | M20: ='Répartition 11-12'!M23 -> 3 | N20: ='Répartition 11-12'!M24 -> 2 | O20: ='Répartition 11-12'!V22 -> 2 | P20: ='Répartition 11-12'!V23 -> 3 | Q20: ='Répartition 11-12'!V24 -> 4 | R20: 19 | S20: 4 | T20: 2 | U20: -1 | V20: 0 | W20: 2 | X20: 1 | Y20: 8 | Z20: 2011-2012 | AC20: ='Répartition 11-12'!P22 -> 1 | AD20: ='Répartition 11-12'!P17 -> 1 | AE20: ='Répartition 11-12'!P18 -> 3 | AF20: ='Répartition 11-12'!Y22 -> 2 | AG20: ='Répartition 11-12'!Y23 -> 1 | AH20: ='Répartition 11-12'!Y24 -> 3 | AI20: 11
L21: =SUM(L15:L20) -> 28 | M21: 40 | N21: 33 | O21: 40 | P21: 39 | Q21: 56 | AC21: =SUM(AC15:AC20) -> 11 | AD21: 21 | AE21: 21 | AF21: 16 | AG21: 13 | AH21: 24
K24: COUPE / BUTS POUR | S24: ECART | Z24: COUPE / BUTS CONTRE
I25: SAISONS | L25: 1-15 | M25: 16-30 | N25: 31-45 | O25: 46-60 | P25: 61-75 | Q25: 76-90 | S25: 1-15 | T25: 16-30 | U25: 31-45 | V25: 46-60 | W25: 61-75 | X25: 76-90 | Z25: SAISONS | AC25: 1-15 | AD25: 16-30 | AE25: 31-45 | AF25: 46-60 | AG25: 61-75 | AH25: 76-90
I26: 2006-2007 | L26: 0 | M26: 6 | N26: 3 | O26: 2 | P26: 5 | Q26: 8 | R26: =SUM(L26:Q26) -> 24 | S26: =L26-AC26 -> -1 | T26: =M26-AD26 -> 4 | U26: 3 | V26: -3 | W26: 4 | X26: 5 | Y26: =SUM(S26:X26) -> 12 | Z26: 2006-2007 | AC26: 1 | AD26: 2 | AE26: 0 | AF26: 5 | AG26: 1 | AH26: 3 | AI26: =SUM(AC26:AH26) -> 12
I27: 2007-2008 | L27: 0 | M27: 2 | N27: 2 | O27: 2 | P27: 3 | Q27: 5 | R27: 14 | S27: 0 | T27: 2 | U27: 1 | V27: 2 | W27: 3 | X27: 0 | Y27: 8 | Z27: 2007-2008 | AC27: 0 | AD27: 0 | AE27: 1 | AF27: 0 | AG27: 0 | AH27: 5 | AI27: 6
I28: 2008-2009 | L28: 7 | M28: 6 | N28: 0 | O28: 3 | P28: 7 | Q28: 5 | R28: 28 | S28: 6 | T28: 3 | U28: -2 | V28: -3 | W28: 6 | X28: 1 | Y28: 11 | Z28: 2008-2009 | AC28: 1 | AD28: 3 | AE28: 2 | AF28: 6 | AG28: 1 | AH28: 4 | AI28: 17
I29: 2009-2010 | L29: 2 | M29: 3 | N29: 0 | O29: 3 | P29: 2 | Q29: 1 | R29: 11 | S29: 0 | T29: 1 | U29: -2 | V29: 0 | W29: 0 | X29: 0 | Y29: -1 | Z29: 2009-2010 | AC29: 2 | AD29: 2 | AE29: 2 | AF29: 3 | AG29: 2 | AH29: 1 | AI29: 12
I30: 2010-2011 | L30: 3 | M30: 2 | N30: 0 | O30: 3 | P30: 2 | Q30: 1 | R30: 11 | S30: 1 | T30: 1 | U30: -1 | V30: 0 | W30: 2 | X30: -1 | Y30: 2 | Z30: 2010-2011 | AC30: 2 | AD30: 1 | AE30: 1 | AF30: 3 | AG30: 0 | AH30: 2 | AI30: 9
I31: 2011-2012 | L31: ='Répartition 11-12'!M28 -> 1 | M31: ='Répartition 11-12'!M29 -> 2 | N31: ='Répartition 11-12'!M30 -> 0 | O31: ='Répartition 11-12'!V28 -> 0 | P31: ='Répartition 11-12'!V29 -> 1 | Q31: ='Répartition 11-12'!V30 -> 2 | R31: 6 | S31: -2 | T31: 1 | U31: 0 | V31: -1 | W31: -2 | X31: 2 | Y31: -2 | Z31: 2011-2012 | AC31: ='Répartition 11-12'!P28 -> 3 | AD31: ='Répartition 11-12'!P29 -> 1 | AE31: ='Répartition 11-12'!P30 -> 0 | AF31: ='Répartition 11-12'!Y28 -> 1 | AG31: ='Répartition 11-12'!Y29 -> 3 | AH31: ='Répartition 11-12'!Y30 -> 0 | AI31: 8
L32: =SUM(L26:L31) -> 13 | M32: 21 | N32: 5 | O32: 13 | P32: 20 | Q32: 22 | AC32: =SUM(AC26:AC31) -> 9 | AD32: 9 | AE32: 6 | AF32: 18 | AG32: 7 | AH32: 15
K35: GENERAL / BUTS POUR | S35: ECART | Z35: GENERAL / BUTS CONTRE
I36: SAISONS | L36: 1-15 | M36: 16-30 | N36: 31-45 | O36: 46-60 | P36: 61-75 | Q36: 76-90 | S36: 1-15 | T36: 16-30 | U36: 31-45 | V36: 46-60 | W36: 61-75 | X36: 76-90 | Z36: SAISONS | AC36: 1-15 | AD36: 16-30 | AE36: 31-45 | AF36: 46-60 | AG36: 61-75 | AH36: 76-90
I37: 2006-2007 | L37: =L15+L26 -> 6 | M37: 14 | N37: 10 | O37: 13 | P37: 16 | Q37: 14 | R37: =SUM(L37:Q37) -> 73 | S37: =L37-AC37 -> 4 | T37: =M37-AD37 -> 8 | U37: 8 | V37: 5 | W37: 12 | X37: 9 | Y37: =SUM(S37:X37) -> 46 | Z37: 2006-2007 | AC37: =AC15+AC26 -> 2 | AD37: 6 | AE37: 2 | AF37: 8 | AG37: 4 | AH37: 5 | AI37: =SUM(AC37:AH37) -> 27
I38: 2007-2008 | L38: 5 | M38: 10 | N38: 10 | O38: 9 | P38: 8 | Q38: 22 | R38: 64 | S38: 3 | T38: 9 | U38: 8 | V38: 5 | W38: 6 | X38: 14 | Y38: 45 | Z38: 2007-2008 | AC38: 2 | AD38: 1 | AE38: 2 | AF38: 4 | AG38: 2 | AH38: 8 | AI38: 19
I39: 2008-2009 | L39: 12 | M39: 13 | N39: 6 | O39: 11 | P39: 14 | Q39: 14 | R39: 70 | S39: 11 | T39: 3 | U39: -2 | V39: 3 | W39: 9 | X39: 10 | Y39: 34 | Z39: 2008-2009 | AC39: 1 | AD39: 10 | AE39: 8 | AF39: 8 | AG39: 5 | AH39: 4 | AI39: 36
I40: 2009-2010 | L40: 5 | M40: 8 | N40: 6 | O40: 9 | P40: 6 | Q40: 9 | R40: 43 | S40: -1 | T40: 3 | U40: -2 | V40: 4 | W40: 1 | X40: 0 | Y40: 5 | Z40: 2009-2010 | AC40: 6 | AD40: 5 | AE40: 8 | AF40: 5 | AG40: 5 | AH40: 9 | AI40: 38
I41: 2010-2011 | L41: 7 | M41: 11 | N41: 4 | O41: 9 | P41: 11 | Q41: 13 | R41: 55 | S41: 2 | T41: 5 | U41: 0 | V41: 3 | W41: 11 | X41: 3 | Y41: 24 | Z41: 2010-2011 | AC41: 5 | AD41: 6 | AE41: 4 | AF41: 6 | AG41: 0 | AH41: 10 | AI41: 31
I42: 2011-2012 | L42: 6 | M42: 5 | N42: 2 | O42: 2 | P42: 4 | Q42: 6 | R42: 25 | S42: 2 | T42: 3 | U42: -1 | V42: -1 | W42: 0 | X42: 3 | Y42: 6 | Z42: 2011-2012 | AC42: 4 | AD42: 2 | AE42: 3 | AF42: 3 | AG42: 4 | AH42: 3 | AI42: 19
L43: =SUM(L37:L42) -> 41 | M43: 61 | N43: 38 | O43: 53 | P43: 59 | Q43: 78 | AC43: =SUM(AC37:AC42) -> 20 | AD43: 30 | AE43: 27 | AF43: 34 | AG43: 20 | AH43: 39

Sheet Moyenne par matche
A1: ASSOCIATION SPORTIVE DE CERISY GAILLY
A2: SAISON SENIORS 2011-2012
A3: SUIVI STATISTIQUE - SENIORS A
B5: Championnats : | F5: 1ère division / 3ème division | M5: Stade : | P5: rue du marais - 80800 Cerisy | Y5: Site internet : | AB5: as-cerisy.footeo.com
B7: Entraîneur : | F7: DUPUTEL David | N7: Adjoint : | R7: DUBOIS Sébastien | Z7: Coach B : | AD7: DEFOSSEZ Martial
F8: duputel.david@gmail.com | R8: sebastien.dubois@aerolia.com | AD8: martial.defossez@wanadoo.fr
F9: Tél : 03.22.96.00.51 / 06.17.16.09.47 | R9: Tél : 03.22.05.83.80 / 06.73.82.67.81 | AD9: Tél : 03.22.76.61.50
N14: CHAMPIONNAT | T14: COUPES | Z14: GENERAL
P15: POUR | R15: CONTRE | V15: POUR | X15: CONTRE | AB15: POUR | AD15: CONTRE
K16: SAISONS | N16: MATCHES | P16: BUTS | Q16: MOY | R16: BUTS | S16: MOY | T16: MATCHES | V16: BUTS | W16: MOY | X16: BUTS | Y16: MOY | Z16: MATCHES | AB16: BUTS | AC16: MOY | AD16: BUTS | AE16: MOY
K17: 2006-2007 | N17: 21 | P17: 49 | Q17: =P17/N17 -> 2.333333333 | R17: 15 | S17: =R17/N17 -> 0.7142857143 | T17: 10 | V17: 24 | W17: =V17/T17 -> 2.4 | X17: 12 | Y17: =X17/T17 -> 1.2 | Z17: =N17+T17 -> 31 | AB17: =P17+V17 -> 73 | AC17: =AB17/Z17 -> 2.35483871 | AD17: =R17+X17 -> 27 | AE17: =AD17/Z17 -> 0.8709677419
K18: 2007-2008 | N18: 22 | P18: 50 | Q18: 2.272727273 | R18: 13 | S18: 0.5909090909 | T18: 5 | V18: 14 | W18: 2.8 | X18: 6 | Y18: 1.2 | Z18: 27 | AB18: 64 | AC18: 2.37037037 | AD18: 19 | AE18: 0.7037037037
K19: 2008-2009 | N19: 22 | P19: 42 | Q19: 1.909090909 | R19: 19 | S19: 0.8636363636 | T19: 11 | V19: 28 | W19: 2.545454545 | X19: 17 | Y19: 1.545454545 | Z19: 33 | AB19: 70 | AC19: 2.121212121 | AD19: 36 | AE19: 1.090909091
K20: 2009-2010 | N20: 20 | P20: 32 | Q20: 1.6 | R20: 26 | S20: 1.3 | T20: 7 | V20: 11 | W20: 1.571428571 | X20: 12 | Y20: 1.714285714 | Z20: 27 | AB20: 43 | AC20: 1.592592593 | AD20: 38 | AE20: 1.407407407
K21: 2010-2011 | N21: 22 | P21: 44 | Q21: 2 | R21: 22 | S21: 1 | T21: 10 | V21: 23 | W21: 2.3 | X21: 9 | Y21: 0.9 | Z21: 32 | AB21: 67 | AC21: 2.09375 | AD21: 31 | AE21: 0.96875
K22: 2011-2012 | N22: ='Clst A'!S16 -> 10 | P22: ='Répartition Générale'!R20 -> 19 | Q22: 1.9 | R22: ='Répartition Générale'!AI20 -> 11 | S22: 1.1 | T22: ='Répartition 11-12'!AC27 -> 6 | V22: ='Répartition Générale'!R31 -> 6 | W22: 1 | X22: ='Répartition Générale'!AI31 -> 8 | Y22: 1.333333333 | Z22: 16 | AB22: 25 | AC22: 1.5625 | AD22: 19 | AE22: 1.1875
N23: =SUM(N17:O22) -> 117 | P23: =SUM(P17:P22) -> 236 | Q23: 2.017094017 | R23: =SUM(R17:R22) -> 106 | S23: 0.905982906 | T23: =SUM(T17:U22) -> 49 | V23: =SUM(V17:V22) -> 106 | W23: 2.163265306 | X23: =SUM(X17:X22) -> 64 | Y23: 1.306122449 | Z23: =SUM(Z17:AA22) -> 166 | AB23: =SUM(AB17:AB22) -> 342 | AC23: 2.060240964 | AD23: =SUM(AD17:AD22) -> 170 | AE23: 1.024096386

Sheet Joueurs A
A1: ASSOCIATION SPORTIVE DE CERISY GAILLY
A2: SAISON SENIORS 2011-2012
A3: SUIVI STATISTIQUE - SENIORS A
B5: Championnats : | F5: 1ère division / 3ème division | M5: Stade : | P5: rue du marais - 80800 Cerisy | Y5: Site internet : | AB5: as-cerisy.footeo.com
B7: Entraîneur : | F7: DUPUTEL David | N7: Adjoint : | R7: DUBOIS Sébastien | Z7: Coach B : | AD7: DEFOSSEZ Martial
F8: duputel.david@gmail.com | R8: sebastien.dubois@aerolia.com | AD8: martial.defossez@wanadoo.fr
F9: Tél : 03.22.96.00.51 / 06.17.16.09.47 | R9: Tél : 03.22.05.83.80 / 06.73.82.67.81 | AD9: Tél : 03.22.76.61.50
M13: Général | W13: Saison 2008-2009 | AE13: Saison 2009-2010 | AM13: Saison 2010-2011 | AU13: Saison 2011-2012
I14: Joueurs Utilisés | N14: Titulaire | O14: Joués | P14: Titulaire | Q14: Remplaçant | R14: Buts | S14: Passes | T14: Jaunes | U14: Rouges | W14: Joués | X14: Titulaire | Y14: Remplaçant | Z14: Buts | AA14: Passes | AB14: Jaunes | AC14: Rouges | AE14: Joués | AF14: Titulaire | AG14: Remplaçant | AH14: Buts | AI14: Passes | AJ14: Jaunes | AK14: Rouges | AM14: Joués | AN14: Titulaire | AO14: Remplaçant | AP14: Buts | AQ14: Passes | AR14: Jaunes | AS14: Rouges | AU14: Joués | AV14: Titulaire | AW14: Remplaçant | AX14: Buts | AY14: Passes | AZ14: Jaunes | BA14: Rouges
I15: de Bruyne Thierry | M15: 1 | N15: =P15/O15 -> 0.9662921348 | O15: =W15+AE15+AM15+AU15 -> 89 | P15: =X15+AF15+AN15+AV15 -> 86 | Q15: =Y15+AG15+AO15+AW15 -> 3 | R15: 2 | S15: 2 | T15: =AB15+AJ15+AR15+AZ15 -> 6 | U15: =AC15+AK15+AS15+BA15 -> 0 | W15: 30 | X15: 30 | Y15: =W15-X15 -> 0 | AA15: 1 | AB15: 2 | AE15: 20 | AF15: 20 | AG15: =AE15-AF15 -> 0 | AH15: 1 | AJ15: 2 | AM15: 29 | AN15: 27 | AO15: =AM15-AN15 -> 2 | AP15: 1 | AQ15: 1 | AR15: 2 | AT15: 1 | AU15: 10 | AV15: 9 | AW15: =AU15-AV15 -> 1
I16: Josse Grégory | M16: 1 | N16: =P16/O16 -> 0.7567567568 | O16: =W16+AE16+AM16+AU16 -> 37 | P16: 28 | Q16: 9 | R16: 4 | S16: 4 | T16: 2 | U16: 0 | W16: 12 | X16: 11 | Y16: =W16-X16 -> 1 | Z16: 1 | AE16: 21 | AF16: 16 | AG16: =AE16-AF16 -> 5 | AH16: 3 | AI16: 2 | AJ16: 2 | AM16: 4 | AN16: 1 | AO16: 3 | AQ16: 2 | AW16: 0
I17: Lucquet Eric | M17: 1 | N17: =P17/O17 -> 0.8965517241 | O17: 87 | P17: 78 | Q17: 9 | R17: 5 | S17: 3 | T17: 4 | U17: 0 | W17: 29 | X17: 27 | Y17: =W17-X17 -> 2 | Z17: 1 | AA17: 1 | AB17: 1 | AE17: 24 | AF17: 22 | AG17: =AE17-AF17 -> 2 | AH17: 1 | AJ17: 2 | AM17: 22 | AN17: 17 | AO17: 5 | AP17: 2 | AQ17: 2 | AU17: 12 | AV17: 12 | AW17: 0 | AX17: 1 | AZ17: 1
I18: Terrier Florent | M18: 1 | N18: 0.9452054795 | O18: 73 | P18: 69 | Q18: 4 | R18: 6 | S18: 6 | T18: 4 | U18: 0 | W18: 9 | X18: 9 | Y18: 0 | Z18: 1 | AA18: 1 | AB18: 2 | AE18: 22 | AF18: 22 | AG18: 0 | AH18: 1 | AI18: 1 | AM18: 26 | AN18: 22 | AO18: 4 | AP18: 4 | AQ18: 2 | AT18: 1 | AU18: 16 | AV18: 16 | AW18: 0 | AY18: 2 | AZ18: 2
I19: Hénocque Ludovic | M19: 1 | N19: 1 | O19: 101 | P19: 101 | Q19: 0 | R19: 6 | S19: 9 | T19: 5 | U19: 0 | W19: 32 | X19: 32 | Y19: 0 | Z19: 2 | AA19: 5 | AB19: 2 | AE19: 22 | AF19: 22 | AG19: 0 | AH19: 1 | AI19: 2 | AM19: 31 | AN19: 31 | AO19: 0 | AP19: 3 | AQ19: 1 | AR19: 2 | AT19: 1 | AU19: 16 | AV19: 16 | AW19: 0 | AY19: 1 | AZ19: 1
I20: Dubois Sébastien | M20: 1 | N20: 0.9452054795 | O20: 73 | P20: 69 | Q20: 4 | R20: 8 | S20: 9 | T20: 1 | U20: 0 | W20: 8 | X20: 7 | Y20: 1 | AB20: 1 | AE20: 18 | AF20: 15 | AG20: 3 | AH20: 2 | AI20: 3 | AM20: 31 | AN20: 31 | AO20: 0 | AP20: 4 | AQ20: 4 | AT20: 1 | AU20: 16 | AV20: 16 | AW20: 0 | AX20: 2 | AY20: 2
I21: Blir David | M21: 1 | N21: 1 | O21: 4 | P21: 4 | Q21: 0 | R21: 0 | S21: 0 | T21: 1 | U21: 1 | W21: 4 | X21: 4 | Y21: 0 | AB21: 1 | AC21: 1 | AE21: 0 | AF21: 0 | AG21: 0
I22: Macarel Maurice | M22: 1 | N22: 0.8518518519 | O22: 27 | P22: 23 | Q22: 4 | R22: 8 | S22: 13 | T22: 3 | U22: 0 | W22: 27 | X22: 23 | Y22: 4 | Z22: 8 | AA22: 13 | AB22: 3 | AE22: 0 | AF22: 0 | AG22: 0
I23: Demailly Pascal | M23: 1 | N23: 0.7307692308 | O23: 26 | P23: 19 | Q23: 7 | R23: 1 | S23: 9 | T23: 2 | U23: 0 | W23: 26 | X23: 19 | Y23: 7 | Z23: 1 | AA23: 9 | AB23: 2 | AE23: 0 | AF23: 0 | AG23: 0
I24: Albert Christophe | M24: 1 | N24: 0.6829268293 | O24: 41 | P24: 28 | Q24: 13 | R24: 11 | S24: 2 | T24: 1 | U24: 0 | W24: 27 | X24: 19 | Y24: 8 | Z24: 6 | AA24: 2 | AE24: 14 | AF24: 9 | AG24: 5 | AH24: 5 | AJ24: 1
I25: Leduc Thomas | M25: 1 | N25: 0.4594594595 | O25: 37 | P25: 17 | Q25: 20 | R25: 14 | S25: 3 | T25: 1 | U25: 0 | W25: 29 | X25: 14 | Y25: 15 | Z25: 12 | AA25: 3 | AB25: 1 | AE25: 8 | AF25: 3 | AG25: 5 | AH25: 2
I26: Ranvin Lori | M26: 1 | N26: 0.7704918033 | O26: 61 | P26: 47 | Q26: 14 | R26: 34 | S26: 9 | T26: 6 | U26: 1 | W26: 24 | X26: 16 | Y26: 8 | Z26: 15 | AB26: 3 | AC26: 1 | AE26: 15 | AF26: 14 | AG26: 1 | AH26: 10 | AI26: 6 | AM26: 21 | AN26: 17 | AO26: =AM26-AN26 -> 4 | AP26: 9 | AQ26: 3 | AR26: 3 | AT26: 1 | AU26: 1 | AV26: 0 | AW26: =AU26-AV26 -> 1
I27: Munoz Sébastien | M27: 1 | N27: 0.8148148148 | O27: 54 | P27: 44 | Q27: 10 | R27: 19 | S27: 18 | T27: 1 | U27: 0 | W27: 22 | X27: 16 | Y27: 6 | Z27: 9 | AA27: 7 | AE27: 4 | AF27: 4 | AG27: 0 | AI27: 3 | AM27: 28 | AN27: 24 | AO27: =AM27-AN27 -> 4 | AP27: 10 | AQ27: 8 | AR27: 1 | AW27: =AU27-AV27 -> 0
I28: Berton Thibault | M28: 1 | N28: 0.4444444444 | O28: 18 | P28: 8 | Q28: 10 | R28: 0 | S28: 1 | T28: 0 | U28: 0 | W28: 3 | X28: 0 | Y28: 3 | AE28: 9 | AF28: 5 | AG28: 4 | AI28: 1 | AM28: 6 | AN28: 3 | AO28: =AM28-AN28 -> 3 | AW28: =AU28-AV28 -> 0
I29: Darquet Sylvain | M29: 1 | N29: 0.9666666667 | O29: 90 | P29: 87 | Q29: 3 | R29: 0 | S29: 4 | T29: 4 | U29: 0 | W29: 29 | X29: 27 | Y29: 2 | AB29: 1 | AE29: 26 | AF29: 26 | AG29: 0 | AI29: 1 | AM29: 21 | AN29: 20 | AO29: =AM29-AN29 -> 1 | AQ29: 3 | AR29: 3 | AT29: 1 | AU29: 14 | AV29: 14 | AW29: =AU29-AV29 -> 0
I30: Défossez Rémi | M30: 1 | N30: 0.7272727273 | O30: 66 | P30: 48 | Q30: 18 | R30: 2 | S30: 11 | T30: 5 | U30: 0 | W30: 8 | X30: 4 | Y30: 4 | Z30: 1 | AA30: 3 | AE30: 20 | AF30: 13 | AG30: 7 | AI30: 4 | AJ30: 1 | AM30: 25 | AN30: 21 | AO30: =AM30-AN30 -> 4 | AP30: 1 | AQ30: 3 | AR30: 4 | AT30: 1 | AU30: 13 | AV30: 10 | AW30: =AU30-AV30 -> 3 | AY30: 1
I31: Baron Stéphane | M31: 1 | N31: 0.8333333333 | O31: 12 | P31: 10 | Q31: 2 | R31: 1 | S31: 0 | T31: 1 | U31: 0 | W31: 12 | X31: 10 | Y31: 2 | Z31: 1 | AB31: 1 | AE31: 0 | AF31: 0 | AG31: 0
I32: Colcy Ludovic | M32: 1 | N32: 0.8571428571 | O32: 14 | P32: 12 | Q32: 2 | R32: 0 | S32: 1 | T32: 3 | U32: 0 | W32: 14 | X32: 12 | Y32: 2 | AA32: 1 | AB32: 3 | AE32: 0 | AF32: 0 | AG32: 0
I33: Macarel Julien | M33: 1 | N33: 0.5 | O33: 6 | P33: 3 | Q33: 3 | R33: 1 | S33: 1 | T33: 2 | U33: 0 | W33: 6 | X33: 3 | Y33: 3 | Z33: 1 | AA33: 1 | AB33: 2 | AE33: 0 | AF33: 0 | AG33: 0
I34: Marcheux Jérémy | M34: 1 | N34: 1 | O34: 1 | P34: 1 | Q34: 0 | R34: 0 | S34: 0 | T34: 0 | U34: 0 | W34: 1 | X34: 1 | Y34: 0 | AE34: 0 | AF34: 0 | AG34: 0
I35: Beyaert Antoine | M35: 1 | N35: 0.9090909091 | O35: 66 | P35: 60 | Q35: 6 | R35: 2 | S35: 3 | T35: 5 | U35: 0 | W35: 25 | X35: 24 | Y35: 1 | Z35: 2 | AA35: 1 | AE35: 26 | AF35: 26 | AG35: 0 | AI35: 1 | AJ35: 3 | AM35: 15 | AN35: 10 | AO35: =AM35-AN35 -> 5 | AQ35: 1 | AR35: 2 | AW35: =AU35-AV35 -> 0
I36: Ledoux Alexis | M36: 1 | N36: 0.9047619048 | O36: 84 | P36: 76 | Q36: 8 | R36: 28 | S36: 18 | T36: 8 | U36: 0 | W36: 18 | X36: 16 | Y36: 2 | Z36: 5 | AA36: 4 | AE36: 27 | AF36: 27 | AG36: 0 | AH36: 13 | AI36: 5 | AJ36: 2 | AM36: 23 | AN36: 20 | AO36: =AM36-AN36 -> 3 | AP36: 3 | AQ36: 6 | AR36: 3 | AT36: 1 | AU36: 16 | AV36: 13 | AW36: =AU36-AV36 -> 3 | AX36: 7 | AY36: 3 | AZ36: 3
I37: Ranvin Rémi | M37: 1 | N37: 0.7692307692 | O37: 26 | P37: 20 | Q37: 6 | R37: 1 | S37: 1 | T37: 1 | U37: 0 | W37: 14 | X37: 13 | Y37: 1 | AA37: 1 | AB37: 1 | AE37: 9 | AF37: 7 | AG37: 2 | AH37: 1 | AM37: 3 | AN37: 0 | AO37: =AM37-AN37 -> 3 | AW37: =AU37-AV37 -> 0
I38: Dieval Samuel | M38: 1 | N38: 0.6 | O38: 5 | P38: 3 | Q38: 2 | R38: 2 | S38: 0 | T38: 0 | U38: 0 | W38: 5 | X38: 3 | Y38: 2 | Z38: 2 | AE38: 0 | AF38: 0 | AG38: 0
I39: Duflot Alexandre | M39: 1 | N39: 0.85 | O39: 20 | P39: 17 | Q39: 3 | R39: 1 | S39: 3 | T39: 3 | U39: 1 | W39: 14 | X39: 12 | Y39: =W39-X39 -> 2 | Z39: 1 | AA39: 3 | AB39: 2 | AC39: 1 | AE39: 0 | AF39: 0 | AG39: =AE39-AF39 -> 0 | AT39: 1 | AU39: 6 | AV39: 5 | AW39: =AU39-AV39 -> 1 | AZ39: 1
I40: Larouette Yann | M40: 1 | N40: 0.8596491228 | O40: 57 | P40: 49 | Q40: 8 | R40: 1 | S40: 4 | T40: 1 | U40: 0 | AE40: 25 | AF40: 17 | AG40: =AE40-AF40 -> 8 | AI40: 1 | AM40: 30 | AN40: 30 | AO40: =AM40-AN40 -> 0 | AP40: 1 | AQ40: 3 | AR40: 1 | AU40: 2 | AV40: 2 | AW40: =AU40-AV40 -> 0
I41: Bosco Alexis | M41: 1 | N41: 0.5 | O41: 6 | P41: 3 | Q41: 3 | R41: 1 | S41: 1 | T41: 0 | U41: 0 | AE41: 6 | AF41: 3 | AG41: 3 | AH41: 1 | AI41: 1
I42: Lanterne Erwan | M42: 1 | N42: 0.8947368421 | O42: 38 | P42: 34 | Q42: 3 | R42: 2 | S42: 4 | T42: 7 | U42: 0 | AE42: 26 | AF42: 23 | AG42: 3 | AH42: 1 | AI42: 3 | AJ42: 3 | AT42: 1 | AU42: 12 | AV42: 11 | AX42: 1 | AY42: 1 | AZ42: 4
I43: Aince Philippe | M43: 1 | N43: 0 | O43: 3 | P43: 0 | Q43: 3 | R43: 0 | S43: 0 | T43: 0 | U43: 0 | AE43: 3 | AF43: 0 | AG43: 3
I44: Mascré Ghislain | M44: 1 | N44: 0.3333333333 | O44: 3 | P44: 1 | Q44: 2 | R44: 0 | S44: 1 | T44: 0 | U44: 0 | AE44: 2 | AF44: 1 | AG44: 1 | AI44: 1 | AM44: 1 | AN44: 0 | AO44: =AM44-AN44 -> 1 | AW44: =AU44-AV44 -> 0
I45: Dupont Kévin | M45: 1 | N45: 0.5416666667 | O45: 24 | P45: 13 | Q45: 11 | R45: 7 | S45: 5 | T45: 1 | U45: 0 | AE45: 3 | AF45: 1 | AG45: 2 | AM45: 10 | AN45: 7 | AO45: =AM45-AN45 -> 3 | AP45: 4 | AQ45: 5 | AT45: 1 | AU45: 11 | AV45: 5 | AW45: =AU45-AV45 -> 6 | AX45: 3 | AZ45: 1
I46: Carette Cédric | M46: 1 | N46: 0.6666666667 | O46: 3 | P46: 2 | Q46: 1 | R46: 0 | S46: 0 | T46: 0 | U46: 0 | AE46: 2 | AF46: 2 | AG46: 0 | AM46: 1 | AN46: 0 | AO46: =AM46-AN46 -> 1 | AW46: =AU46-AV46 -> 0
I47: Revaux Sylvain | M47: 1 | N47: 1 | O47: 1 | P47: 1 | Q47: 0 | R47: 0 | S47: 0 | T47: 0 | U47: 0 | AE47: 1 | AF47: 1 | AG47: 0
I48: Amarias Yannick | M48: 1 | N48: 0 | O48: 1 | P48: 0 | Q48: 2 | R48: 0 | S48: 0 | T48: 0 | U48: 0 | AE48: 1 | AF48: 0 | AG48: 1 | AM48: 0 | AN48: 0 | AO48: =(AM48-AN48)+1 -> 1 | AW48: =(AU48-AV48) -> 0
I49: Courtois Kévin | M49: 1 | N49: 0.7142857143 | O49: 7 | P49: 5 | Q49: 2 | R49: 0 | S49: 0 | T49: 1 | U49: 0 | AE49: 1 | AF49: 0 | AG49: 1 | AM49: 6 | AN49: 5 | AO49: =AM49-AN49 -> 1 | AR49: 1 | AW49: =AU49-AV49 -> 0
I50: Waquet Ludovic | M50: 1 | N50: 0.8421052632 | O50: 19 | P50: 16 | Q50: 3 | R50: 12 | S50: 4 | T50: 0 | U50: 1 | AM50: 19 | AN50: 16 | AO50: 3 | AP50: 12 | AQ50: 4 | AS50: 1 | AW50: 0
I51: Hot Guillaume | M51: 1 | N51: 0.8 | O51: 20 | P51: 16 | Q51: 4 | R51: 8 | S51: 2 | T51: 5 | U51: 0 | AM51: 20 | AN51: 16 | AO51: 4 | AP51: 8 | AQ51: 2 | AR51: 5 | AW51: 0
I52: Vincent Jérôme | M52: 1 | N52: 0.4117647059 | O52: 17 | P52: 7 | Q52: 10 | R52: 2 | S52: 2 | T52: 0 | U52: 0 | AM52: 9 | AN52: 2 | AO52: 7 | AP52: 1 | AQ52: 1 | AU52: 8 | AV52: 5 | AW52: 3 | AX52: 1 | AY52: 1
I53: Roussel Dimitri | M53: 1 | N53: 0.75 | O53: 4 | P53: 3 | Q53: 1 | R53: 0 | S53: 0 | T53: 0 | U53: 0 | AM53: 4 | AN53: 3 | AO53: 1 | AW53: 0
I54: Dieval Maxime | M54: 1 | N54: 0 | O54: 1 | P54: 0 | Q54: 1 | R54: 0 | S54: 0 | T54: 0 | U54: 0 | AM54: 1 | AN54: 0 | AO54: 1 | AW54: 0
I55: Dècle Jérôme | M55: 1 | N55: 0.90625 | O55: 32 | P55: 29 | Q55: 3 | R55: 5 | S55: 5 | T55: 6 | U55: 0 | AE55: 0 | AF55: 0 | AG55: 0 | AM55: 18 | AN55: 17 | AO55: 1 | AP55: 3 | AQ55: 3 | AR55: 2 | AT55: 1 | AU55: 14 | AV55: 12 | AW55: 2 | AX55: 2 | AY55: 2 | AZ55: 4
I56: Borck Stéphane | N56: 0.6 | O56: 10 | P56: 6 | Q56: 4 | R56: 1 | S56: 0 | T56: 0 | U56: 0 | AT56: 1 | AU56: 10 | AV56: 6 | AW56: 4 | AX56: 1
I57: Capelle Stéphane | N57: 0.375 | O57: 8 | P57: 3 | Q57: 5 | R57: 1 | S57: 2 | T57: 2 | U57: 0 | AT57: 1 | AU57: 8 | AV57: 3 | AW57: 5 | AX57: 1 | AY57: 2 | AZ57: 2
I58: Gottis Thomas | N58: 0.5 | O58: 10 | P58: 5 | Q58: 5 | R58: 4 | S58: 1 | T58: 1 | U58: 0 | AU58: 10 | AV58: 5 | AW58: 5 | AX58: 4 | AY58: 1 | AZ58: 1
I59: Delplanque Maxime | N59: 0.3333333333 | O59: 3 | P59: 1 | Q59: 2 | R59: 0 | S59: 1 | T59: 0 | U59: 0 | AU59: 3 | AV59: 1 | AW59: 2 | AY59: 1
I60: Levi Cédric | N60: 0.8181818182 | O60: 11 | P60: 9 | Q60: 2 | R60: 2 | S60: 5 | T60: 2 | U60: 0 | AU60: 11 | AV60: 9 | AW60: 2 | AX60: 2 | AY60: 5 | AZ60: 2
I61: Defossez Aurélien | N61: 1 | O61: 3 | P61: 3 | Q61: 0 | R61: 0 | S61: 0 | T61: 0 | U61: 0 | AU61: 3 | AV61: 3 | AW61: 0
I62: Pitarch Boris | N62: 0.6 | O62: 5 | P62: 3 | Q62: 2 | R62: 0 | S62: 0 | T62: 1 | U62: 0 | AU62: 5 | AV62: 3 | AW62: 2 | AZ62: 1
O63: 0 | P63: =X63+AF63+AN63+AV63 -> 0 | Q63: 0 | R63: 0 | S63: 0 | T63: 0 | U63: 0 | AW63: 0
O64: =W64+AE64+AM64+AU64 -> 0 | P64: 0 | Q64: 0 | R64: 0 | S64: 0 | T64: 0 | U64: 0 | AW64: 0
O65: =W65+AE65+AM65+AU65 -> 0 | P65: 0 | Q65: 0 | R65: 0 | S65: 0 | T65: 0 | U65: 0 | AE65: 0 | AF65: 0 | AG65: =AE65-AF65 -> 0
M66: =SUM(M15:M65) -> 41 | O66: =SUM(O15:O65) -> 1404 | P66: 1167 | Q66: 237 | R66: 202 | S66: 167 | T66: 96 | U66: 4 | W66: =SUM(W15:W65) -> 428 | X66: 352 | Y66: 76 | Z66: 69 | AA66: 56 | AB66: 28 | AC66: 3 | AE66: =SUM(AE15:AE65) -> 355 | AF66: 299 | AG66: 56 | AH66: 42 | AI66: 35 | AJ66: 16 | AK66: 0 | AM66: =SUM(AM15:AM65) -> 404 | AN66: 340 | AO66: 65 | AP66: 66 | AQ66: 54 | AR66: 29 | AS66: 1 | AT66: =SUM(AT15:AT65) -> 14 | AU66: =SUM(AU15:AU65) -> 217 | AV66: 176 | AW66: 40 | AX66: 25 | AY66: 22 | AZ66: 23 | BA66: 0

Sheet Forme Buteurs A
A1: ASSOCIATION SPORTIVE DE CERISY GAILLY
A2: SAISON SENIORS 2011-2012
A3: SUIVI STATISTIQUE - SENIORS A
B5: Championnats : | F5: 1ère division / 3ème division | M5: Stade : | P5: rue du marais - 80800 Cerisy | Y5: Site internet : | AB5: as-cerisy.footeo.com
B7: Entraîneur : | F7: DUPUTEL David | N7: Adjoint : | R7: DUBOIS Sébastien | Z7: Coach B : | AD7: DEFOSSEZ Martial
F8: duputel.david@gmail.com | R8: sebastien.dubois@aerolia.com | AD8: martial.defossez@wanadoo.fr
F9: Tél : 03.22.96.00.51 / 06.17.16.09.47 | R9: Tél : 03.22.05.83.80 / 06.73.82.67.81 | AD9: Tél : 03.22.76.61.50
L13: 2011 | AA13: 2012
H14: NOMS / PRENOMS | L14: 2011-08-28 | M14: 2011-09-04 | N14: 2011-09-11 | O14: 2011-09-18 | P14: 2011-09-25 | Q14: 2011-10-02 | R14: 2011-10-09 | S14: 2011-10-16 | T14: 2011-10-23 | U14: 2011-10-30 | V14: 2011-11-01 | W14: 2011-11-06 | X14: 2011-11-13 | Y14: 2011-11-26 | Z14: 2011-12-04 | AA14: 2012-01-08
H15: Ledoux Alexis | K15: =SUM(L15:AR15) -> 7 | P15: 2 | Q15: 1 | Y15: 2 | Z15: 1 | AA15: 1
H16: Gottis Thomas | K16: 4 | L16: 1 | M16: 1 | O16: 1 | Y16: 1
H17: Dupont Kévin | K17: 3 | L17: 1 | P17: 1 | T17: 1
H18: Dècle Jérôme | K18: 2 | P18: 1 | U18: 1
H19: Dubois Sébastien | K19: 2 | W19: 2
H20: Levi Cédric | K20: 2 | P20: 1 | X20: 1
H21: Jérôme Vincent | K21: 1 | S21: 1
H22: Lucquet Eric | K22: 1 | U22: 1
H23: Capelle Stéphane | K23: 1 | U23: 1
H24: Lanterne Erwan | K24: 1 | X24: 1
H25: Borck Stéphane | K25: 1 | Y25: 1
K26: 0
K27: 0
K28: 0
K29: 0
K30: 0
K31: 0
K32: 0
K33: 0
K34: 0
K35: 0
K36: 0
K37: 0
K38: 0
K39: 0
K41: =SUM(K15:K40) -> 25 | L41: =SUM(L15:L40) -> 2 | M41: =SUM(M15:M40) -> 1 | N41: 0 | O41: 1 | P41: 5 | Q41: 1 | R41: 0 | S41: 1 | T41: 1 | U41: 3 | V41: 0 | W41: 2 | X41: 2 | Y41: 4 | Z41: 1 | AA41: 1 | AB41: 0 | AC41: 0 | AD41: 0 | AE41: 0 | AF41: 0 | AG41: 0 | AH41: 0 | AI41: 0 | AJ41: 0 | AK41: 0 | AL41: 0 | AM41: 0 | AN41: 0 | AO41: 0 | AP41: 0 | AQ41: 0 | AR41: 0

Sheet Forme Passeurs A
A1: ASSOCIATION SPORTIVE DE CERISY GAILLY
A2: SAISON SENIORS 2011-2012
A3: SUIVI STATISTIQUE - SENIORS A
B5: Championnats : | F5: 1ère division / 3ème division | M5: Stade : | P5: rue du marais - 80800 Cerisy | Y5: Site internet : | AB5: as-cerisy.footeo.com
B7: Entraîneur : | F7: DUPUTEL David | N7: Adjoint : | R7: DUBOIS Sébastien | Z7: Coach B : | AD7: DEFOSSEZ Martial
F8: duputel.david@gmail.com | R8: sebastien.dubois@aerolia.com | AD8: martial.defossez@wanadoo.fr
F9: Tél : 03.22.96.00.51 / 06.17.16.09.47 | R9: Tél : 03.22.05.83.80 / 06.73.82.67.81 | AD9: Tél : 03.22.76.61.50
L13: 2011 | AA13: 2012
H14: NOMS / PRENOMS | L14: 2011-08-28 | M14: 2011-09-04 | N14: 2011-09-11 | O14: 2011-09-18 | P14: 2011-09-25 | Q14: 2011-10-02 | R14: 2011-10-09 | S14: 2011-10-16 | T14: 2011-10-23 | U14: 2011-10-30 | V14: 2011-11-01 | W14: 2011-11-06 | X14: 2011-11-13 | Y14: 2011-11-26 | Z14: 2011-12-04 | AA14: 2012-01-08
H15: Lévi Cédric | K15: =SUM(L15:AR15) -> 5 | M15: 1 | P15: 1 | Q15: 1 | S15: 1 | Z15: 1
H16: Ledoux Alexis | K16: =SUM(L16:AR16) -> 3 | O16: 1 | W16: 1 | X16: 1
H17: Dubois Sébastien | K17: =SUM(L17:AR17) -> 2 | L17: 1 | P17: 1
H18: Delplanque Maxime | K18: =SUM(L18:AR18) -> 2 | P18: 1 | T18: 1
H19: Terrier Florent | K19: =SUM(L19:AR19) -> 2 | U19: 1 | W19: 1
H20: Capelle Stéphane | K20: =SUM(L20:AR20) -> 2 | X20: 1 | AA20: 1
H21: Hénocque Ludovic | K21: =SUM(L21:AR21) -> 1 | L21: 1
H22: Defossez Rémi | K22: =SUM(L22:AR22) -> 1 | P22: 1
H23: Dècle Jérôme | K23: =SUM(L23:AR23) -> 1 | U23: 1
H24: Lanterne Erwan | K24: =SUM(L24:AR24) -> 1 | Y24: 1
H25: Gottis Thomas | K25: =SUM(L25:AR25) -> 1 | Y25: 1
H26: Jérôme Vincent | K26: =SUM(L26:AR26) -> 1 | Y26: 1
K27: =SUM(L27:AR27) -> 0
K28: 0
K29: 0
K30: 0
K31: 0
K32: 0
K33: 0
K34: 0
K35: 0
K36: 0
K37: 0
K38: 0
K39: 0
K41: =SUM(K15:K40) -> 22 | L41: =SUM(L15:L40) -> 2 | M41: =SUM(M15:M40) -> 1 | N41: 0 | O41: 1 | P41: 4 | Q41: 1 | R41: 0 | S41: 1 | T41: 1 | U41: 2 | V41: 0 | W41: 2 | X41: 2 | Y41: 3 | Z41: 1 | AA41: 1 | AB41: 0 | AC41: 0 | AD41: 0 | AE41: 0 | AF41: 0 | AG41: 0 | AH41: 0 | AI41: 0 | AJ41: 0 | AK41: 0 | AL41: 0 | AM41: 0 | AN41: 0 | AO41: 0 | AP41: 0 | AQ41: 0 | AR41: 0

Sheet Résultats 2006-2011 - A
A1: Résultats 2006 - 2001 Equipe A | K1: DEPUIS LA SAISON 2006-2007
A2: Jour | B2: Mois | C2: Années | D2: Equipe Domicile | E2: Equipe Extérieur | F2: Score | G2: Score | H2: Compétitions | I2: Résultats
A3: 10 | B3: 9 | C3: 1989 | D3: Cerisy A | E3: Flesselles | F3: 3 | G3: 1 | H3: Championnnat 2ème division | I3: Victoire | J3: 1
A4: 17 | B4: 9 | C4: 1989 | D4: Querrieu | E4: Cerisy A | F4: 2 | G4: 3 | H4: Championnnat 2ème division | I4: Victoire | J4: 1 | K4: Victoires | M4: =N4/N10 -> 0.6 | N4: 99
A5: 24 | B5: 9 | C5: 1989 | D5: Cerisy A | E5: Estrées Mons | F5: 2 | G5: 0 | H5: Coupe de la Somme | I5: Victoire | J5: 1
A6: 1 | B6: 10 | C6: 1989 | D6: Cerisy A | E6: Bray sur Somme | F6: 5 | G6: 0 | H6: Championnnat 2ème division | I6: Victoire | J6: 1 | K6: Nuls | M6: =N6/N10 -> 0.1515151515 | N6: 25
A7: 8 | B7: 10 | C7: 1989 | D7: Ribemont | E7: Cerisy A | F7: 3 | G7: 2 | H7: Championnnat 2ème division | I7: Défaite | J7: 1
A8: 15 | B8: 10 | C8: 1989 | D8: Cerisy A | E8: Etinehem | F8: 2 | G8: 0 | H8: Coupe de Picardie | I8: Victoire | J8: 1 | K8: Défaites | M8: =N8/N10 -> 0.2484848485 | N8: 41
A9: 22 | B9: 10 | C9: 1989 | D9: Cerisy A | E9: Amiens St Maurice | F9: 5 | G9: 0 | H9: Championnnat 2ème division | I9: Victoire | J9: 1
A10: 29 | B10: 10 | C10: 1989 | D10: Sailly Saillisel | E10: Cerisy A | F10: 2 | G10: 0 | H10: Coupe de la Somme | I10: Défaite | J10: 1 | K10: Nbre de Matches | M10: =M4+M6+M8 -> 1 | N10: =N4+N6+N8 -> 165
A11: 5 | B11: 11 | C11: 1989 | D11: Corbie | E11: Cerisy A | F11: 0 | G11: 3 | H11: Championnnat 2ème division | I11: Victoire | J11: 1
A12: 19 | B12: 11 | C12: 1989 | D12: Cerisy A | E12: Picquigny | F12: 1 | G12: 1 | H12: Championnnat 2ème division | I12: Nul | J12: 1 | K12: Championnats | M12: =SUM(M13:M16) -> 116 | N12: =M12/N10 -> 0.703030303
A13: 3 | B13: 12 | C13: 1989 | D13: Péronne 2 | E13: Cerisy A | F13: 1 | G13: 3 | H13: Championnnat 2ème division | I13: Victoire | J13: 1 | K13: 1ère Division | M13: 95
A14: 10 | B14: 12 | C14: 1989 | D14: Cerisy A | E14: Doullens 2 | F14: 2 | G14: 1 | H14: Championnnat 2ème division | I14: Victoire | J14: 1 | K14: Promo 1ère Division | M14: 21
A15: 7 | B15: 1 | C15: 1990 | D15: Portugais Albert | E15: Cerisy A | F15: 6 | G15: 3 | H15: Championnnat 2ème division | I15: Défaite | J15: 1 | K15: 2ème Division
A16: 21 | B16: 1 | C16: 1990 | D16: Cerisy A | E16: Naours | F16: 1 | G16: 1 | H16: Championnnat 2ème division | I16: Nul | J16: 1 | K16: 3ème Division
A17: 4 | B17: 2 | C17: 1990 | D17: Flesselles | E17: Cerisy A | F17: 1 | G17: 6 | H17: Championnnat 2ème division | I17: Victoire | J17: 1 | K17: Coupe de France | M17: 16 | N17: =M17/N10 -> 0.09696969697
A18: 11 | B18: 2 | C18: 1990 | D18: Cerisy A | E18: Querrieu | F18: 2 | G18: 2 | H18: Championnnat 2ème division | I18: Nul | J18: 1 | K18: Coupe de Picardie | M18: 2 | N18: =M18/N10 -> 0.01212121212
A19: 18 | B19: 2 | C19: 1990 | D19: Bray sur Somme | E19: Cerisy A | F19: 2 | G19: 6 | H19: Championnnat 2ème division | I19: Victoire | J19: 1 | K19: Coupe de la Somme | M19: 14 | N19: =M19/N10 -> 0.08484848485
A20: 25 | B20: 2 | C20: 1990 | D20: Cerisy A | E20: Ribemont | F20: 2 | G20: 0 | H20: Championnnat 2ème division | I20: Victoire | J20: 1 | K20: Challenge Galland | M20: 6 | N20: =M20/N10 -> 0.03636363636
A21: 18 | B21: 3 | C21: 1990 | D21: Amiens St Maurice | E21: Cerisy A | F21: 0 | G21: 2 | H21: Championnnat 2ème division | I21: Victoire | J21: 1 | K21: Challenge du District | M21: 11 | N21: =M21/N10 -> 0.06666666667
A22: 25 | B22: 3 | C22: 1990 | D22: Cerisy A | E22: Corbie | F22: 10 | G22: 1 | H22: Championnnat 2ème division | I22: Victoire | J22: 1 | M22: =M12+M17+M18+M19+M20+M21 -> 165
A23: 8 | B23: 4 | C23: 1990 | D23: Picquigny | E23: Cerisy A | F23: 0 | G23: 2 | H23: Championnnat 2ème division | I23: Victoire | J23: 1 | K23: Séries
A24: 22 | B24: 4 | C24: 1990 | D24: Cerisy A | E24: Péronne 2 | F24: 6 | G24: 1 | H24: Championnnat 2ème division | I24: Victoire | J24: 1
A25: 29 | B25: 4 | C25: 1990 | D25: Doullens 2 | E25: Cerisy A | F25: 1 | G25: 1 | H25: Championnnat 2ème division | I25: Nul | J25: 1 | K25: Victoires Consécutives
A26: 13 | B26: 5 | C26: 1990 | D26: Cerisy A | E26: Portugais Albert | F26: 3 | G26: 1 | H26: Championnnat 2ème division | I26: Victoire | J26: 1 | K26: 11
A27: 20 | B27: 5 | C27: 1990 | D27: Naours | E27: Cerisy A | F27: 1 | G27: 2 | H27: Championnnat 2ème division | I27: Victoire | J27: 1 | K27: Période
A28: 27 | B28: 8 | C28: 2006 | D28: Hombleux | E28: Cerisy A | F28: 1 | G28: 6 | H28: Coupe de France | I28: Victoire | J28: 1 | K28: 13/04/2008 au 21/09/2008
A29: 3 | B29: 9 | C29: 2006 | D29: Cerisy A | E29: Amiens St Maurice | F29: 3 | G29: 4 | H29: Championnat Promotion 1ère | I29: Défaite | J29: 1
A30: 10 | B30: 9 | C30: 2006 | D30: Allonvilles | E30: Cerisy A | F30: 0 | G30: 0 | H30: Championnat Promotion 1ère | I30: Nul | J30: 1 | K30: Nuls Consécutifs
A31: 17 | B31: 9 | C31: 2006 | D31: Cerisy A | E31: Holnon | F31: 2 | G31: 0 | H31: Coupe de France | I31: Victoire | J31: 1 | K31: 3
A32: 24 | B32: 9 | C32: 2006 | D32: Cerisy A | E32: Amiens RC 2 | F32: 2 | G32: 1 | H32: Championnat Promotion 1ère | I32: Victoire | J32: 1 | K32: Période
A33: 1 | B33: 10 | C33: 2006 | D33: Cerisy A | E33: Corbie | F33: 3 | G33: 1 | H33: Championnat Promotion 1ère | I33: Victoire | J33: 1 | K33: 04/09/2011 au 18/09/2011
A34: 8 | B34: 10 | C34: 2006 | D34: Cerisy A | E34: Ercheu Nesle | F34: 1 | G34: 3 | H34: Coupe de France | I34: Défaite | J34: 1
A35: 15 | B35: 10 | C35: 2006 | D35: USO Albert | E35: Cerisy A | F35: 0 | G35: 5 | H35: Championnat Promotion 1ère | I35: Victoire | J35: 1 | K35: Défaites Consécutives
A36: 22 | B36: 10 | C36: 2006 | D36: Cerisy A | E36: Sailly Saillisel | F36: 0 | G36: 4 | H36: Coupe de la Somme | I36: Défaite | J36: 1 | K36: 6
A37: 29 | B37: 10 | C37: 2006 | D37: Cerisy A | E37: Chaulnes | F37: 0 | G37: 1 | H37: Championnat Promotion 1ère | I37: Défaite | J37: 1 | K37: Période
A38: 5 | B38: 11 | C38: 2006 | D38: Albert Sport 2 | E38: Cerisy A | F38: 2 | G38: 3 | H38: Championnat Promotion 1ère | I38: Victoire | J38: 1 | K38: 20/10/2009 au 21/02/2010
A39: 12 | B39: 11 | C39: 2006 | D39: Amiens FC 2 | E39: Cerisy A | F39: 1 | G39: 4 | H39: Championnat Promotion 1ère | I39: Victoire | J39: 1
A40: 19 | B40: 11 | C40: 2006 | D40: Cerisy A | E40: Blangy Tronville | F40: 4 | G40: 0 | H40: Championnat Promotion 1ère | I40: Victoire | J40: 1 | K40: Matches Consécutifs sans Défaite
A41: 26 | B41: 11 | C41: 2006 | D41: Cerisy A | E41: USO Albert | F41: 3 | G41: 0 | H41: Challenge du District | I41: Victoire | J41: 1 | K41: 21
A42: 3 | B42: 12 | C42: 2006 | D42: Plessiers | E42: Cerisy A | F42: 1 | G42: 1 | H42: Championnat Promotion 1ère | I42: Nul | J42: 1 | K42: Période
A43: 17 | B43: 12 | C43: 2006 | D43: Amiens St Maurice | E43: Cerisy A | F43: 0 | G43: 3 | H43: Championnat Promotion 1ère | I43: Victoire | J43: 1 | K43: 05/11/2006 au 20/05/2007
A44: 14 | B44: 1 | C44: 2007 | D44: Saint Ouen OL | E44: Cerisy A | F44: 0 | G44: 1 | H44: Challenge du District | I44: Victoire | J44: 1
A45: 4 | B45: 2 | C45: 2007 | D45: Cerisy A | E45: Blangy Tronville | F45: 4 | G45: 0 | H45: Challenge du District | I45: Victoire | J45: 1 | K45: Matches Consécutifs sans Victoire
A46: 18 | B46: 2 | C46: 2007 | D46: Cerisy A | E46: Allonvilles | F46: 1 | G46: 0 | H46: Championnat Promotion 1ère | I46: Victoire | J46: 1 | K46: 6
A47: 25 | B47: 2 | C47: 2007 | D47: Cerisy A | E47: La Montoye FC | F47: 1 | G47: 1 | H47: Championnat Promotion 1ère | I47: Nul | J47: 1 | K47: Période
A48: 11 | B48: 3 | C48: 2007 | D48: Corbie | E48: Cerisy A | F48: 0 | G48: 3 | H48: Championnat Promotion 1ère | I48: Victoire | J48: 1 | K48: 20/10/2009 au 21/02/2010
A49: 18 | B49: 3 | C49: 2007 | D49: Amiens RC 2 | E49: Cerisy A | F49: 0 | G49: 0 | H49: Championnat Promotion 1ère | I49: Nul | J49: 1
A50: 25 | B50: 3 | C50: 2007 | D50: Cerisy A | E50: USO Albert | F50: 5 | G50: 0 | H50: Championnat Promotion 1ère | I50: Victoire | J50: 1 | K50: Matches Consécutifs sans Nul
A51: 1 | B51: 4 | C51: 2007 | D51: Chaulnes | E51: Cerisy A | F51: 2 | G51: 2 | H51: Championnat Promotion 1ère | I51: Nul | J51: 1 | K51: 29
A52: 8 | B52: 4 | C52: 2007 | D52: Daours | E52: Cerisy A | F52: 0 | G52: 3 | H52: Challenge du District | I52: Victoire | J52: 1 | K52: Période
A53: 22 | B53: 4 | C53: 2007 | D53: Blangy Tronville | E53: Cerisy A | F53: 0 | G53: 0 | H53: Championnat Promotion 1ère | I53: Nul | J53: 1 | K53: 08/03/2009 au 07/03/2010
A54: 29 | B54: 4 | C54: 2007 | D54: Sainte Emilie | E54: Cerisy A | F54: 1 | G54: 2 | H54: Challenge du District | I54: Victoire | J54: 1
A55: 6 | B55: 5 | C55: 2007 | D55: Cerisy A | E55: Plessiers | F55: 4 | G55: 0 | H55: Championnat Promotion 1ère | I55: Victoire | J55: 1 | K55: Matches Consécutifs sans Victoire en Champ.
A56: 13 | B56: 5 | C56: 2007 | D56: La Montoye | E56: Cerisy A | F56: 0 | G56: 3 | H56: Championnat Promotion 1ère | I56: Victoire | J56: 1 | K56: 5
A57: 17 | B57: 5 | C57: 2007 | D57: Fresseneville | E57: Cerisy A | F57: 1 | G57: 4 | H57: Challenge du District | I57: Victoire | J57: 1 | K57: Période
A58: 20 | B58: 5 | C58: 2007 | D58: Cerisy A | E58: Albert Sport 2 | F58: 2 | G58: 1 | H58: Championnat Promotion 1ère | I58: Victoire | J58: 1 | K58: 11/10/2009 au 21/02/2010
A59: 16 | B59: 6 | C59: 2007 | D59: Hombleux | E59: Cerisy A | F59: 2 | G59: 1 | H59: Coupe de France | I59: Défaite | J59: 1
A60: 2 | B60: 9 | C60: 2007 | D60: Cerisy A | E60: La Montoye FC | F60: 2 | G60: 2 | H60: Championnat 1ère Division | I60: Nul | J60: 1 | K60: Matches Consécutifs sans Nul en Champ.
A61: 9 | B61: 9 | C61: 2007 | D61: Querrieu | E61: Cerisy A | F61: 2 | G61: 1 | H61: Coupe de la Somme | I61: Défaite | J61: 1 | K61: 20
A62: 16 | B62: 9 | C62: 2007 | D62: Englebelmer | E62: Cerisy A | F62: 1 | G62: 0 | H62: Championnat 1ère Division | I62: Défaite | J62: 1 | K62: Période
A63: 30 | B63: 9 | C63: 2007 | D63: Cerisy A | E63: Amiens Portugais | F63: 4 | G63: 0 | H63: Championnat 1ère Division | I63: Victoire | J63: 1 | K63: 06/04/2008 au 07/03/2010
A64: 21 | B64: 10 | C64: 2007 | D64: Albert Sport 2 | E64: Cerisy A | F64: 0 | G64: 2 | H64: Challenge du District | I64: Victoire | J64: 1
A65: 28 | B65: 10 | C65: 2007 | D65: Cerisy A | E65: Moreuil | F65: 2 | G65: 0 | H65: Championnat 1ère Division | I65: Victoire | J65: 1 | K65: Matches Consécutifs sans Défaite en Champ.
A66: 4 | B66: 11 | C66: 2007 | D66: Villiers Bretonneux | E66: Cerisy A | F66: 1 | G66: 0 | H66: Championnat 1ère Division | I66: Défaite | J66: 1 | K66: 16
A67: 10 | B67: 11 | C67: 2007 | D67: Péronne 2 | E67: Cerisy A | F67: 1 | G67: 2 | H67: Championnat 1ère Division | I67: Victoire | J67: 1 | K67: Période
A68: 18 | B68: 11 | C68: 2007 | D68: Cerisy A | E68: Montdidier USC 2 | F68: 3 | G68: 1 | H68: Championnat 1ère Division | I68: Victoire | J68: 1 | K68: 05/11/2006 au 02/09/2007
A69: 25 | B69: 11 | C69: 2007 | D69: Villers Bocage | E69: Cerisy A | F69: 0 | G69: 3 | H69: Challenge du District | I69: Victoire | J69: 1
A70: 6 | B70: 1 | C70: 2008 | D70: Sainte Emilie | E70: Cerisy A | F70: 1 | G70: 1 | H70: Championnat 1ère Division | I70: Nul | J70: 1
A71: 13 | B71: 1 | C71: 2008 | D71: Roye 3 | E71: Cerisy A | F71: 2 | G71: 1 | H71: Challenge du District | I71: Défaite | J71: 1
A72: 10 | B72: 2 | C72: 2008 | D72: La Montoye | E72: Cerisy A | F72: 0 | G72: 1 | H72: Championnat 1ère Division | I72: Victoire | J72: 1
A73: 17 | B73: 2 | C73: 2008 | D73: Cerisy A | E73: Englebelmer | F73: 6 | G73: 1 | H73: Championnat 1ère Division | I73: Victoire | J73: 1
A74: 24 | B74: 2 | C74: 2008 | D74: Amiens Portugais | E74: Cerisy A | F74: 1 | G74: 1 | H74: Championnat 1ère Division | I74: Nul | J74: 1
A75: 2 | B75: 3 | C75: 2008 | D75: Cerisy A | E75: Rosières | F75: 3 | G75: 0 | H75: Championnat 1ère Division | I75: Victoire | J75: 1
A76: 30 | B76: 3 | C76: 2008 | D76: Moreuil | E76: Cerisy A | F76: 1 | G76: 1 | H76: Championnat 1ère Division | I76: Nul | J76: 1
A77: 6 | B77: 4 | C77: 2008 | D77: Cerisy A | E77: Péronne 2 | F77: 1 | G77: 2 | H77: Championnat 1ère Division | I77: Défaite | J77: 1
A78: 13 | B78: 4 | C78: 2008 | D78: Cerisy A | E78: Saleux | F78: 5 | G78: 0 | H78: Championnat 1ère Division | I78: Victoire | J78: 1
A79: 20 | B79: 4 | C79: 2008 | D79: Montdidier USC 2 | E79: Cerisy A | F79: 0 | G79: 1 | H79: Championnat 1ère Division | I79: Victoire | J79: 1
A80: 27 | B80: 4 | C80: 2008 | D80: Cerisy A | E80: Sainte Emilie | F80: 8 | G80: 0 | H80: Championnat 1ère Division | I80: Victoire | J80: 1
A81: 4 | B81: 5 | C81: 2008 | D81: Rosières | E81: Cerisy A | F81: 0 | G81: 3 | H81: Championnat 1ère Division | I81: Victoire | J81: 1
A82: 18 | B82: 5 | C82: 2008 | D82: Vers sur Selle | E82: Cerisy A | F82: 0 | G82: 3 | H82: Championnat 1ère Division | I82: Victoire | J82: 1
A83: 25 | B83: 5 | C83: 2008 | D83: Cerisy A | E83: Villers Bretonneux | F83: 2 | G83: 0 | H83: Championnat 1ère Division | I83: Victoire | J83: 1
A84: 31 | B84: 5 | C84: 2008 | D84: Cerisy A | E84: Coucy le Château | F84: 7 | G84: 2 | H84: Coupe de France | I84: Victoire | J84: 1
A85: 31 | B85: 8 | C85: 2008 | D85: Méaulte | E85: Cerisy A | F85: 1 | G85: 3 | H85: Coupe de France | I85: Victoire | J85: 1
A86: 7 | B86: 9 | C86: 2008 | D86: Vers sur Selle | E86: Cerisy A | F86: 1 | G86: 5 | H86: Championnat 1ère Division | I86: Victoire | J86: 1
A87: 14 | B87: 9 | C87: 2008 | D87: Cerisy A | E87: Albert Sport 2 | F87: 3 | G87: 0 | H87: Championnat 1ère Division | I87: Victoire | J87: 1
A88: 21 | B88: 9 | C88: 2008 | D88: Cerisy A | E88: Buire Hirson | F88: 1 | G88: 1 | H88: Coupe de France | I88: Victoire | J88: 1
A89: 28 | B89: 9 | C89: 2008 | D89: Moreuil | E89: Cerisy A | F89: 2 | G89: 0 | H89: Championnat 1ère Division | I89: Défaite | J89: 1
A90: 5 | B90: 10 | C90: 2008 | D90: Cerisy A | E90: Ribécourt | F90: 2 | G90: 3 | H90: Coupe de France | I90: Défaite | J90: 1
A91: 12 | B91: 10 | C91: 2008 | D91: Cerisy A | E91: Saleux | F91: 2 | G91: 0 | H91: Championnat 1ère Division | I91: Victoire | J91: 1
A92: 19 | B92: 10 | C92: 2008 | D92: Amiens RIF 2 | E92: Cerisy A | F92: 1 | G92: 1 | H92: Coupe de la Somme | I92: Victoire | J92: 1
A93: 26 | B93: 10 | C93: 2008 | D93: Amiens Portugais | E93: Cerisy A | F93: 0 | G93: 1 | H93: Championnat 1ère Division | I93: Victoire | J93: 1
A94: 2 | B94: 11 | C94: 2008 | D94: Cerisy A | E94: Péronne 2 | F94: 1 | G94: 0 | H94: Championnat 1ère Division | I94: Victoire | J94: 1
A95: 9 | B95: 11 | C95: 2008 | D95: Cerisy A | E95: Ham | F95: 4 | G95: 0 | H95: Championnat 1ère Division | I95: Victoire | J95: 1
A96: 11 | B96: 11 | C96: 2008 | D96: Cerisy A | E96: Villers Bretonneux | F96: 3 | G96: 2 | H96: Coupe de la Somme | I96: Victoire | J96: 1
A97: 16 | B97: 11 | C97: 2008 | D97: Sailly Saillisel | E97: Cerisy A | F97: 3 | G97: 0 | H97: Championnat 1ère Division | I97: Défaite | J97: 1
A98: 30 | B98: 11 | C98: 2008 | D98: Cerisy A | E98: Flesselles | F98: 6 | G98: 3 | H98: Championnat 1ère Division | I98: Victoire | J98: 1
A99: 21 | B99: 12 | C99: 2008 | D99: Poulainville | E99: Cerisy A | F99: 0 | G99: 4 | H99: Coupe de la Somme | I99: Victoire | J99: 1
A100: 1 | B100: 2 | C100: 2009 | D100: Templier Oisemont | E100: Cerisy A | F100: 0 | G100: 3 | H100: Challenge Galland | I100: Victoire | J100: 1
A101: 15 | B101: 2 | C101: 2009 | D101: Sainte Emilie | E101: Cerisy A | F101: 2 | G101: 1 | H101: Championnat 1ère Division | I101: Défaite | J101: 1
A102: 22 | B102: 2 | C102: 2009 | D102: Cerisy A | E102: Vers sur Selle | F102: 3 | G102: 0 | H102: Championnat 1ère Division | I102: Victoire | J102: 1
A103: 1 | B103: 3 | C103: 2009 | D103: Englebelmer | E103: Cerisy A | F103: 0 | G103: 0 | H103: Championnat 1ère Division | I103: Nul | J103: 1
A104: 8 | B104: 3 | C104: 2009 | D104: Albert Sport 2 | E104: Cerisy A | F104: 1 | G104: 0 | H104: Championnat 1ère Division | I104: Défaite | J104: 1
A105: 15 | B105: 3 | C105: 2009 | D105: Cerisy A | E105: Moreuil | F105: 3 | G105: 1 | H105: Championnat 1ère Division | I105: Victoire | J105: 1
A106: 22 | B106: 3 | C106: 2009 | D106: Saleux | E106: Cerisy A | F106: 2 | G106: 1 | H106: Championnat 1ère Division | I106: Défaite | J106: 1
A107: 29 | B107: 3 | C107: 2009 | D107: Cerisy A | E107: Avenir Croisien | F107: 5 | G107: 2 | H107: Challenge Galland | I107: Victoire | J107: 1
A108: 5 | B108: 4 | C108: 2009 | D108: Cerisy A | E108: Amiens Portugais | F108: 1 | G108: 2 | H108: Championnat 1ère Division | I108: Défaite | J108: 1
A109: 13 | B109: 4 | C109: 2009 | D109: Cerisy A | E109: Amiens AC | F109: 0 | G109: 4 | H109: Coupe de la Somme | I109: Défaite | J109: 1
A110: 19 | B110: 4 | C110: 2009 | D110: Ham | E110: Cerisy A | F110: 0 | G110: 1 | H110: Championnat 1ère Division | I110: Victoire | J110: 1
A111: 26 | B111: 4 | C111: 2009 | D111: Cerisy A | E111: Sailly Saillisel | F111: 4 | G111: 1 | H111: Championnat 1ère Division | I111: Victoire | J111: 1
A112: 3 | B112: 5 | C112: 2009 | D112: Flesselles | E112: Cerisy A | F112: 1 | G112: 0 | H112: Championnat 1ère Division | I112: Défaite | J112: 1
A113: 8 | B113: 5 | C113: 2009 | D113: Miannay | E113: Cerisy A | F113: 2 | G113: 1 | H113: Challenge Galland | I113: Défaite | J113: 1
A114: 10 | B114: 5 | C114: 2009 | D114: Cerisy A | E114: Sainte Emilie | F114: 1 | G114: 0 | H114: Championnat 1ère Division | I114: Victoire | J114: 1
A115: 17 | B115: 5 | C115: 2009 | D115: Péronne 2 | E115: Cerisy A | F115: 2 | G115: 3 | H115: Championnat 1ère Division | I115: Victoire | J115: 1
A116: 24 | B116: 5 | C116: 2009 | D116: Cerisy A | E116: Englebelmer | F116: 2 | G116: 1 | H116: Championnat 1ère Division | I116: Victoire | J116: 1
A117: 14 | B117: 6 | C117: 2009 | D117: Moislains | E117: Cerisy A | F117: 1 | G117: 5 | H117: Coupe de France | I117: Victoire | J117: 1
A118: 30 | B118: 8 | C118: 2009 | D118: Cerisy A | E118: Amiens FC | F118: 0 | G118: 2 | H118: Coupe de France | I118: Défaite | J118: 1
A119: 6 | B119: 9 | C119: 2009 | D119: Ribemont | E119: Cerisy A | F119: 2 | G119: 1 | H119: Championnat 1ère Division | I119: Défaite | J119: 1
A120: 13 | B120: 9 | C120: 2009 | D120: Cerisy A | E120: Poulainville | F120: 4 | G120: 1 | H120: Championnat 1ère Division | I120: Victoire | J120: 1
A121: 20 | B121: 9 | C121: 2009 | D121: Cerisy A | E121: Allonvilles | F121: 4 | G121: 0 | H121: Coupe de la Somme | I121: Victoire | J121: 1
A122: 27 | B122: 9 | C122: 2009 | D122: Amiens AC 3 | E122: Cerisy A | F122: 0 | G122: 3 | H122: Championnat 1ère Division | I122: Victoire | J122: 1
A123: 4 | B123: 10 | C123: 2009 | D123: Amiens Condorcet | E123: Cerisy A | F123: 2 | G123: 0 | H123: Coupe de la Somme | I123: Défaite | J123: 1
A124: 11 | B124: 10 | C124: 2009 | D124: Cerisy A | E124: Amiens RC 2 | F124: 0 | G124: 3 | H124: Championnat 1ère Division | I124: Défaite | J124: 1
A125: 18 | B125: 10 | C125: 2009 | D125: Cerisy A | E125: Longueau | F125: 1 | G125: 1 | H125: Coupe de Picardie | I125: Victoire | J125: 1
A126: 25 | B126: 10 | C126: 2009 | D126: Sailly Saillisel | E126: Cerisy A | F126: 1 | G126: 0 | H126: Championnat 1ère Division | I126: Défaite | J126: 1
A127: 1 | B127: 11 | C127: 2009 | D127: Cerisy A | E127: Guise | F127: 3 | G127: 4 | H127: Coupe de Picardie | I127: Défaite | J127: 1
A128: 11 | B128: 11 | C128: 2009 | D128: Englebelmer | E128: Cerisy A | F128: 4 | G128: 2 | H128: Championnat 1ère Division | I128: Défaite | J128: 1
A129: 15 | B129: 11 | C129: 2009 | D129: Querrieu | E129: Cerisy A | F129: 2 | G129: 0 | H129: Championnat 1ère Division | I129: Défaite | J129: 1
A130: 22 | B130: 11 | C130: 2009 | D130: Saint St Fuscien | E130: Cerisy A | F130: 2 | G130: 1 | H130: Challenge du District | I130: Défaite | J130: 1
A131: 21 | B131: 2 | C131: 2010 | D131: Cerisy A | E131: Corbie | F131: 3 | G131: 5 | H131: Championnat 1ère Division | I131: Défaite | J131: 1
A132: 7 | B132: 3 | C132: 2010 | D132: Cerisy A | E132: Moreuil | F132: 1 | G132: 0 | H132: Championnat 1ère Division | I132: Victoire | J132: 1
A133: 14 | B133: 3 | C133: 2010 | D133: Flesselles | E133: Cerisy A | F133: 0 | G133: 0 | H133: Championnat 1ère Division | I133: Nul | J133: 1
A134: 21 | B134: 3 | C134: 2010 | D134: Cerisy A | E134: Ribemont | F134: 4 | G134: 1 | H134: Championnat 1ère Division | I134: Victoire | J134: 1
A135: 4 | B135: 4 | C135: 2010 | D135: Cerisy A | E135: Sainte Emilie | F135: 1 | G135: 0 | H135: Championnat 1ère Division | I135: Victoire | J135: 1
A136: 11 | B136: 4 | C136: 2010 | D136: Cerisy A | E136: Amiens AC 3 | F136: 3 | G136: 0 | H136: Championnat 1ère Division | I136: Victoire | J136: 1 | K136: Forfait Amiens
A137: 18 | B137: 4 | C137: 2010 | D137: Amiens RC 2 | E137: Cerisy A | F137: 0 | G137: 0 | H137: Championnat 1ère Division | I137: Nul | J137: 1
A138: 25 | B138: 4 | C138: 2010 | D138: Cerisy A | E138: Sailly Saillisel | F138: 2 | G138: 1 | H138: Championnat 1ère Division | I138: Victoire | J138: 1
A139: 2 | B139: 5 | C139: 2010 | D139: Sainte Emilie | E139: Cerisy A | F139: 1 | G139: 1 | H139: Championnat 1ère Division | I139: Nul | J139: 1
A140: 9 | B140: 5 | C140: 2010 | D140: Cerisy A | E140: Querrieu | F140: 0 | G140: 1 | H140: Championnat 1ère Division | I140: Défaite | J140: 1
A141: 13 | B141: 5 | C141: 2010 | D141: Cerisy A | E141: Flesselles | F141: 3 | G141: 0 | H141: Championnat 1ère Division | I141: Victoire | J141: 1
A142: 16 | B142: 5 | C142: 2010 | D142: Corbie | E142: Cerisy A | F142: 0 | G142: 4 | H142: Championnat 1ère Division | I142: Victoire | J142: 1
A143: 30 | B143: 5 | C143: 2010 | D143: Marchelepot | E143: Cerisy A | F143: 1 | G143: 2 | H143: Coupe de France | I143: Victoire | J143: 1
A144: 6 | B144: 6 | C144: 2010 | D144: Cerisy A | E144: Englebelmer | F144: 3 | G144: 0 | H144: Championnat 1ère Division | I144: Victoire | J144: 1
A145: 13 | B145: 6 | C145: 2010 | D145: Moreuil | E145: Cerisy A | F145: 4 | G145: 1 | H145: Championnat 1ère Division | I145: Défaite | J145: 1
A146: 28 | B146: 8 | C146: 2010 | D146: Le Hamel | E146: Cerisy A | F146: 1 | G146: 2 | H146: Coupe de France | I146: Victoire | J146: 1
A147: 5 | B147: 9 | C147: 2010 | D147: Sailly Saillisel | E147: Cerisy A | F147: 0 | G147: 0 | H147: Championnat 1ère Division | I147: Nul | J147: 1
A148: 12 | B148: 9 | C148: 2010 | D148: Cerisy A | E148: Longueau 2 | F148: 1 | G148: 0 | H148: Championnat 1ère Division | I148: Victoire | J148: 1
A149: 19 | B149: 9 | C149: 2010 | D149: Ailly sur Noye | E149: Cerisy A | F149: 1 | G149: 4 | H149: Coupe de la Somme | I149: Victoire | J149: 1
A150: 27 | B150: 9 | C150: 2010 | D150: Moreuil | E150: Cerisy A | F150: 0 | G150: 2 | H150: Championnat 1ère Division | I150: Victoire | J150: 1
A151: 3 | B151: 10 | C151: 2010 | D151: Marcelcave | E151: Cerisy A | F151: 1 | G151: 5 | H151: Coupe de la Somme | I151: Victoire | J151: 1
A152: 10 | B152: 10 | C152: 2010 | D152: Cerisy A | E152: Daours | F152: 3 | G152: 3 | H152: Championnat 1ère Division | I152: Nul | J152: 1
A153: 17 | B153: 10 | C153: 2010 | D153: Cerisy A | E153: Blangy Tronville | F153: 2 | G153: 0 | H153: Coupe de la Somme | I153: Victoire | J153: 1
A154: 31 | B154: 10 | C154: 2010 | D154: Cerisy A | E154: Amiens Portugais | F154: 2 | G154: 3 | H154: Championnat 1ère Division | I154: Défaite | J154: 1
A155: 7 | B155: 11 | C155: 2010 | D155: Cerisy A | E155: Chaulnes | F155: 2 | G155: 1 | H155: Championnat 1ère Division | I155: Victoire | J155: 1
A156: 11 | B156: 11 | C156: 2010 | D156: Amiens RC 2 | E156: Cerisy A | F156: 1 | G156: 4 | H156: Championnat 1ère Division | I156: Victoire | J156: 1
A157: 28 | B157: 11 | C157: 2010 | D157: Cerisy A | E157: Sainte Emilie | F157: 4 | G157: 0 | H157: Championnat 1ère Division | I157: Victoire | J157: 1
A158: 17 | B158: 1 | C158: 2011 | D158: US Abbeville | E158: Cerisy A | F158: 2 | G158: 4 | H158: Coupe de la Somme | I158: Victoire | J158: 1
A159: 23 | B159: 1 | C159: 2011 | D159: Méaulte | E159: Cerisy A | F159: 2 | G159: 2 | H159: Challenge Galland | I159: Nul | J159: 1 | K159: Victoire 7 tàb à 6
A160: 30 | B160: 1 | C160: 2011 | D160: Amiens Pigeonnier 2 | E160: Cerisy A | F160: 2 | G160: 1 | H160: Championnat 1ère Division | I160: Défaite | J160: 1
A161: 6 | B161: 2 | C161: 2011 | D161: Englebelmer | E161: Cerisy A | F161: 0 | G161: 2 | H161: Championnat 1ère Division | I161: Victoire | J161: 1
A162: 13 | B162: 2 | C162: 2011 | D162: Cerisy A | E162: Sailly Saillisel | F162: 2 | G162: 0 | H162: Championnat 1ère Division | I162: Victoire | J162: 1
A163: 20 | B163: 2 | C163: 2011 | D163: Ribemont | E163: Cerisy A | F163: 2 | G163: 0 | H163: Championnat 1ère Division | I163: Défaite | J163: 1
A164: 27 | B164: 2 | C164: 2011 | D164: Longueau 2 | E164: Cerisy A | F164: 4 | G164: 2 | H164: Championnat 1ère Division | I164: Défaite | J164: 1
A165: 2 | B165: 3 | C165: 2011 | D165: Harondel | E165: Cerisy A | F165: 2 | G165: 1 | H165: Coupe de la Somme | I165: Défaite | J165: 1
A166: 6 | B166: 3 | C166: 2011 | D166: Cerisy A | E166: Moreuil | F166: 2 | G166: 1 | H166: Championnat 1ère Division | I166: Victoire | J166: 1
A167: 20 | B167: 3 | C167: 2011 | D167: Daours | E167: Cerisy A | F167: 0 | G167: 1 | H167: Championnat 1ère Division | I167: Victoire | J167: 1
A168: 27 | B168: 3 | C168: 2011 | D168: Cerisy A | E168: Amiens RC 2 | F168: 2 | G168: 1 | H168: Championnat 1ère Division | I168: Victoire | J168: 1
A169: 3 | B169: 4 | C169: 2011 | D169: Cerisy A | E169: US Abbeville | F169: 2 | G169: 0 | H169: Challenge Galland | I169: Victoire | J169: 1
A170: 10 | B170: 4 | C170: 2011 | D170: Chaulnes | E170: Cerisy A | F170: 0 | G170: 1 | H170: Championnat 1ère Division | I170: Victoire | J170: 1
A171: 17 | B171: 4 | C171: 2011 | D171: Cerisy A | E171: Amiens Pigeonnier 2 | F171: 0 | G171: 0 | H171: Championnat 1ère Division | I171: Nul | J171: 1
A172: 27 | B172: 4 | C172: 2011 | D172: Cerisy A | E172: Amiens RC 1 | F172: 0 | G172: 0 | H172: Challenge Galland | I172: Nul | J172: 1 | K172: Défaite TAB 4 - 3 (1/2 finale)
A173: 1 | B173: 5 | C173: 2011 | D173: Sainte Emilie | E173: Cerisy A | F173: 0 | G173: 1 | H173: Championnat 1ère Division | I173: Victoire | J173: 1
A174: 8 | B174: 5 | C174: 2011 | D174: Cerisy A | E174: Englebelmer | F174: 8 | G174: 1 | H174: Championnat 1ère Division | I174: Victoire | J174: 1
A175: 15 | B175: 5 | C175: 2011 | D175: Cerisy A | E175: Ribemont | F175: 3 | G175: 2 | H175: Championnat 1ère Division | I175: Victoire | J175: 1
A176: 28 | B176: 5 | C176: 2011 | D176: Amiens Portugais | E176: Cerisy A | F176: 1 | G176: 1 | H176: Championnat 1ère Division | I176: Nul | J176: 1
A177: 11 | B177: 6 | C177: 2011 | D177: Cerisy A | E177: Villers Bretonneux | F177: 1 | G177: 0 | H177: Coupe de France | I177: Victoire | J177: 1
A178: 28 | B178: 8 | C178: 2011 | D178: Cerisy A | E178: Montdidier Ac | F178: 2 | G178: 1 | H178: Coupe de France | I178: Victoire | J178: 1
A179: 4 | B179: 9 | C179: 2011 | D179: Cerisy A | E179: Moreuil | F179: 1 | G179: 1 | H179: Championnat 1ère Division | I179: Nul | J179: 1
A180: 11 | B180: 9 | C180: 2011 | D180: Sains St Fuscien | E180: Cerisy A | F180: 0 | G180: 0 | H180: Championnat 1ère Division | I180: Nul | J180: 1
A181: 18 | B181: 9 | C181: 2011 | D181: Angy Fc (oise) | E181: Cerisy A | F181: 1 | G181: 1 | H181: Coupe de France | I181: Nul | J181: 1 | K181: Victoire 6 tàb à 5
A182: 25 | B182: 9 | C182: 2011 | D182: Cerisy A | E182: Amiens Pigeonnier 2 | F182: 5 | G182: 0 | H182: Championnat 1ère Division | I182: Victoire | J182: 1 | K182: match arrêté 35' (joueurs sortis)
A183: 2 | B183: 10 | C183: 2011 | D183: Cerisy A | E183: Péronne 1 | F183: 1 | G183: 0 | H183: Coupe de France | I183: Victoire | J183: 1
A184: 9 | B184: 10 | C184: 2011 | D184: Longueau 2 | E184: Cerisy A | F184: 0 | G184: 0 | H184: Championnat 1ère Division | I184: Nul | J184: 1
A185: 16 | B185: 10 | C185: 2011 | D185: Cerisy A | E185: Ol Saint-Quentin | F185: 1 | G185: 3 | H185: Coupe de France | I185: Défaite | J185: 1
A186: 23 | B186: 10 | C186: 2011 | D186: Cerisy A | E186: Saleux | F186: 1 | G186: 4 | H186: Championnat 1ère Division | I186: Défaite | J186: 1
A187: 30 | B187: 10 | C187: 2011 | D187: Daours | E187: Cerisy A | F187: 2 | G187: 3 | H187: Championnat 1ère Division | I187: Victoire | J187: 1 | M187: =SUM(J3:J249) -> 191
A188: 1 | B188: 11 | C188: 2011 | D188: Montdidier Ac | E188: Cerisy A | F188: 1 | G188: 0 | H188: Coupe de la Somme | I188: Défaite | J188: 1
A189: 6 | B189: 11 | C189: 2011 | D189: Cerisy A | E189: Corbie | F189: 2 | G189: 0 | H189: Championnat 1ère Division | I189: Victoire | J189: 1
A190: 13 | B190: 11 | C190: 2011 | D190: Querrieu | E190: Cerisy A | F190: 1 | G190: 2 | H190: Championnat 1ère Division | I190: Victoire | J190: 1
A191: 26 | B191: 11 | C191: 2011 | D191: Cerisy A | E191: Ribemont | F191: 4 | G191: 1 | H191: Championnat 1ère Division | I191: Victoire | J191: 1
A192: 4 | B192: 12 | C192: 2011 | D192: Asp Neslois | E192: Cerisy A | F192: 1 | G192: 1 | H192: Championnat 1ère Division | I192: Nul | J192: 1
A193: 8 | B193: 1 | C193: 2012 | D193: Cerisy A | E193: Ailly sur Somme 2 | F193: 1 | G193: 2 | H193: Challenge du District | I193: Défaite | J193: 1

Sheet Buteurs Club
A1: ASSOCIATION SPORTIVE DE CERISY GAILLY
A2: SAISON SENIORS 2011-2012
A3: SUIVI STATISTIQUE - SENIORS A & B
B5: Championnats : | F5: 1ère division / 3ème division | M5: Stade : | P5: rue du marais - 80800 Cerisy | Y5: Site internet : | AB5: as-cerisy.footeo.com
B7: Entraîneur : | F7: DUPUTEL David | N7: Adjoint : | R7: DUBOIS Sébastien | Z7: Coach B : | AD7: DEFOSSEZ Martial
F8: duputel.david@gmail.com | R8: sebastien.dubois@aerolia.com | AD8: martial.defossez@wanadoo.fr
F9: Tél : 03.22.96.00.51 / 06.17.16.09.47 | R9: Tél : 03.22.05.83.80 / 06.73.82.67.81 | AD9: Tél : 03.22.76.61.50
I13: NOMS / PRENOMS | O13: 1989-1990 | R13: 2006-2007 | U13: 2007-2008 | X13: 2008-2009 | AA13: 2009-2010 | AD13: 2010-2011 | AG13: 2011-2012 | AJ13: TOTAUX
I14: RANVIN Lori | R14: 8 | U14: 20 | X14: 15 | AA14: 11 | AD14: 9 | AG14: 7 | AJ14: =SUM(N14:AG14) -> 70
I15: MASCRE Ghislain | O15: 2 | U15: 8 | X15: 12 | AA15: 20 | AD15: 14 | AJ15: 56
I16: LEDOUX Alexis | R16: 21 | X16: 9 | AA16: 13 | AD16: 3 | AG16: 7 | AJ16: 53
I17: ALBERT Christophe | R17: 12 | U17: 15 | X17: 7 | AA17: 5 | AJ17: 39
I18: JOSSE Grégory | R18: 3 | U18: 4 | X18: 16 | AA18: 5 | AD18: 1 | AG18: 7 | AJ18: 36
I19: DUPONT Kévin | U19: 5 | X19: 6 | AA19: 5 | AD19: 11 | AG19: 8 | AJ19: 35
I20: LEDUC Thomas | R20: 5 | X20: 13 | AA20: 9 | AJ20: 27
I21: MOURIER Frédéric | O21: 25 | AJ21: 25
I22: CARETTE Cédric | X22: 10 | AA22: 9 | AD22: 3 | AG22: 3 | AJ22: 25
I23: JUREK Raynald | O23: 24 | AJ23: 24
I24: MUNOZ Sébastien | X24: 12 | AA24: 2 | AD24: 9 | AJ24: 23
I25: HENOCQUE Ludovic | R25: 1 | U25: 8 | X25: 2 | AA25: 1 | AD25: 3 | AJ25: 15
I26: BERTON Thibault | X26: 4 | AA26: 1 | AD26: 5 | AG26: 5 | AJ26: 15
I27: BEYAERT François | X27: 11 | AA27: 2 | AJ27: 13
I28: BEYAERT Antoine | R28: 3 | U28: 3 | X28: 5 | AD28: 1 | AJ28: 12
I29: LEWILLON Franck | O29: 12 | AJ29: 12
I30: DUBOIS Sébastien | R30: 2 | U30: 2 | AA30: 2 | AD30: 4 | AG30: 2 | AJ30: 12
I31: DIEVAL Samuel | R31: 2 | U31: 7 | X31: 2 | AJ31: 11
I32: DEFOSSEZ Martial | O32: 11 | AJ32: 11
I33: WAQUET Ludovic | AD33: 10 | AJ33: 10
I34: COURTOIS Kévin | X34: 3 | AA34: 1 | AD34: 6 | AJ34: 10
I35: LUCQUET Eric | R35: 5 | U35: 1 | X35: 1 | AA35: 1 | AD35: 1 | AG35: 1 | AJ35: 10
I36: DEFOSSEZ Rémi | U36: 2 | X36: 5 | AA36: 1 | AD36: 1 | AJ36: 9
I37: MACAREL Maurice | X37: 8 | AJ37: 8
I38: DUBOIS Aurélien | U38: 8 | AJ38: 8
I39: DEMAILLY Pascal | U39: 6 | X39: 1 | AJ39: 7
I40: RANVIN Rémi | X40: 1 | AA40: 2 | AD40: 4 | AJ40: 7
I41: JEROME Vincent | AD41: 5 | AG41: 2 | AJ41: 7
I42: LAROUETTE Yann | AD42: 1 | AG42: 6 | AJ42: 7
I43: TERRIER Florent | R43: 1 | X43: 1 | AA43: 1 | AD43: 3 | AJ43: 6
I44: DENGREVILLE Bruno | O44: 6 | AJ44: 6
I45: LELOIR Laurent | O45: 6 | AJ45: 6
I46: HOT Guillaume | AD46: 6 | AJ46: =SUM(N46:AG46) -> 6
I47: MACAREL Julien | X47: 5 | AJ47: 5
I48: PLESNAGE Jérôme | AA48: 4 | AG48: 1 | AJ48: 5
I49: MAURICE Fabian | AD49: 2 | AG49: 3 | AJ49: 5
I50: HINAUT Frédéric | R50: 4 | AJ50: 4
I51: COLCY Ludovic | U51: 4 | AJ51: 4
I52: CARON Thomas | X52: 1 | AA52: 3 | AJ52: 4
I53: LANTERNE Erwan | AA53: 3 | AG53: 1 | AJ53: 4
I54: GOTTIS Thomas | AG54: 4 | AJ54: 4
I55: THIBAULT Jonathan | AD55: 3 | AJ55: 3
I56: DUFLOT Alexandre | R56: 1 | U56: 1 | X56: 1 | AJ56: 3
I57: DEHAIE Arnaud | U57: 3 | AJ57: 3
I58: BLIR David | R58: 3 | AJ58: 3
I59: de BRUYNE Thierry | R59: 1 | AA59: 1 | AD59: 1 | AJ59: 3
I60: LARGILLIERE Franck | U60: 2 | AD60: 1 | AJ60: 3
I61: DECLE Jérôme | AD61: 1 | AG61: 2 | AJ61: 3
I62: DUQUENOY Loïc | U62: 1 | X62: 1 | AJ62: 2
I63: DEMAISON Clément | U63: 1 | X63: 1 | AJ63: 2
I64: COFFINIER Mickaël | AA64: 2 | AJ64: 2
I65: JUREK Franck | O65: 2 | AJ65: 2
I66: CAPELLE Stéphane | AG66: 2 | AJ66: 2
I67: LEVI Cédric | AG67: 2 | AJ67: 2
I68: TINENCOURT Jérôme | U68: 1 | AJ68: 1
I69: LEDOUX Grégory | U69: 1 | AJ69: 1
I70: FOLOLO Eric | R70: 1 | AJ70: 1
I71: DHIU Alexandre | X71: 1 | AJ71: 1
I72: DENEEF Aurélien | U72: 1 | AJ72: 1
I73: DELETREZ Fabien | U73: 1 | AJ73: 1
I74: CHARTON Gaëtan | X74: 1 | AJ74: 1
I75: BRICOUT Alexandre | U75: 1 | AJ75: 1
I76: BOSCO Alexis | AA76: 1 | AJ76: 1
I77: BARON Stéphane | X77: 1 | AJ77: 1
I78: AMARIAS Yannick | AA78: 1 | AJ78: =SUM(N78:AG78) -> 1
I79: AINCE Philippe | AA79: 1 | AJ79: 1
I80: COQUET Cyril | AA80: 1 | AJ80: 1
I81: GRENIER Jacques | O81: 1 | AJ81: 1
I82: OBATTON Laurent | O82: 1 | AJ82: 1
I83: BAUDHUIN Jean-François | O83: 1 | AJ83: 1
I84: DELPORTE Bernard | O84: 1 | AJ84: 1
I85: MARESCAUX Frédéric | O85: 1 | AJ85: 1
I86: MARTINS Rudy | AG86: 1 | AJ86: 1
I87: CHABA Cory | AG87: 1 | AJ87: 1
I88: BORCK Stéphane | AG88: 1 | AJ88: 1
I89: PITARCH Boris | AG89: 1 | AJ89: 1
AJ90: 0
I92: =SUM(O92:AG92) -> 711 | O92: =SUM(O14:O91) -> 93 | R92: =SUM(R14:R91) -> 73 | U92: =SUM(U14:U91) -> 106 | X92: =SUM(X14:X91) -> 156 | AA92: =SUM(AA14:AA91) -> 108 | AD92: =SUM(AD14:AD91) -> 108 | AG92: =SUM(AG14:AG91) -> 67 | AJ92: =SUM(AJ14:AJ91) -> 711

Sheet Passeurs Club
A1: ASSOCIATION SPORTIVE DE CERISY GAILLY
A2: SAISON SENIORS 2011-2012
A3: SUIVI STATISTIQUE - SENIORS A & B
B5: Championnats : | F5: 1ère division / 3ème division | M5: Stade : | P5: rue du marais - 80800 Cerisy | Y5: Site internet : | AB5: as-cerisy.footeo.com
B7: Entraîneur : | F7: DUPUTEL David | N7: Adjoint : | R7: DUBOIS Sébastien | Z7: Coach B : | AD7: DEFOSSEZ Martial
F8: duputel.david@gmail.com | R8: sebastien.dubois@aerolia.com | AD8: martial.defossez@wanadoo.fr
F9: Tél : 03.22.96.00.51 / 06.17.16.09.47 | R9: Tél : 03.22.05.83.80 / 06.73.82.67.81 | AD9: Tél : 03.22.76.61.50
J13: NOMS / PRENOMS | O13: 2006-2007 | R13: 2007-2008 | U13: 2008-2009 | X13: 2009-2010 | AA13: 2010-2011 | AD13: 2011-2012 | AG13: TOTAUX
J14: LEDOUX Alexis | O14: 13 | U14: 6 | X14: 7 | AA14: 4 | AD14: 4 | AG14: =SUM(N14:AD14) -> 34
J15: DEFOSSEZ Rémi | R15: 3 | U15: 10 | X15: 9 | AA15: 3 | AD15: 1 | AG15: =SUM(N15:AD15) -> 26
J16: JOSSE Grégory | U16: 10 | X16: 4 | AA16: 5 | AD16: 7 | AG16: =SUM(N16:AD16) -> 26
J17: MUNOZ Sébastien | U17: 9 | X17: 8 | AA17: 8 | AG17: =SUM(N17:AD17) -> 25
J18: MASCRE Ghislain | R18: 2 | U18: 12 | X18: 7 | AA18: 4 | AG18: =SUM(N18:AD18) -> 25
J19: DUPONT Kévin | U19: 4 | X19: 4 | AA19: 14 | AD19: 3 | AG19: =SUM(N19:AD19) -> 25
J20: DEMAILLY Pascal | R20: 11 | U20: 9 | AG20: =SUM(N20:AD20) -> 20
J21: DUBOIS Sébastien | O21: 3 | R21: 7 | X21: 4 | AA21: 4 | AD21: 2 | AG21: =SUM(N21:AD21) -> 20
J22: RANVIN Lori | O22: 2 | R22: 2 | X22: 6 | AA22: 2 | AD22: 8 | AG22: =SUM(N22:AD22) -> 20
J23: BLIR David | O23: 16 | AG23: =SUM(N23:AD23) -> 16
J24: ALBERT Christophe | O24: 4 | R24: 8 | U24: 3 | AG24: =SUM(N24:AD24) -> 15
J25: RANVIN Rémi | R25: 2 | U25: 2 | X25: 3 | AA25: 7 | AG25: =SUM(N25:AD25) -> 14
J26: MACAREL Maurice | U26: 13 | AG26: =SUM(N26:AD26) -> 13
J27: BEYAERT Antoine | O27: 2 | R27: 1 | U27: 5 | X27: 1 | AA27: 4 | AG27: =SUM(N27:AD27) -> 13
J28: HENOCQUE Ludovic | O28: 3 | R28: 1 | U28: 5 | X28: 2 | AA28: 1 | AD28: 1 | AG28: =SUM(N28:AD28) -> 13
J29: COURTOIS Kévin | U29: 5 | X29: 2 | AA29: 5 | AG29: =SUM(N29:AD29) -> 12
J30: LUCQUET Eric | O30: 2 | R30: 4 | U30: 1 | AA30: 2 | AG30: =SUM(N30:AD30) -> 9
J31: BERTON Thibault | R31: 1 | U31: 4 | X31: 3 | AD31: 1 | AG31: =SUM(N31:AD31) -> 9
J32: CARETTE Cédric | R32: 2 | U32: 3 | X32: 1 | AA32: 1 | AD32: 2 | AG32: =SUM(N32:AD32) -> 9
J33: DEHAIE Arnaud | R33: 8 | AG33: =SUM(N33:AD33) -> 8
J34: TERRIER Florent | R34: 3 | U34: 1 | X34: 1 | AA34: 1 | AD34: 2 | AG34: =SUM(N34:AD34) -> 8
J35: BEYAERT François | U35: 4 | X35: 2 | AG35: =SUM(N35:AD35) -> 6
J36: DUFLOT Alexandre | R36: 2 | U36: 4 | AG36: =SUM(N36:AD36) -> 6
J37: LEDUC Thomas | U37: 3 | X37: 3 | AG37: =SUM(N37:AD37) -> 6
J38: WAQUET Ludovic | AA38: 5 | AG38: =SUM(N38:AD38) -> 5
J39: LAROUETTE Yann | X39: 1 | AA39: 3 | AD39: 1 | AG39: =SUM(N39:AD39) -> 5
J40: JEROME Vincent | AA40: 4 | AD40: 1 | AG40: =SUM(N40:AD40) -> 5
J41: LEVI Cédric | AD41: 5 | AG41: =SUM(N41:AD41) -> 5
J42: DEFOSSEZ Aurélien | R42: 4 | AG42: =SUM(N42:AD42) -> 4
J43: DENEEF Aurélien | R43: 4 | AG43: =SUM(N43:AD43) -> 4
J44: DIEVAL Samuel | R44: 4 | AG44: =SUM(N44:AD44) -> 4
J45: FOLOLO Eric | O45: 4 | AG45: =SUM(N45:AD45) -> 4
J46: LEDOUX Grégory | O46: 1 | R46: 3 | AG46: =SUM(N46:AD46) -> 4
J47: PLESNAGE Jérôme | X47: 4 | AG47: =SUM(N47:AD47) -> 4
J48: AMARIAS Yannick | X48: 1 | AA48: 3 | AG48: =SUM(N48:AD48) -> 4
J49: DECLE Jérôme | AA49: 2 | AD49: 2 | AG49: =SUM(N49:AD49) -> 4
J50: BOSCO Alexis | X50: 3 | AG50: =SUM(N50:AD50) -> 3
J51: HINAUT Frédéric | O51: 3 | AG51: =SUM(N51:AD51) -> 3
J52: MACAREL Julien | U52: 3 | AG52: =SUM(N52:AD52) -> 3
J53: LANTERNE Erwan | X53: 3 | AG53: =SUM(N53:AD53) -> 3
J54: de BRUYNE Thierry | O54: 1 | U54: 1 | AA54: 1 | AG54: =SUM(N54:AD54) -> 3
J55: DARQUET Sylvain | U55: 1 | X55: 1 | AA55: 1 | AG55: =SUM(N55:AD55) -> 3
J56: DUQUENOY Loïc | U56: 2 | AD56: 1 | AG56: =SUM(N56:AD56) -> 3
J57: COLCY Ludovic | R57: 1 | U57: 1 | AG57: =SUM(N57:AD57) -> 2
J58: DHIU Alexandre | R58: 1 | U58: 1 | AG58: =SUM(N58:AD58) -> 2
J59: DUBOIS Aurélien | R59: 2 | AG59: =SUM(N59:AD59) -> 2
J60: REVAUX Sylvain | R60: 1 | X60: 1 | AG60: =SUM(N60:AD60) -> 2
J61: THIBAULT Jonathan | AA61: 2 | AG61: =SUM(N61:AD61) -> 2
J62: PITARCH Boris | AD62: 2 | AG62: =SUM(N62:AD62) -> 2
J63: CAPELLE Stéphane | AD63: 2 | AG63: =SUM(N63:AE63) -> 2
J64: AINCE Philippe | X64: 1 | AG64: =SUM(N64:AD64) -> 1
J65: DEMAISON Clément | R65: 1 | AG65: =SUM(N65:AD65) -> 1
J66: LARGILLIERE Franck | R66: 1 | AG66: =SUM(N66:AD66) -> 1
J67: TINENCOURT Jérôme | R67: 1 | AG67: =SUM(N67:AD67) -> 1
J68: HOT Guillaume | AA68: 1 | AG68: =SUM(N68:AD68) -> 1
J69: de BRUYNE Rudy | AA69: 1 | AG69: =SUM(N69:AD69) -> 1
J70: DELPLANQUE Maxime | AD70: 1 | AG70: =SUM(N70:AD70) -> 1
J71: FAQUI Alexandre | AD71: 1 | AG71: =SUM(N71:AD71) -> 1
J72: GOTTIS Thomas | AD72: 1 | AG72: =SUM(N72:AD72) -> 1
AG73: =SUM(N73:AD73) -> 0
AG74: =SUM(N74:AD74) -> 0
AG75: =SUM(N75:AD75) -> 0
AG76: =SUM(N76:AD76) -> 0
AG77: =SUM(N77:AD77) -> 0
AG78: =SUM(N78:AD78) -> 0
AG79: =SUM(N79:AD79) -> 0
AG80: =SUM(N80:AD80) -> 0
AG81: =SUM(N81:AD81) -> 0
AG82: =SUM(N82:AD82) -> 0
AG83: =SUM(N83:AD83) -> 0
AG84: =SUM(N84:AD84) -> 0
AG85: =SUM(N85:AD85) -> 0
AG86: =SUM(N86:AD86) -> 0
AG87: =SUM(N87:AD87) -> 0
AG88: =SUM(N88:AD88) -> 0
AG89: =SUM(N89:AD89) -> 0
I91: =SUM(O91:AD91) -> 474 | O91: =SUM(O13:O90) -> 54 | R91: =SUM(R13:R90) -> 80 | U91: =SUM(U13:U90) -> 122 | X91: =SUM(X13:X90) -> 82 | AA91: =SUM(AA13:AA90) -> 88 | AD91: =SUM(AD13:AD90) -> 48 | AG91: =SUM(AG13:AG90) -> 474

Sheet Rapport Buts-Passes
A1: ASSOCIATION SPORTIVE DE CERISY GAILLY
A2: SAISON SENIORS 2011-2012
A3: SUIVI STATISTIQUE - SENIORS A & B
B5: Championnats : | F5: 1ère division / 3ème division | M5: Stade : | P5: rue du marais - 80800 Cerisy | Y5: Site internet : | AB5: as-cerisy.footeo.com
B7: Entraîneur : | F7: DUPUTEL David | N7: Adjoint : | R7: DUBOIS Sébastien | Z7: Coach B : | AD7: DEFOSSEZ Martial
F8: duputel.david@gmail.com | R8: sebastien.dubois@aerolia.com | AD8: martial.defossez@wanadoo.fr
F9: Tél : 03.22.96.00.51 / 06.17.16.09.47 | R9: Tél : 03.22.05.83.80 / 06.73.82.67.81 | AD9: Tél : 03.22.76.61.50
R12: par matche | W12: par matche
I13: NOMS / PRENOMS | N13: Matches | P13: Buts | R13: % | U13: Passes | W13: % | Z13: TOTAUX
I15: RANVIN Lori | N15: =('Joueurs A'!AU26)+('Joueurs B'!AU21) -> 8 | P15: ='Joueurs B'!AX21 -> 8 | R15: =P15/N15 -> 1 | U15: ='Joueurs B'!AY21 -> 8 | W15: =U15/N15 -> 1 | Z15: =P15+U15 -> 16
I16: JOSSE Grégory | N16: =('Joueurs A'!AU16)+('Joueurs B'!AU23) -> 12 | P16: ='Joueurs B'!AX23 -> 7 | R16: =P16/N16 -> 0.5833333333 | U16: ='Joueurs B'!AY23 -> 7 | W16: =U16/N16 -> 0.5833333333 | Z16: =P16+U16 -> 14
I17: DUPONT Kévin | N17: =('Joueurs A'!AU45)+('Joueurs B'!AU16) -> 17 | P17: ='Joueurs A'!AX45+'Joueurs B'!AX16 -> 8 | R17: =P17/N17 -> 0.4705882353 | U17: ='Joueurs A'!AY45+'Joueurs B'!AY16 -> 3 | W17: =U17/N17 -> 0.1764705882 | Z17: =P17+U17 -> 11
I18: LEDOUX Alexis | N18: ='Joueurs A'!AU36 -> 16 | P18: ='Joueurs A'!AX36 -> 7 | R18: =P18/N18 -> 0.4375 | U18: ='Joueurs A'!AY36 -> 3 | W18: =U18/N18 -> 0.1875 | Z18: =P18+U18 -> 10
I19: LAROUETTE Yann | N19: =('Joueurs A'!AU40)+('Joueurs B'!AU47) -> 13 | P19: ='Joueurs A'!AX40+'Joueurs B'!AX47 -> 6 | R19: =P19/N19 -> 0.4615384615 | U19: ='Joueurs A'!AY40+'Joueurs B'!AY47 -> 1 | W19: =U19/N19 -> 0.07692307692 | Z19: =P19+U19 -> 7
I20: LEVI Cédric | N20: ='Joueurs A'!AU60 -> 11 | P20: ='Joueurs A'!AX60 -> 2 | R20: =P20/N20 -> 0.1818181818 | U20: ='Joueurs A'!AY60 -> 5 | W20: =U20/N20 -> 0.4545454545 | Z20: =P20+U20 -> 7
I21: BERTON Thibault | N21: =('Joueurs A'!AU28)+('Joueurs B'!AU24) -> 8 | P21: ='Joueurs B'!AX24 -> 5 | R21: =P21/N21 -> 0.625 | U21: ='Joueurs B'!AY24 -> 1 | W21: =U21/N21 -> 0.125 | Z21: =P21+U21 -> 6
I22: CARETTE Cédric | N22: =('Joueurs A'!AU46)+('Joueurs B'!AU18) -> 11 | P22: ='Joueurs B'!AX18 -> 3 | R22: =P22/N22 -> 0.2727272727 | U22: ='Joueurs B'!AY18 -> 2 | W22: =U22/N22 -> 0.1818181818 | Z22: =P22+U22 -> 5
I23: GOTTIS Thomas | N23: ='Joueurs A'!AU58 -> 10 | P23: ='Joueurs A'!AX58 -> 4 | R23: =P23/N23 -> 0.4 | U23: ='Joueurs A'!AY58 -> 1 | W23: =U23/N23 -> 0.1 | Z23: =P23+U23 -> 5
I24: DECLE Jérôme | N24: ='Joueurs A'!AU55+'Joueurs B'!AU53 -> 15 | P24: ='Joueurs A'!AX55+'Joueurs B'!AX53 -> 2 | R24: =P24/N24 -> 0.1333333333 | U24: ='Joueurs A'!AY55+'Joueurs B'!AY53 -> 2 | W24: =U24/N24 -> 0.1333333333 | Z24: =P24+U24 -> 4
I25: DUBOIS Sébastien | N25: =('Joueurs A'!AU20) -> 16 | P25: ='Joueurs A'!AX20 -> 2 | R25: =P25/N25 -> 0.125 | U25: ='Joueurs A'!AY20 -> 2 | W25: =U25/N25 -> 0.125 | Z25: =P25+U25 -> 4
I26: CAPELLE Stéphane | N26: ='Joueurs A'!AU57+'Joueurs B'!AU50 -> 9 | P26: ='Joueurs A'!AX57+'Joueurs B'!AX50 -> 2 | R26: =P26/N26 -> 0.2222222222 | U26: ='Joueurs A'!AY57+'Joueurs B'!AY50 -> 2 | W26: =U26/N26 -> 0.2222222222 | Z26: =P26+U26 -> 4
I27: JEROME Vincent | N27: ='Joueurs A'!AU52+'Joueurs B'!AU34 -> 9 | P27: ='Joueurs A'!AX52+'Joueurs B'!AX34 -> 2 | R27: =P27/N27 -> 0.2222222222 | U27: ='Joueurs A'!AY52+'Joueurs B'!AY34 -> 1 | W27: =U27/N27 -> 0.1111111111 | Z27: =P27+U27 -> 3
I28: PITARCH Boris | N28: ='Joueurs B'!AU51+'Joueurs A'!AU62 -> 8 | P28: ='Joueurs B'!AX51+'Joueurs A'!AX62 -> 1 | R28: =P28/N28 -> 0.125 | U28: ='Joueurs B'!AY51+'Joueurs A'!AY62 -> 2 | W28: =U28/N28 -> 0.25 | Z28: =P28+U28 -> 3
I29: MAURICE Fabian | N29: ='Joueurs B'!AU33 -> 7 | P29: ='Joueurs B'!AX33 -> 3 | R29: =P29/N29 -> 0.4285714286 | U29: ='Joueurs B'!AY33 -> 0 | W29: =U29/N29 -> 0 | Z29: =P29+U29 -> 3
I30: AMARIAS Yannick | N30: ='Joueurs B'!AU32 -> 10 | P30: ='Joueurs B'!AX32 -> 0 | R30: =P30/N30 -> 0 | U30: ='Joueurs B'!AY32 -> 2 | W30: =U30/N30 -> 0.2 | Z30: =P30+U30 -> 2
I31: TERRIER Florent | N31: ='Joueurs A'!AU18 -> 16 | P31: ='Joueurs A'!AX18 -> 0 | R31: =P31/N31 -> 0 | U31: ='Joueurs A'!AY18 -> 2 | W31: =U31/N31 -> 0.125 | Z31: =P31+U31 -> 2
I32: LANTERNE Erwan | N32: ='Joueurs A'!AU42 -> 12 | P32: ='Joueurs A'!AX42 -> 1 | R32: =P32/N32 -> 0.08333333333 | U32: ='Joueurs A'!AY42 -> 1 | W32: =U32/N32 -> 0.08333333333 | Z32: =P32+U32 -> 2
I33: HENOCQUE Ludovic | N33: ='Joueurs A'!AU19 -> 16 | P33: ='Joueurs A'!AX19 -> 0 | R33: =P33/N33 -> 0 | U33: ='Joueurs A'!AY19 -> 1 | W33: =U33/N33 -> 0.0625 | Z33: =P33+U33 -> 1
I34: MARTINS Rudy | N34: ='Joueurs B'!AU46 -> 2 | P34: ='Joueurs B'!AX46 -> 1 | R34: =P34/N34 -> 0.5 | U34: ='Joueurs B'!AY46 -> 0 | W34: =U34/N34 -> 0 | Z34: =P34+U34 -> 1
I35: CHABA Cory | N35: ='Joueurs B'!AU39 -> 1 | P35: ='Joueurs B'!AX39 -> 1 | R35: =P35/N35 -> 1 | U35: ='Joueurs B'!AY39 -> 0 | W35: =U35/N35 -> 0 | Z35: =P35+U35 -> 1
I36: DEFOSSEZ Rémi | N36: ='Joueurs A'!AU30+'Joueurs B'!AU40 -> 17 | P36: ='Joueurs A'!AX30+'Joueurs B'!AX40 -> 0 | R36: =P36/N36 -> 0 | U36: ='Joueurs A'!AY30+'Joueurs B'!AY40 -> 1 | W36: =U36/N36 -> 0.05882352941 | Z36: =P36+U36 -> 1
I37: PLESNAGE Jérôme | N37: ='Joueurs B'!AU43 -> 9 | P37: ='Joueurs B'!AX43 -> 1 | R37: =P37/N37 -> 0.1111111111 | U37: ='Joueurs B'!AY43 -> 0 | W37: =U37/N37 -> 0 | Z37: =P37+U37 -> 1
I38: LUCQUET Eric | N38: ='Joueurs A'!AU17 -> 12 | P38: ='Joueurs A'!AX17 -> 1 | R38: =P38/N38 -> 0.08333333333 | U38: ='Joueurs A'!AY17 -> 0 | W38: =U38/N38 -> 0 | Z38: =P38+U38 -> 1
I39: FAQUI Alexandre | N39: ='Joueurs B'!AU35 -> 8 | P39: ='Joueurs B'!AX35 -> 0 | R39: =P39/N39 -> 0 | U39: ='Joueurs B'!AY35 -> 1 | W39: =U39/N39 -> 0.125 | Z39: =P39+U39 -> 1
I40: BORCK Stéphane | N40: ='Joueurs A'!AU56 -> 10 | P40: ='Joueurs A'!AX56 -> 1 | R40: =P40/N40 -> 0.1 | U40: ='Joueurs A'!AY56 -> 0 | W40: =U40/N40 -> 0 | Z40: =P40+U40 -> 1
I41: DUQUENOY Loïc | N41: ='Joueurs B'!AU52 -> 3 | P41: ='Joueurs B'!AX52 -> 0 | R41: =P41/N41 -> 0 | U41: ='Joueurs B'!AY52 -> 1 | W41: =U41/N41 -> 0.3333333333 | Z41: =P41+U41 -> 1
P46: =SUM(P14:P45) -> 68 | U46: =SUM(U14:U45) -> 49 | Z46: =SUM(Z14:Z45) -> 117

Sheet Cartons Jaunes
A1: ASSOCIATION SPORTIVE DE CERISY GAILLY
A2: SAISON SENIORS 2011-2012
A3: SUIVI STATISTIQUE - SENIORS A & B
B5: Championnats : | F5: 1ère division / 3ème division | M5: Stade : | P5: rue du marais - 80800 Cerisy | Y5: Site internet : | AB5: as-cerisy.footeo.com
B7: Entraîneur : | F7: DUPUTEL David | N7: Adjoint : | R7: DUBOIS Sébastien | Z7: Coach B : | AD7: DEFOSSEZ Martial
F8: duputel.david@gmail.com | R8: sebastien.dubois@aerolia.com | AD8: martial.defossez@wanadoo.fr
F9: Tél : 03.22.96.00.51 / 06.17.16.09.47 | R9: Tél : 03.22.05.83.80 / 06.73.82.67.81 | AD9: Tél : 03.22.76.61.50
J13: NOMS / PRENOMS | O13: 2006-2007 | R13: 2007-2008 | U13: 2008-2009 | X13: 2009-2010 | AA13: 2010-2011 | AD13: 2011-2012 | AG13: TOTAUX
J15: RANVIN Lori | O15: 3 | R15: 2 | U15: 3 | X15: 1 | AA15: 3 | AD15: 1 | AG15: =SUM(L15:AE15) -> 13
J16: BEYAERT Antoine | O16: 3 | R16: 3 | X16: 3 | AA16: 2 | AG16: =SUM(L16:AE16) -> 11
J17: LEDOUX Alexis | O17: 1 | X17: 2 | AA17: 3 | AD17: 3 | AG17: =SUM(L17:AE17) -> 9
J18: de BRUYNE Thierry | O18: 1 | R18: 1 | U18: 2 | X18: 2 | AA18: 1 | AG18: =SUM(L18:AE18) -> 7
J19: DUFLOT Alexlandre | R19: 4 | U19: 2 | AD19: 1 | AG19: =SUM(L19:AE19) -> 7
J20: LANTERNE Erwan | X20: 3 | AD20: 4 | AG20: =SUM(L20:AE20) -> 7
J21: COLCY Ludovic | R21: 3 | U21: 3 | AG21: =SUM(L21:AE21) -> 6
J22: DEFOSSEZ Rémi | U22: 1 | X22: 1 | AA22: 4 | AG22: =SUM(L22:AE22) -> 6
J23: LUCQUET Eric | O23: 1 | R23: 1 | U23: 1 | X23: 2 | AD23: 1 | AG23: =SUM(L23:AE23) -> 6
J24: HENOCQUE Ludovic | R24: 1 | U24: 2 | AA24: 2 | AD24: 1 | AG24: =SUM(L24:AE24) -> 6
J25: DECLE Jérôme | AA25: 2 | AD25: 4 | AG25: =SUM(L25:AE25) -> 6
J26: HOT Guillaume | AA26: 5 | AG26: =SUM(L26:AE26) -> 5
J27: JOSSE Grégory | X27: 4 | AD27: 1 | AG27: =SUM(L27:AE27) -> 5
J28: BERTON Thibault | U28: 4 | AD28: 1 | AG28: =SUM(L28:AE28) -> 5
J29: BLIR David | O29: 3 | U29: 1 | AG29: =SUM(L29:AE29) -> 4
J30: TERRIER Florent | U30: 2 | AD30: 2 | AG30: =SUM(L30:AE30) -> 4
J31: BRICOUT Alexandre | R31: 3 | AG31: =SUM(L31:AE31) -> 3
J32: CLAIRE Stéphane | R32: 3 | AG32: =SUM(L32:AE32) -> 3
J33: DEMAILLY Pascal | R33: 1 | U33: 2 | AG33: =SUM(L33:AE33) -> 3
J34: DHIU Alexandre | R34: 1 | U34: 1 | X34: 1 | AG34: =SUM(L34:AE34) -> 3
J35: DIEVAL Samuel | O35: 1 | R35: 2 | AG35: =SUM(L35:AE35) -> 3
J36: MACAREL Julien | U36: 3 | AG36: =SUM(L36:AE36) -> 3
J37: MACAREL Maurice | U37: 3 | AG37: =SUM(L37:AE37) -> 3
J38: CARETTE Cédric | R38: 1 | U38: 1 | X38: 1 | AG38: =SUM(L38:AE38) -> 3
J39: DARQUET Sylvain | U39: 1 | AA39: 2 | AG39: =SUM(L39:AE39) -> 3
J40: DUPONT Kévin | X40: 1 | AD40: 2 | AG40: =SUM(L40:AE40) -> 3
J41: DUBOIS Sébastien | R41: 1 | U41: 1 | AG41: =SUM(L41:AE41) -> 2
J42: LEDOUX Grégory | O42: 1 | R42: 1 | AG42: =SUM(L42:AE42) -> 2
J43: ALBERT Christophe | R43: 1 | X43: 1 | AG43: =SUM(L43:AE43) -> 2
J44: AMARIAS Yannick | X44: 1 | AA44: 1 | AG44: =SUM(L44:AE44) -> 2
J45: COURTOIS Kévin | AA45: 2 | AG45: =SUM(L45:AE45) -> 2
J46: DUMONT Eric | X46: 1 | AD46: 1 | AG46: =SUM(L46:AE46) -> 2
J47: LEVY Cédric | AD47: 2 | AG47: =SUM(L47:AE47) -> 2
J48: CAPELLE Stéphane | AD48: 2 | AG48: =SUM(L48:AE48) -> 2
J49: ELOY Jean-François | R49: 1 | AG49: =SUM(L49:AE49) -> 1
J50: BARON Stéphane | U50: 1 | AG50: =SUM(L50:AE50) -> 1
J51: SUBITTE Alexis | AD51: 1 | AG51: =SUM(L51:AE51) -> 1
J52: PITARCH Boris | AD52: 1 | AG52: =SUM(L52:AE52) -> 1
J53: DEFOSSEZ Aurélien | R53: 1 | AG53: =SUM(L53:AE53) -> 1
J54: DEMAISON Clément | U54: 1 | AG54: =SUM(L54:AE54) -> 1
J55: LEDUC Thomas | U55: 1 | AG55: =SUM(L55:AE55) -> 1
J56: MASCRE Ghislain | R56: 1 | AG56: =SUM(L56:AE56) -> 1
J57: MARCHEUX Jérémy | U57: 1 | AG57: =SUM(L57:AE57) -> 1
J58: RANVIN Rémi | U58: 1 | AG58: =SUM(L58:AE58) -> 1
J59: REVAUX Sylvain | R59: 1 | AG59: =SUM(L59:AE59) -> 1
J60: MUNOZ Sébastien | AA60: 1 | AG60: =SUM(L60:AE60) -> 1
J61: LAROUETTE Yann | AA61: 1 | AG61: =SUM(L61:AE61) -> 1
J62: de BRUYNE Rudy | AA62: 1 | AG62: =SUM(L62:AE62) -> 1
J63: GOTTIS Thomas | AD63: 1 | AG63: =SUM(L63:AE63) -> 1
O64: =SUM(O15:O59) -> 14 | R64: =SUM(R15:R59) -> 33 | U64: =SUM(U15:U59) -> 38 | X64: =SUM(X15:X59) -> 24 | AA64: =SUM(AA15:AA63) -> 30 | AD64: =SUM(AD15:AD63) -> 29 | AG64: =SUM(AG16:AG63) -> 155

Sheet Cartons Rouges
A1: ASSOCIATION SPORTIVE DE CERISY GAILLY
A2: SAISON SENIORS 2011-2012
A3: SUIVI STATISTIQUE - SENIORS A & B
B5: Championnats : | F5: 1ère division / 3ème division | M5: Stade : | P5: rue du marais - 80800 Cerisy | Y5: Site internet : | AB5: as-cerisy.footeo.com
B7: Entraîneur : | F7: DUPUTEL David | N7: Adjoint : | R7: DUBOIS Sébastien | Z7: Coach B : | AD7: DEFOSSEZ Martial
F8: duputel.david@gmail.com | R8: sebastien.dubois@aerolia.com | AD8: martial.defossez@wanadoo.fr
F9: Tél : 03.22.96.00.51 / 06.17.16.09.47 | R9: Tél : 03.22.05.83.80 / 06.73.82.67.81 | AD9: Tél : 03.22.76.61.50
J13: NOMS / PRENOMS | O13: 2006-2007 | R13: 2007-2008 | U13: 2008-2009 | X13: 2009-2010 | AA13: 2010-2011 | AD13: 2011-2012 | AG13: TOTAUX
J15: RANVIN Lori | O15: 2 | U15: 1 | AG15: =SUM(L15:AE15) -> 3
J16: ALBERT Christophe | O16: 1 | AG16: 1
J17: BRICOUT Alexandre | R17: 1 | AG17: 1
J18: BERTON Thibault | R18: 1 | AG18: 1
J19: BEYAERT Antoine | O19: 1 | AG19: 1
J20: BLIR David | U20: 1 | AG20: 1
J21: DUFLOT Alexandre | U21: 1 | AG21: 1
J22: HENOCQUE Ludovic | R22: 1 | AG22: 1
J23: LEDOUX Grégory | O23: 1 | AG23: 1
J24: WAQUET Ludovic | AA24: 1 | AG24: 1
O26: =SUM(O15:O24) -> 5 | R26: =SUM(R15:R24) -> 3 | U26: =SUM(U15:U24) -> 3 | X26: 0 | AA26: =SUM(AA15:AA24) -> 1 | AD26: =SUM(AD15:AD24) -> 0 | AG26: =SUM(AG15:AG24) -> 12

Sheet Coût Sanctions
A1: ASSOCIATION SPORTIVE DE CERISY GAILLY
A2: SAISON SENIORS 2011-2012
A3: SUIVI STATISTIQUE - SENIORS A & B
B5: Championnats : | F5: 1ère division / 3ème division | M5: Stade : | P5: rue du marais - 80800 Cerisy | Y5: Site internet : | AB5: as-cerisy.footeo.com
B7: Entraîneur : | F7: DUPUTEL David | N7: Adjoint : | R7: DUBOIS Sébastien | Z7: Coach B : | AD7: DEFOSSEZ Martial
F8: duputel.david@gmail.com | R8: sebastien.dubois@aerolia.com | AD8: martial.defossez@wanadoo.fr
F9: Tél : 03.22.96.00.51 / 06.17.16.09.47 | R9: Tél : 03.22.05.83.80 / 06.73.82.67.81 | AD9: Tél : 03.22.76.61.50
K13: Nombre de cartons
I14: Evolution | M14: 2006-2007 | P14: 2007-2008 | S14: 2008-2009 | V14: 2009-2010 | Y14: 2010-2011 | AB14: 2011-2012 | AE14: TOTAUX
I16: Cartons jaunes | M16: 14 | P16: 33 | S16: 38 | V16: 24 | Y16: 30 | AB16: ='Cartons Jaunes'!AD64 -> 29 | AE16: =SUM(M16:AB16) -> 168
I18: Cartons rouges | M18: 5 | P18: 3 | S18: 3 | V18: =O6 -> 0 | Y18: 1 | AB18: ='Cartons Rouges'!$AD$26 -> 0 | AE18: =SUM(M18:AB18) -> 12
I20: Par saison | M20: =M18+M16 -> 19 | P20: =P18+P16 -> 36 | S20: =S18+S16 -> 41 | V20: =V18+V16 -> 24 | Y20: =Y18+Y16 -> 31 | AB20: =AB18+AB16 -> 29 | AE20: =SUM(M20:AB20) -> 180 | AG20: Cartons
K23: Coûts des cartons
I24: Evolution | M24: 2006-2007 | P24: 2007-2008 | S24: 2008-2009 | V24: 2009-2010 | Y24: 2010-2011 | AB24: 2011-2012 | AE24: TOTAUX
I26: Cartons jaunes | M26: 210 | P26: 495 | S26: 570 | V26: 360 | Y26: 450 | AB26: =(AB16*15) -> 435 | AE26: =SUM(M26:AD26) -> 2520
I28: Cartons rouges | M28: 150 | P28: 90 | S28: 90 | V28: =O16 -> 0 | Y28: 30 | AB28: =(AB18*30) -> 0 | AE28: =SUM(M28:AB28) -> 360
I30: Par saison | M30: =M28+M26 -> 360 | P30: =P28+P26 -> 585 | S30: =S28+S26 -> 660 | V30: =V28+V26 -> 360 | Y30: =Y28+Y26 -> 480 | AB30: =AB28+AB26 -> 435 | AE30: =SUM(M30:AB30) -> 2880 | AG30: €
N33: Carton jaune | Q33: 15 | R33: €
N34: Carton rouge | Q34: 30 | R34: €

Sheet Résultats B
A1: ASSOCIATION SPORTIVE DE CERISY GAILLY
A2: SAISON SENIORS 2011-2012
A3: SUIVI STATISTIQUE - SENIORS B
B5: Championnats : | F5: 1ère division / 3ème division | M5: Stade : | P5: rue du marais - 80800 Cerisy | Y5: Site internet : | AB5: as-cerisy.footeo.com
B7: Entraîneur : | F7: DUPUTEL David | N7: Adjoint : | R7: DUBOIS Sébastien | Z7: Coach B : | AD7: DEFOSSEZ Martial
F8: duputel.david@gmail.com | R8: sebastien.dubois@aerolia.com | AD8: martial.defossez@wanadoo.fr
F9: Tél : 03.22.96.00.51 / 06.17.16.09.47 | R9: Tél : 03.22.05.83.80 / 06.73.82.67.81 | AD9: Tél : 03.22.76.61.50
O13: =J22 -> As Cerisy 2 | Q13: =J23 -> Aae Chaulnes 2 | S13: =J24 -> As Domart sur la Luce | U13: =J25 -> Fr Englebelmer 2 | W13: =J26 -> Fc Estrées Mons | Y13: =J27 -> Ics Equancourt | AA13: =J28 -> Us Hangest en Santerre | AC13: =J29 -> Es Licourt | AE13: =J30 -> Fc Méaulte 2 | AG13: =J31 -> O Monchy | AI13: =J32 -> Us Roisel 2 | AK13: =J33 -> Es Sainte Emilie 2
J22: As Cerisy 2 | U22: 8 | V22: 0 | W22: 0 | X22: 3 | AA22: 1 | AB22: 2 | AE22: 3 | AF22: 2 | AI22: 4 | AJ22: 1
J23: Aae Chaulnes 2 | O23: 3 | P23: 3 | U23: 5 | V23: 0 | W23: 2 | X23: 3 | AA23: 1 | AB23: 1 | AI23: 2 | AJ23: 1
J24: As Domart sur la Luce | O24: 0 | P24: 2 | Y24: 1 | Z24: 3 | AA24: 0 | AB24: 2 | AE24: 4 | AF24: 1
J25: Fr Englebelmer 2 | S25: 0 | T25: 2 | W25: 0 | X25: 5 | Y25: 0 | Z25: 5 | AE25: 2 | AF25: 2 | AI25: 2 | AJ25: 2
J26: Fc Estrées Mons | S26: 3 | T26: 0 | Y26: 4 | Z26: 0 | AC26: 2 | AD26: 1 | AG26: 3 | AH26: 3 | AK26: 3 | AL26: 3
J27: Ics Equancourt | O27: 1 | P27: 1 | Q27: 0 | R27: 4 | AC27: 1 | AD27: 0 | AG27: 1 | AH27: 5 | AK27: 4 | AL27: 6
J28: Us Hangest en Santerre | U28: 10 | V28: 0 | W28: 1 | X28: 3 | Y28: 4 | Z28: 0 | AE28: 5 | AF28: 0 | AI28: 7 | AJ28: 1
J29: Es Licourt | O29: 0 | P29: 1 | Q29: 2 | R29: 1 | S29: 0 | T29: 0 | U29: 5 | V29: 0 | AG29: 1 | AH29: 0
J30: Fc Méaulte 2 | Q30: 1 | R30: 6 | Y30: 2 | Z30: 1 | AC30: 1 | AD30: 0 | AG30: 0 | AH30: 1 | AK30: 1 | AL30: 1
J31: O Monchy | Q31: 2 | R31: 2 | S31: 1 | T31: 1 | U31: 2 | V31: 0 | AA31: 0 | AB31: 0 | AI31: 4 | AJ31: 0
J32: Us Roisel 2 | S32: 1 | T32: 0 | W32: 0 | X32: 9 | AC32: 2 | AD32: 0 | AE32: 2 | AF32: 2 | AK32: 2 | AL32: 0
J33: Es Sainte Emilie 2 | O33: 0 | P33: 0 | Q33: 1 | R33: 0 | S33: 2 | T33: 1 | AA33: 0 | AB33: 2 | AC33: 0 | AD33: 0 | AG33: 2 | AH33: 4

Sheet Clst B
A1: ASSOCIATION SPORTIVE DE CERISY GAILLY
A2: SAISON SENIORS 2011-2012
A3: SUIVI STATISTIQUE - SENIORS B
B5: Championnats : | F5: 1ère division / 3ème division | M5: Stade : | P5: rue du marais - 80800 Cerisy | Y5: Site internet : | AB5: as-cerisy.footeo.com
B7: Entraîneur : | F7: DUPUTEL David | N7: Adjoint : | R7: DUBOIS Sébastien | Z7: Coach B : | AD7: DEFOSSEZ Martial
F8: duputel.david@gmail.com | R8: sebastien.dubois@aerolia.com | AD8: martial.defossez@wanadoo.fr
F9: Tél : 03.22.96.00.51 / 06.17.16.09.47 | R9: Tél : 03.22.05.83.80 / 06.73.82.67.81 | AD9: Tél : 03.22.76.61.50
K13: Saison 2011 - 2012 / 3ème division
L14: CLUB | R14: PTS | S14: J | T14: G | U14: N | V14: P | W14: F | X14: BP | Y14: BC | Z14: DIF. | AA14: CHA | AB14: PEN. | AC14: Ratio BP | AE14: Ratio BC
K15: 1 | L15: Fc Estrées Mons | R15: =((((T15*4)+(U15*2)+(V15*1)))-(AA15+AB15)) -> 34 | S15: =T15+U15+V15+W15 -> 10 | T15: 8 | U15: 2 | V15: 0 | W15: 0 | X15: 38 | Y15: 10 | Z15: =X15-Y15 -> 28 | AA15: 2 | AC15: =X15/S15 -> 3.8 | AE15: =Y15/S15 -> 1
K16: 2 | L16: Us Hangest en Santerre | R16: 31 | S16: 10 | T16: 7 | U16: 2 | V16: 1 | W16: 0 | X16: 34 | Y16: 6 | Z16: 28 | AA16: 2 | AC16: 3.4 | AE16: 0.6
K17: 3 | L17: O Monchy | R17: 28 | S17: 10 | T17: 5 | U17: 4 | V17: 1 | W17: 0 | X17: 22 | Y17: 10 | Z17: 12 | AA17: 1 | AC17: 2.2 | AE17: 1
K18: 4 | L18: As Cerisy 2 | R18: 28 | S18: 10 | T18: 5 | U18: 3 | V18: 2 | W18: 0 | X18: 23 | Y18: 12 | Z18: 11 | AC18: 2.3 | AE18: 1.2
K19: 5 | L19: Aae Chaulnes 2 | R19: 25 | S19: 10 | T19: 4 | U19: 3 | V19: 3 | W19: 0 | X19: 26 | Y19: 14 | Z19: 12 | AC19: 2.6 | AE19: 1.4
K20: 6 | L20: Es Sainte Emilie 2 | R20: 22 | S20: 10 | T20: 3 | U20: 4 | V20: 3 | W20: 0 | X20: 15 | Y20: 17 | Z20: -2 | AA20: 1 | AC20: 1.5 | AE20: 1.7
K21: 7 | L21: Us Roisel 2 | R21: 21 | S21: 10 | T21: 3 | U21: 2 | V21: 5 | W21: 0 | X21: 12 | Y21: 30 | Z21: -18 | AC21: 1.2 | AE21: 3
K22: 8 | L22: Es Licourt | R22: 20 | S22: 10 | T22: 3 | U22: 2 | V22: 5 | W22: 0 | X22: 9 | Y22: 8 | Z22: 1 | AA22: 1 | AC22: 0.9 | AE22: 0.8
K23: 9 | L23: Ics Equancourt | R23: 20 | S23: 10 | T23: 3 | U23: 1 | V23: 6 | W23: 0 | X23: 16 | Y23: 27 | Z23: -11 | AC23: 1.6 | AE23: 2.7
K24: 10 | L24: Fc Méaulte 2 | R24: 19 | S24: 10 | T24: 2 | U24: 3 | V24: 5 | W24: 0 | X24: 12 | Y24: 25 | Z24: -13 | AC24: 1.2 | AE24: 2.5
K25: 11 | L25: As Domart sur la Luce | R25: 18 | S25: 10 | T25: 2 | U25: 2 | V25: 6 | W25: 0 | X25: 9 | Y25: 15 | Z25: -6 | AC25: 0.9 | AE25: 1.5
K26: 12 | L26: Fr Englebelmer 2 | R26: 12 | S26: 10 | T26: 0 | U26: 2 | V26: 8 | W26: 0 | X26: 4 | Y26: 46 | Z26: -42 | AC26: 0.4 | AE26: 4.6
X27: =SUM(X15:X26) -> 220 | Y27: =SUM(Y15:Y26) -> 220 | AA27: =SUM(AA15:AA26) -> 7
R28: Maxi | T28: =MAX(T15:T26) -> 8 | U28: =MAX(U15:U26) -> 4 | V28: 8 | W28: 0 | X28: 38 | Y28: 46 | Z28: 28 | AA28: 2 | AB28: 0 | AC28: =MAX(AC15:AD26) -> 3.8 | AE28: =MAX(AE15:AF26) -> 4.6
R29: Mini | T29: =MIN(T15:T27) -> 0 | U29: =MIN(U15:U27) -> 1 | V29: 0 | W29: 0 | X29: 4 | Y29: 6 | Z29: -42 | AA29: 1 | AB29: 0 | AC29: =MIN(AC15:AD26) -> 0.4 | AE29: =MIN(AE15:AF26) -> 0.6

Sheet Evolution B
A1: ASSOCIATION SPORTIVE DE CERISY GAILLY
A2: SAISON SENIORS 2011-2012
A3: SUIVI STATISTIQUE - SENIORS B
B5: Championnats : | F5: 1ère division / 3ème division | M5: Stade : | P5: rue du marais - 80800 Cerisy | Y5: Site internet : | AB5: as-cerisy.footeo.com
B7: Entraîneur : | F7: DUPUTEL David | N7: Adjoint : | R7: DUBOIS Sébastien | Z7: Coach B : | AD7: DEFOSSEZ Martial
F8: duputel.david@gmail.com | R8: sebastien.dubois@aerolia.com | AD8: martial.defossez@wanadoo.fr
F9: Tél : 03.22.96.00.51 / 06.17.16.09.47 | R9: Tél : 03.22.05.83.80 / 06.73.82.67.81 | AD9: Tél : 03.22.76.61.50
L13: EVOLUTION CHAMPIONNAT
L14: Saison 2010-2011 | AH14: Joués
L15: Aller | W15: Retour | AH15: ='Clst B'!S15 -> 10
L16: 1 | M16: 2 | N16: 3 | O16: 4 | P16: 5 | Q16: 6 | R16: 7 | S16: 8 | T16: 9 | U16: 10 | V16: 11 | W16: 12 | X16: 13 | Y16: 14 | Z16: 15 | AA16: 16 | AB16: 17 | AC16: 18 | AD16: 19 | AE16: 20 | AF16: 21 | AG16: 22
I17: 2011 - 2012 | L17: 4 | M17: 4 | N17: 2 | O17: 1 | P17: 2 | Q17: 4 | R17: 4 | S17: 4 | T17: 2 | U17: 1 | AH17: =SUM(L17:AG17) -> 28
I18: 2010 - 2011 | L18: 4 | M18: 4 | N18: 4 | O18: 4 | P18: 4 | Q18: 4 | R18: 1 | S18: 4 | T18: 4 | U18: 4 | V18: 4 | W18: 4 | X18: 2 | Y18: 4 | Z18: 4 | AA18: 1 | AB18: 2 | AC18: 2 | AD18: 4 | AE18: 2 | AF18: 4 | AG18: 4 | AH18: 74
I19: 2009 - 2010 | L19: 4 | M19: 1 | N19: 4 | O19: 4 | P19: 1 | Q19: 4 | R19: 4 | S19: 1 | T19: 4 | U19: 1 | V19: 4 | W19: 4 | X19: 2 | Y19: 1 | Z19: 4 | AA19: 4 | AB19: 2 | AC19: 4 | AD19: 1 | AE19: 1 | AF19: 4 | AG19: 4 | AH19: 63
I20: 2008 - 2009 | L20: 4 | M20: 2 | N20: 4 | O20: 1 | P20: 2 | Q20: 4 | R20: 4 | S20: 1 | T20: 4 | U20: 1 | V20: 1 | W20: 4 | X20: 4 | Y20: 4 | Z20: 1 | AA20: 4 | AB20: 1 | AC20: 4 | AD20: 4 | AE20: 1 | AF20: 1 | AG20: * | AH20: 56
I21: 2007 - 2008 | L21: 4 | M21: 2 | N21: 4 | O21: 2 | P21: 4 | Q21: 1 | R21: 2 | S21: 2 | T21: 1 | U21: 1 | V21: 1 | W21: 1 | X21: 4 | Y21: 4 | Z21: 1 | AA21: 1 | AB21: 1 | AC21: 1 | AD21: 2 | AE21: 1 | AF21: 1 | AG21: 2 | AH21: 43
I22: 2006 - 2007 | L22: 1 | M22: 4 | N22: 4 | O22: 1 | P22: 4 | Q22: 1 | R22: 1 | S22: 1 | T22: 1 | U22: 4 | V22: 1 | W22: 1 | X22: 1 | Y22: 1 | Z22: 2 | AA22: 1 | AB22: 1 | AC22: 1 | AD22: 4 | AE22: 4 | AF22: 1 | AG22: 4 | AH22: 44
L23: =SUM(L17:L22) -> 21 | M23: 17 | N23: 22 | O23: 13 | P23: 17 | Q23: 18 | R23: 16 | S23: 13 | T23: 16 | U23: 12 | V23: 11 | W23: =SUM(W17:W22) -> 14 | X23: =SUM(X17:X22) -> 13 | Y23: 14 | Z23: 12 | AA23: 11 | AB23: 7 | AC23: 12 | AD23: 15 | AE23: 9 | AF23: 11 | AG23: 14
S24: Bilan aller | V24: =L23+M23+N23+O23+P23+Q23+R23+S23+T23+U23+V23 -> 176 | AD24: Bilan retour | AG24: =W23+X23+Y23+Z23+AA23+AB23+AC23+AD23+AE23+AF23+AG23 -> 132

Sheet Moyenne pts-matches B
A1: ASSOCIATION SPORTIVE DE CERISY GAILLY
A2: SAISON SENIORS 2011-2012
A3: SUIVI STATISTIQUE - SENIORS B
B5: Championnats : | F5: 1ère division / 3ème division | M5: Stade : | P5: rue du marais - 80800 Cerisy | Y5: Site internet : | AB5: as-cerisy.footeo.com
B7: Entraîneur : | F7: DUPUTEL David | N7: Adjoint : | R7: DUBOIS Sébastien | Z7: Coach B : | AD7: DEFOSSEZ Martial
F8: duputel.david@gmail.com | R8: sebastien.dubois@aerolia.com | AD8: martial.defossez@wanadoo.fr
F9: Tél : 03.22.96.00.51 / 06.17.16.09.47 | R9: Tél : 03.22.05.83.80 / 06.73.82.67.81 | AD9: Tél : 03.22.76.61.50
N15: MOYENNE PTS/MATCHES HORS CHARTE DE L'ETHIQUE
N16: Matches | P16: Points | R16: Années | V16: Moy | X16: Clst final | AA16: Division jouée
N17: ='Clst B'!S15 -> 10 | P17: ='Evolution B'!AH17 -> 28 | S17: 2011-2012 | V17: =P17/N17 -> 2.8 | AA17: 3ème Div.
N18: 22 | P18: 70 | S18: 2010-2011 | V18: 3.181818182 | X18: 1er | AA18: 4ème Div.
N19: 22 | P19: 63 | S19: 2009-2010 | V19: 2.863636364 | X19: 4ème | AA19: 4ème Div.
N20: 20 | P20: 51 | S20: 2008-2009 | V20: 2.55 | X20: 4ème | AA20: 4ème Div.
N21: 20 | P21: 35 | S21: 2007-2008 | V21: 1.75 | X21: 11ème | AA21: 3ème Div.
N22: 22 | P22: 44 | S22: 2006-2007 | V22: 2 | X22: 9ème | AA22: 3ème Div.

Sheet Répartition 11-12 B
A1: ASSOCIATION SPORTIVE DE CERISY GAILLY
A2: SAISON SENIORS 2011-2012
A3: SUIVI STATISTIQUE - SENIORS B
B5: Championnats : | F5: 1ère division / 3ème division | M5: Stade : | P5: rue du marais - 80800 Cerisy | Y5: Site internet : | AB5: as-cerisy.footeo.com
B7: Entraîneur : | F7: DUPUTEL David | N7: Adjoint : | R7: DUBOIS Sébastien | Z7: Coach B : | AD7: DEFOSSEZ Martial
F8: duputel.david@gmail.com | R8: sebastien.dubois@aerolia.com | AD8: martial.defossez@wanadoo.fr
F9: Tél : 03.22.96.00.51 / 06.17.16.09.47 | R9: Tél : 03.22.05.83.80 / 06.73.82.67.81 | AD9: Tél : 03.22.76.61.50
K14: STATISTIQUES GENERALES SAISON 2011-2012 | AC14: Total Matches
K15: Temps | M15: Pour | O15: % | P15: Contre | R15: % | T15: Temps | V15: Pour | X15: % | Y15: Contre | AA15: % | AC15: =AC21+AC27 -> 12
K16: 1 | L16: 15 | M16: =M22+M28 -> 6 | O16: =M16/($M$19+$V$19) -> 0.1395348837 | P16: =P22+P28 -> 0 | R16: =P16/($P$19+$Y$19) -> 0 | T16: 45 | U16: 60 | V16: =V22+V28 -> 7 | X16: =V16/($M$19+$V$19) -> 0.1627906977 | Y16: =Y22+Y28 -> 7 | AA16: =Y16/($P$19+$Y$19) -> 0.5384615385
K17: 16 | L17: 30 | M17: =M23+M29 -> 8 | O17: =M17/($M$19+$V$19) -> 0.1860465116 | P17: =P22+P28 -> 0 | R17: =P17/($P$19+$Y$19) -> 0 | T17: 61 | U17: 75 | V17: =V23+V29 -> 5 | X17: =V17/($M$19+$V$19) -> 0.1162790698 | Y17: =Y23+Y29 -> 4 | AA17: =Y17/($P$19+$Y$19) -> 0.3076923077
K18: 31 | L18: 45 | M18: =M24+M30 -> 5 | O18: =M18/($M$19+$V$19) -> 0.1162790698 | P18: =P24+P30 -> 1 | R18: =P18/($P$19+$Y$19) -> 0.07692307692 | T18: 76 | U18: 90 | V18: =V24+V30 -> 12 | X18: =V18/($M$19+$V$19) -> 0.2790697674 | Y18: =Y24+Y30 -> 1 | AA18: =Y18/($P$19+$Y$19) -> 0.07692307692
K19: Total | M19: =SUM(M16:N18) -> 19 | P19: =SUM(P16:Q18) -> 1 | T19: Total | V19: =SUM(V16:W18) -> 24 | Y19: =SUM(Y16:Z18) -> 12
K20: STATISTIQUES CHAMPIONNAT | AC20: Matches
K21: Temps | M21: Pour | O21: % | P21: Contre | R21: % | T21: Temps | V21: Pour | X21: % | Y21: Contre | AA21: % | AC21: ='Moyenne pts-matches B'!N17 -> 10
K22: 1 | L22: 15 | M22: 2 | O22: =M22/($M$25+$V$25) -> 0.08695652174 | P22: 0 | R22: =P22/($P$25+$Y$25) -> 0 | T22: 45 | U22: 60 | V22: 3 | X22: =V22/($M$25+$V$25) -> 0.1304347826 | Y22: 6 | AA22: =Y22/($P$25+$Y$25) -> 0.5
K23: 16 | L23: 30 | M23: 5 | O23: =M23/($M$25+$V$25) -> 0.2173913043 | P23: 0 | R23: =P23/($P$25+$Y$25) -> 0 | T23: 61 | U23: 75 | V23: 2 | X23: =V23/($M$25+$V$25) -> 0.08695652174 | Y23: 4 | AA23: =Y23/($P$25+$Y$25) -> 0.3333333333
K24: 31 | L24: 45 | M24: 2 | O24: =M24/($M$25+$V$25) -> 0.08695652174 | P24: 1 | R24: =P24/($P$25+$Y$25) -> 0.08333333333 | T24: 76 | U24: 90 | V24: 9 | X24: =V24/($M$25+$V$25) -> 0.3913043478 | Y24: 1 | AA24: =Y24/($P$25+$Y$25) -> 0.08333333333
K25: Total | M25: =SUM(M22:N24) -> 9 | P25: =SUM(P22:Q24) -> 1 | T25: Total | V25: =SUM(V22:W24) -> 14 | Y25: =SUM(Y22:Z24) -> 11
K26: STATISTIQUES COUPE | AC26: Matches
K27: Temps | M27: Pour | O27: % | P27: Contre | R27: % | T27: Temps | V27: Pour | X27: % | Y27: Contre | AA27: % | AC27: 2
K28: 1 | L28: 15 | M28: 4 | O28: =M28/($M$31+$V$31) -> 0.2 | P28: 0 | R28: =P28/($P$31+$Y$31) -> 0 | T28: 45 | U28: 60 | V28: 4 | X28: =V28/($M$31+$V$31) -> 0.2 | Y28: 1 | AA28: =Y28/($P$31+$Y$31) -> 0.5
K29: 16 | L29: 30 | M29: 3 | O29: =M29/($M$31+$V$31) -> 0.15 | P29: 1 | R29: =P29/($P$31+$Y$31) -> 0.5 | T29: 61 | U29: 75 | V29: 3 | X29: =V29/($M$31+$V$31) -> 0.15 | Y29: 0 | AA29: =Y29/($P$31+$Y$31) -> 0
K30: 31 | L30: 45 | M30: 3 | O30: =M30/($M$31+$V$31) -> 0.15 | P30: 0 | R30: =P30/($P$31+$Y$31) -> 0 | T30: 76 | U30: 90 | V30: 3 | X30: =V30/($M$31+$V$31) -> 0.15 | Y30: 0 | AA30: =Y30/($P$31+$Y$31) -> 0
K31: Total | M31: =SUM(M28:N30) -> 10 | P31: =SUM(P28:Q30) -> 1 | T31: Total | V31: =SUM(V28:W30) -> 10 | Y31: =SUM(Y28:Z30) -> 1

Sheet Répartition Générale B
A1: ASSOCIATION SPORTIVE DE CERISY GAILLY
A2: SAISON SENIORS 2011-2012
A3: SUIVI STATISTIQUE - SENIORS B
B5: Championnats : | F5: 1ère division / 3ème division | M5: Stade : | P5: rue du marais - 80800 Cerisy | Y5: Site internet : | AB5: as-cerisy.footeo.com
B7: Entraîneur : | F7: DUPUTEL David | N7: Adjoint : | R7: DUBOIS Sébastien | Z7: Coach B : | AD7: DEFOSSEZ Martial
F8: duputel.david@gmail.com | R8: sebastien.dubois@aerolia.com | AD8: martial.defossez@wanadoo.fr
F9: Tél : 03.22.96.00.51 / 06.17.16.09.47 | R9: Tél : 03.22.05.83.80 / 06.73.82.67.81 | AD9: Tél : 03.22.76.61.50
K13: CHAMPIONNAT / BUTS POUR | S13: ECART | Z13: CHAMPIONNAT / BUTS CONTRE
I14: SAISONS | L14: 1-15 | M14: 16-30 | N14: 31-45 | O14: 46-60 | P14: 61-75 | Q14: 76-90 | S14: 1-15 | T14: 16-30 | U14: 31-45 | V14: 46-60 | W14: 61-75 | X14: 76-90 | Z14: SAISONS | AC14: 1-15 | AD14: 16-30 | AE14: 31-45 | AF14: 46-60 | AG14: 61-75 | AH14: 76-90
I15: 2006-2007 | L15: 0 | M15: 0 | N15: 0 | O15: 0 | P15: 0 | Q15: 0 | R15: =SUM(L15:Q15) -> 0 | S15: =L15-AC15 -> 0 | T15: =M15-AD15 -> 0 | U15: 0 | V15: 0 | W15: 0 | X15: 0 | Y15: =SUM(S15:X15) -> 0 | Z15: 2006-2007 | AC15: 0 | AD15: 0 | AE15: 0 | AF15: 0 | AG15: 0 | AH15: 0 | AI15: =SUM(AC15:AH15) -> 0
I16: 2007-2008 | L16: 4 | M16: 3 | N16: 6 | O16: 6 | P16: 3 | Q16: 11 | R16: 33 | S16: -1 | T16: -7 | U16: -5 | V16: -4 | W16: -10 | X16: 0 | Y16: -27 | Z16: 2007-2008 | AC16: 5 | AD16: 10 | AE16: 11 | AF16: 10 | AG16: 13 | AH16: 11 | AI16: 60
I17: 2008-2009 | L17: 4 | M17: 10 | N17: 10 | O17: 10 | P17: 14 | Q17: 7 | R17: 55 | S17: -1 | T17: 6 | U17: 9 | V17: 7 | W17: 9 | X17: -3 | Y17: 27 | Z17: 2008-2009 | AC17: 5 | AD17: 4 | AE17: 1 | AF17: 3 | AG17: 5 | AH17: 10 | AI17: 28
I18: 2009-2010 | L18: 8 | M18: 5 | N18: 9 | O18: 12 | P18: 12 | Q18: 15 | R18: 61 | S18: 6 | T18: 0 | U18: 4 | V18: 4 | W18: 4 | X18: 10 | Y18: 28 | Z18: 2009-2010 | AC18: 2 | AD18: 5 | AE18: 5 | AF18: 8 | AG18: 8 | AH18: 5 | AI18: 33
I19: 2010-2011 | L19: 9 | M19: 13 | N19: 9 | O19: 14 | P19: 10 | Q19: 10 | R19: 65 | S19: 8 | T19: 9 | U19: 6 | V19: 12 | W19: 8 | X19: 3 | Y19: 46 | Z19: 2010-2011 | AC19: 1 | AD19: 4 | AE19: 3 | AF19: 2 | AG19: 2 | AH19: 7 | AI19: 19
I20: 2011-2012 | L20: ='Répartition 11-12 B'!M22 -> 2 | M20: ='Répartition 11-12 B'!M23 -> 5 | N20: ='Répartition 11-12 B'!M24 -> 2 | O20: ='Répartition 11-12 B'!V22 -> 3 | P20: ='Répartition 11-12 B'!V23 -> 2 | Q20: ='Répartition 11-12 B'!V24 -> 9 | R20: 23 | S20: 2 | T20: 5 | U20: 1 | V20: -3 | W20: -2 | X20: 8 | Y20: 11 | Z20: 2011-2012 | AC20: ='Répartition 11-12 B'!P22 -> 0 | AD20: ='Répartition 11-12 B'!P23 -> 0 | AE20: ='Répartition 11-12 B'!P24 -> 1 | AF20: ='Répartition 11-12 B'!Y22 -> 6 | AG20: ='Répartition 11-12 B'!Y23 -> 4 | AH20: ='Répartition 11-12 B'!Y24 -> 1 | AI20: 12
L21: =SUM(L15:L20) -> 27 | M21: 36 | N21: 36 | O21: 45 | P21: 41 | Q21: 52 | AC21: =SUM(AC15:AC20) -> 13 | AD21: 23 | AE21: 21 | AF21: 29 | AG21: 32 | AH21: 34
K24: COUPE / BUTS POUR | S24: ECART | Z24: COUPE / BUTS CONTRE
I25: SAISONS | L25: 1-15 | M25: 16-30 | N25: 31-45 | O25: 46-60 | P25: 61-75 | Q25: 76-90 | S25: 1-15 | T25: 16-30 | U25: 31-45 | V25: 46-60 | W25: 61-75 | X25: 76-90 | Z25: SAISONS | AC25: 1-15 | AD25: 16-30 | AE25: 31-45 | AF25: 46-60 | AG25: 61-75 | AH25: 76-90
I26: 2006-2007 | L26: 0 | M26: 0 | N26: 0 | O26: 0 | P26: 0 | Q26: 0 | R26: =SUM(L26:Q26) -> 0 | S26: =L26-AC26 -> 0 | T26: =M26-AD26 -> 0 | U26: 0 | V26: 0 | W26: 0 | X26: 0 | Y26: =SUM(S26:X26) -> 0 | Z26: 2006-2007 | AC26: 0 | AD26: 0 | AE26: 0 | AF26: 0 | AG26: 0 | AH26: 0 | AI26: =SUM(AC26:AH26) -> 0
I27: 2007-2008 | L27: 0 | M27: 2 | N27: 2 | O27: 1 | P27: 5 | Q27: 3 | R27: 13 | S27: -1 | T27: 2 | U27: 1 | V27: 1 | W27: 5 | X27: 0 | Y27: 8 | Z27: 2007-2008 | AC27: 1 | AD27: 0 | AE27: 1 | AF27: 0 | AG27: 0 | AH27: 3 | AI27: 5
I28: 2008-2009 | L28: 5 | M28: 6 | N28: 2 | O28: 3 | P28: 5 | Q28: 11 | R28: 32 | S28: 5 | T28: 6 | U28: 2 | V28: -1 | W28: 4 | X28: 7 | Y28: 23 | Z28: 2008-2009 | AC28: 0 | AD28: 0 | AE28: 0 | AF28: 4 | AG28: 1 | AH28: 4 | AI28: 9
I29: 2009-2010 | L29: 2 | M29: 2 | N29: 1 | O29: 1 | P29: 1 | Q29: 2 | R29: 9 | S29: 0 | T29: 1 | U29: 0 | V29: 0 | W29: -1 | X29: 1 | Y29: 1 | Z29: 2009-2010 | AC29: 2 | AD29: 1 | AE29: 1 | AF29: 1 | AG29: 2 | AH29: 1 | AI29: 8
I30: 2010-2011 | L30: 1 | M30: 0 | N30: 1 | O30: 0 | P30: 0 | Q30: 0 | R30: 2 | S30: 1 | T30: -1 | U30: 1 | V30: 0 | W30: -1 | X30: 0 | Y30: 0 | Z30: 2010-2011 | AC30: 0 | AD30: 1 | AE30: 0 | AF30: 0 | AG30: 1 | AH30: 0 | AI30: 2
I31: 2011-2012 | L31: ='Répartition 11-12 B'!M28 -> 4 | M31: ='Répartition 11-12 B'!M29 -> 3 | N31: ='Répartition 11-12 B'!M30 -> 3 | O31: ='Répartition 11-12 B'!V28 -> 4 | P31: ='Répartition 11-12 B'!V29 -> 3 | Q31: ='Répartition 11-12 B'!V30 -> 3 | R31: 20 | S31: 4 | T31: 2 | U31: 3 | V31: 3 | W31: 3 | X31: 3 | Y31: 18 | Z31: 2011-2012 | AC31: ='Répartition 11-12 B'!P28 -> 0 | AD31: ='Répartition 11-12 B'!P29 -> 1 | AE31: ='Répartition 11-12 B'!P30 -> 0 | AF31: ='Répartition 11-12 B'!Y28 -> 1 | AG31: ='Répartition 11-12 B'!Y29 -> 0 | AH31: ='Répartition 11-12 B'!Y30 -> 0 | AI31: 2
L32: =SUM(L26:L31) -> 12 | M32: 13 | N32: 9 | O32: 9 | P32: 14 | Q32: 19 | AC32: =SUM(AC26:AC31) -> 3 | AD32: 3 | AE32: 2 | AF32: 6 | AG32: 4 | AH32: 8
K35: GENERAL / BUTS POUR | S35: ECART | Z35: GENERAL / BUTS CONTRE
I36: SAISONS | L36: 1-15 | M36: 16-30 | N36: 31-45 | O36: 46-60 | P36: 61-75 | Q36: 76-90 | S36: 1-15 | T36: 16-30 | U36: 31-45 | V36: 46-60 | W36: 61-75 | X36: 76-90 | Z36: SAISONS | AC36: 1-15 | AD36: 16-30 | AE36: 31-45 | AF36: 46-60 | AG36: 61-75 | AH36: 76-90
I37: 2006-2007 | L37: =L15+L26 -> 0 | M37: 0 | N37: 0 | O37: 0 | P37: 0 | Q37: 0 | R37: =SUM(L37:Q37) -> 0 | S37: =L37-AC37 -> 0 | T37: =M37-AD37 -> 0 | U37: 0 | V37: 0 | W37: 0 | X37: 0 | Y37: =SUM(S37:X37) -> 0 | Z37: 2006-2007 | AC37: =AC15+AC26 -> 0 | AD37: 0 | AE37: 0 | AF37: 0 | AG37: 0 | AH37: 0 | AI37: =SUM(AC37:AH37) -> 0
I38: 2007-2008 | L38: 4 | M38: 5 | N38: 8 | O38: 7 | P38: 8 | Q38: 14 | R38: 46 | S38: -2 | T38: -5 | U38: -4 | V38: -3 | W38: -5 | X38: 0 | Y38: -19 | Z38: 2007-2008 | AC38: 6 | AD38: 10 | AE38: 12 | AF38: 10 | AG38: 13 | AH38: 14 | AI38: 65
I39: 2008-2009 | L39: 9 | M39: 16 | N39: 12 | O39: 13 | P39: 19 | Q39: 18 | R39: 87 | S39: 4 | T39: 12 | U39: 11 | V39: 6 | W39: 13 | X39: 4 | Y39: 50 | Z39: 2008-2009 | AC39: 5 | AD39: 4 | AE39: 1 | AF39: 7 | AG39: 6 | AH39: 14 | AI39: 37
I40: 2009-2010 | L40: 10 | M40: 7 | N40: 10 | O40: 13 | P40: 13 | Q40: 17 | R40: 70 | S40: 6 | T40: 1 | U40: 4 | V40: 4 | W40: 3 | X40: 11 | Y40: 29 | Z40: 2009-2010 | AC40: 4 | AD40: 6 | AE40: 6 | AF40: 9 | AG40: 10 | AH40: 6 | AI40: 41
I41: 2010-2011 | L41: 10 | M41: 13 | N41: 10 | O41: 14 | P41: 10 | Q41: 10 | R41: 67 | S41: 9 | T41: 8 | U41: 7 | V41: 12 | W41: 7 | X41: 3 | Y41: 46 | Z41: 2010-2011 | AC41: 1 | AD41: 5 | AE41: 3 | AF41: 2 | AG41: 3 | AH41: 7 | AI41: 21
I42: 2011-2012 | L42: 6 | M42: 8 | N42: 5 | O42: 7 | P42: 5 | Q42: 12 | R42: 43 | S42: 6 | T42: 7 | U42: 4 | V42: 0 | W42: 1 | X42: 11 | Y42: 29 | Z42: 2011-2012 | AC42: 0 | AD42: 1 | AE42: 1 | AF42: 7 | AG42: 4 | AH42: 1 | AI42: 14
L43: =SUM(L37:L42) -> 39 | M43: 49 | N43: 45 | O43: 54 | P43: 55 | Q43: 71 | AC43: =SUM(AC37:AC42) -> 16 | AD43: 26 | AE43: 23 | AF43: 35 | AG43: 36 | AH43: 42

Sheet Moyenne par matche B
A1: ASSOCIATION SPORTIVE DE CERISY GAILLY
A2: SAISON SENIORS 2011-2012
A3: SUIVI STATISTIQUE - SENIORS B
B5: Championnats : | F5: 1ère division / 3ème division | M5: Stade : | P5: rue du marais - 80800 Cerisy | Y5: Site internet : | AB5: as-cerisy.footeo.com
B7: Entraîneur : | F7: DUPUTEL David | N7: Adjoint : | R7: DUBOIS Sébastien | Z7: Coach B : | AD7: DEFOSSEZ Martial
F8: duputel.david@gmail.com | R8: sebastien.dubois@aerolia.com | AD8: martial.defossez@wanadoo.fr
F9: Tél : 03.22.96.00.51 / 06.17.16.09.47 | R9: Tél : 03.22.05.83.80 / 06.73.82.67.81 | AD9: Tél : 03.22.76.61.50
N14: CHAMPIONNAT | T14: COUPES | Z14: GENERAL
P15: POUR | R15: CONTRE | V15: POUR | X15: CONTRE | AB15: POUR | AD15: CONTRE
K16: SAISONS | N16: MATCHES | P16: BUTS | Q16: MOY | R16: BUTS | S16: MOY | T16: MATCHES | V16: BUTS | W16: MOY | X16: BUTS | Y16: MOY | Z16: MATCHES | AB16: BUTS | AC16: MOY | AD16: BUTS | AE16: MOY
K17: 2006-2007 | N17: 21 | P17: 49 | Q17: =P17/N17 -> 2.333333333 | R17: 15 | S17: =R17/N17 -> 0.7142857143 | T17: 10 | V17: 24 | W17: =V17/T17 -> 2.4 | X17: 12 | Y17: =X17/T17 -> 1.2 | Z17: =N17+T17 -> 31 | AB17: =P17+V17 -> 73 | AC17: =AB17/Z17 -> 2.35483871 | AD17: =R17+X17 -> 27 | AE17: =AD17/Z17 -> 0.8709677419
K18: 2007-2008 | N18: 22 | P18: 50 | Q18: 2.272727273 | R18: 13 | S18: 0.5909090909 | T18: 5 | V18: 14 | W18: 2.8 | X18: 6 | Y18: 1.2 | Z18: 27 | AB18: 64 | AC18: 2.37037037 | AD18: 19 | AE18: 0.7037037037
K19: 2008-2009 | N19: 22 | P19: 42 | Q19: 1.909090909 | R19: 19 | S19: 0.8636363636 | T19: 11 | V19: 28 | W19: 2.545454545 | X19: 17 | Y19: 1.545454545 | Z19: 33 | AB19: 70 | AC19: 2.121212121 | AD19: 36 | AE19: 1.090909091
K20: 2009-2010 | N20: 20 | P20: 32 | Q20: 1.6 | R20: 26 | S20: 1.3 | T20: 7 | V20: 11 | W20: 1.571428571 | X20: 12 | Y20: 1.714285714 | Z20: 27 | AB20: 43 | AC20: 1.592592593 | AD20: 38 | AE20: 1.407407407
K21: 2010-2011 | N21: 22 | P21: 65 | Q21: 2.954545455 | R21: 19 | S21: 0.8636363636 | T21: 1 | V21: 0 | W21: 0 | X21: 2 | Y21: 2 | Z21: 23 | AB21: 65 | AC21: 2.826086957 | AD21: 21 | AE21: 0.9130434783
K22: 2011-2012 | N22: ='Clst B'!S16 -> 10 | P22: ='Répartition Générale B'!R20 -> 23 | Q22: 2.3 | R22: ='Répartition Générale B'!AI20 -> 12 | S22: 1.2 | T22: ='Répartition 11-12 B'!AC27 -> 2 | V22: ='Répartition Générale B'!R31 -> 20 | W22: 10 | X22: ='Répartition Générale B'!AI31 -> 2 | Y22: 1 | Z22: 12 | AB22: 43 | AC22: 3.583333333 | AD22: 14 | AE22: 1.166666667
N23: =SUM(N17:O22) -> 117 | P23: =SUM(P17:P22) -> 261 | Q23: 2.230769231 | R23: =SUM(R17:R22) -> 104 | S23: 0.8888888889 | T23: =SUM(T17:U22) -> 36 | V23: =SUM(V17:V22) -> 97 | W23: 2.694444444 | X23: =SUM(X17:X22) -> 51 | Y23: 1.416666667 | Z23: =SUM(Z17:AA22) -> 153 | AB23: =SUM(AB17:AB22) -> 358 | AC23: 2.339869281 | AD23: =SUM(AD17:AD22) -> 155 | AE23: 1.013071895

Sheet Joueurs B
A1: ASSOCIATION SPORTIVE DE CERISY GAILLY
A2: SAISON SENIORS 2011-2012
A3: SUIVI STATISTIQUE - SENIORS A
B5: Championnats : | F5: 1ère division / 3ème division | M5: Stade : | P5: rue du marais - 80800 Cerisy | Y5: Site internet : | AB5: as-cerisy.footeo.com
B7: Entraîneur : | F7: DUPUTEL David | N7: Adjoint : | R7: DUBOIS Sébastien | Z7: Coach B : | AD7: DEFOSSEZ Martial
F8: duputel.david@gmail.com | R8: sebastien.dubois@aerolia.com | AD8: martial.defossez@wanadoo.fr
F9: Tél : 03.22.96.00.51 / 06.17.16.09.47 | R9: Tél : 03.22.05.83.80 / 06.73.82.67.81 | AD9: Tél : 03.22.76.61.50
M13: Général | W13: Saison 2008-2009 | AE13: Saison 2009-2010 | AM13: Saison 2010-2011 | AU13: Saison 2011-2012
I14: Joueurs Utilisés | N14: Titulaire | O14: Joués | P14: Titulaire | Q14: Remplaçant | R14: Buts | S14: Passes | T14: Jaunes | U14: Rouges | W14: Joués | X14: Titulaire | Y14: Remplaçant | Z14: Buts | AA14: Passes | AB14: Jaunes | AC14: Rouges | AE14: Joués | AF14: Titulaire | AG14: Remplaçant | AH14: Buts | AI14: Passes | AJ14: Jaunes | AK14: Rouges | AM14: Joués | AN14: Titulaire | AO14: Remplaçant | AP14: Buts | AQ14: Passes | AR14: Jaunes | AS14: Rouges | AU14: Joués | AV14: Titulaire | AW14: Remplaçant | AX14: Buts | AY14: Passes | AZ14: Jaunes | BA14: Rouges
I15: Roussel Dimitri | M15: 1 | N15: =P15/O15 -> 1 | O15: =W15+AE15+AM15+AU15 -> 23 | P15: =X15+AF15+AN15+AV15 -> 23 | Q15: =Y15+AG15+AO15+AW15 -> 0 | R15: 0 | S15: 0 | T15: =AB15+AJ15+AR15+AZ15 -> 0 | U15: =AC15+AK15+AS15+BA15 -> 0 | AG15: =AE15-AF15 -> 0 | AM15: 23 | AN15: 23 | AO15: =AM15-AN15 -> 0 | AW15: =AU15-AV15 -> 0
I16: Dupont Kévin | M16: 1 | N16: =P16/O16 -> 0.8333333333 | O16: =W16+AE16+AM16+AU16 -> 24 | P16: 20 | Q16: 4 | R16: 14 | S16: 13 | T16: 1 | U16: 0 | AG16: =AE16-AF16 -> 0 | AM16: 18 | AN16: 15 | AO16: =AM16-AN16 -> 3 | AP16: 9 | AQ16: 10 | AT16: 1 | AU16: 6 | AV16: 5 | AW16: =AU16-AV16 -> 1 | AX16: 5 | AY16: 3 | AZ16: 1
I17: Dhiu Alexandre | M17: 1 | N17: =P17/O17 -> 0 | O17: 30 | Q17: 1 | R17: 0 | S17: 0 | T17: 0 | U17: 0 | AG17: =AE17-AF17 -> 0 | AM17: 19 | AN17: 18 | AO17: =AM17-AN17 -> 1 | AU17: 11 | AV17: 11 | AW17: =AU17-AV17 -> 0
I18: Carette Cédric | M18: 1 | N18: 0.96875 | O18: 32 | P18: 31 | Q18: 1 | R18: 8 | S18: 3 | T18: 0 | U18: 0 | AG18: 0 | AM18: 21 | AN18: 20 | AO18: 1 | AP18: 5 | AQ18: 1 | AT18: 1 | AU18: 11 | AV18: 11 | AW18: 0 | AX18: 3 | AY18: 2
I19: Mascré Ghislain | M19: 1 | N19: 0.9545454545 | O19: 22 | P19: 21 | Q19: 1 | R19: 17 | S19: 7 | T19: 0 | U19: 0 | AG19: 0 | AM19: 22 | AN19: 21 | AO19: 1 | AP19: 17 | AQ19: 7 | AW19: 0
I20: Ranvin Rémi | M20: 1 | N20: 1 | O20: 23 | P20: 23 | Q20: 0 | R20: 5 | S20: 7 | T20: 0 | U20: 0 | AG20: 0 | AM20: 23 | AN20: 23 | AO20: 0 | AP20: 5 | AQ20: 7 | AW20: 0
I21: Ranvin Lori | M21: 1 | N21: 1 | O21: 10 | P21: 10 | Q21: 0 | R21: 10 | S21: 8 | T21: 1 | U21: 0 | AG21: 0 | AM21: 3 | AN21: 3 | AO21: 0 | AP21: 2 | AT21: 1 | AU21: 7 | AV21: 7 | AW21: 0 | AX21: 8 | AY21: 8 | AZ21: 1
I22: Beyaert Antoine | M22: 1 | N22: 0.9166666667 | O22: 12 | P22: 11 | Q22: 1 | R22: 1 | S22: 4 | T22: 0 | U22: 0 | AG22: 0 | AM22: 12 | AN22: 11 | AO22: 1 | AP22: 1 | AQ22: 4 | AW22: 0
I23: Josse Grégory | M23: 1 | N23: 1 | O23: 16 | P23: 16 | Q23: 0 | R23: 7 | S23: 11 | T23: 2 | U23: 0 | AG23: 0 | AM23: 4 | AN23: 4 | AO23: 0 | AQ23: 4 | AT23: 1 | AU23: 12 | AV23: 12 | AW23: 0 | AX23: 7 | AY23: 7 | AZ23: 2
I24: Berton Thibault | M24: 1 | N24: 0.8260869565 | O24: 23 | P24: 19 | Q24: 4 | R24: 10 | S24: 1 | T24: 0 | U24: 0 | AG24: 0 | AM24: 15 | AN24: 13 | AO24: 2 | AP24: 5 | AT24: 1 | AU24: 8 | AV24: 6 | AW24: 2 | AX24: 5 | AY24: 1
I25: Revaux Sylvain | M25: 1 | N25: 1 | O25: 20 | P25: 20 | Q25: 0 | R25: 0 | S25: 0 | T25: 0 | U25: 0 | AG25: 0 | AM25: 20 | AN25: 20 | AO25: 0 | AW25: 0
I26: Diéval Maxime | M26: 1 | N26: 1 | O26: 2 | P26: 2 | Q26: 0 | R26: 0 | S26: 0 | T26: 0 | U26: 0 | AG26: 0 | AM26: 2 | AN26: 2 | AO26: =AM26-AN26 -> 0 | AW26: 0
I27: Tibault Jonathan | M27: 1 | N27: 0.3333333333 | O27: 15 | P27: 5 | Q27: 10 | R27: 4 | S27: 1 | T27: 0 | U27: 0 | AG27: 0 | AM27: 15 | AN27: 5 | AO27: 10 | AP27: 4 | AQ27: 1 | AW27: 0
I28: Dumont Eric | M28: 1 | N28: 0.9310344828 | O28: 29 | P28: 27 | Q28: 2 | R28: 0 | S28: 0 | T28: 1 | U28: 0 | AG28: 0 | AM28: 20 | AN28: 20 | AO28: 0 | AT28: 1 | AU28: 9 | AV28: 7 | AW28: 2 | AZ28: 1
I29: Courtois Kévin | M29: 1 | N29: 0.8888888889 | O29: 18 | P29: 16 | Q29: 2 | R29: 6 | S29: 4 | T29: 2 | U29: 0 | AG29: 0 | AM29: 18 | AN29: 16 | AO29: 2 | AP29: 6 | AQ29: 4 | AR29: 2 | AW29: 0
I30: Waquet Ludovic | M30: 1 | N30: 1 | O30: 1 | P30: 1 | Q30: 0 | R30: 0 | S30: 1 | T30: 0 | U30: 0 | AG30: 0 | AM30: 1 | AN30: 1 | AO30: 0 | AQ30: 1 | AW30: 0
I31: de Bruyne Rudy | M31: 1 | N31: 0.7931034483 | O31: 29 | P31: 23 | Q31: 6 | R31: 0 | S31: 1 | T31: 1 | U31: 0 | AG31: 0 | AM31: 18 | AN31: 14 | AO31: 4 | AQ31: 1 | AR31: 1 | AU31: 11 | AV31: 9 | AW31: 2
I32: Amarias Yannick | M32: 1 | N32: 0.65 | O32: 20 | P32: 13 | Q32: 7 | R32: 0 | S32: 5 | T32: 1 | U32: 0 | AG32: 0 | AM32: 10 | AN32: 5 | AO32: 5 | AQ32: 3 | AR32: 1 | AT32: 1 | AU32: 10 | AV32: 8 | AW32: 2 | AY32: 2
I33: Maurice Fabian | M33: 1 | N33: 0.2352941176 | O33: 17 | P33: 4 | Q33: 13 | R33: 6 | S33: 0 | T33: 0 | U33: 0 | AG33: 0 | AM33: 10 | AN33: 2 | AO33: 8 | AP33: 3 | AT33: 1 | AU33: 7 | AV33: 2 | AW33: 5 | AX33: 3
I34: Jérôme Vincent | M34: 1 | N34: 1 | O34: 4 | P34: 4 | Q34: 0 | R34: 5 | S34: 2 | T34: 0 | U34: 0 | AG34: 0 | AM34: 3 | AN34: 3 | AO34: 0 | AP34: 4 | AQ34: 2 | AU34: 1 | AV34: 1 | AW34: 0 | AX34: 1
I35: Faqui Alexandre | M35: 1 | N35: 0.6923076923 | O35: 13 | P35: 9 | Q35: 4 | R35: 0 | S35: 2 | T35: 0 | U35: 0 | AG35: 0 | AM35: 5 | AN35: 2 | AO35: =AM35-AN35 -> 3 | AQ35: 1 | AU35: 8 | AV35: 7 | AW35: 1 | AY35: 1
I36: Largillère Franck | M36: 1 | N36: 0.5 | O36: 8 | P36: 4 | Q36: 4 | R36: 1 | S36: 0 | T36: 0 | U36: 0 | AG36: 0 | AM36: 8 | AN36: 4 | AO36: 4 | AP36: 1 | AW36: 0
I37: Ledoux Alexis | M37: 1 | N37: 0 | O37: 1 | P37: 0 | Q37: 1 | R37: 0 | S37: 0 | T37: 0 | U37: 0 | AG37: 0 | AM37: 1 | AN37: 0 | AO37: 1 | AW37: 0
I38: Aince Philippe | M38: 1 | N38: 0.8 | O38: 5 | P38: 4 | Q38: 1 | R38: 0 | S38: 0 | T38: 0 | U38: 0 | AG38: 0 | AM38: 5 | AN38: 4 | AO38: 1 | AW38: 0
I39: Chabat Cory | M39: 1 | N39: 0 | O39: 2 | P39: 0 | Q39: 2 | R39: 1 | S39: 0 | T39: 0 | U39: 0 | AG39: =AE39-AF39 -> 0 | AM39: 1 | AN39: 0 | AO39: 1 | AU39: 1 | AV39: 0 | AW39: 1 | AX39: 1
I40: Defossez Rémi | M40: 1 | N40: 0.8333333333 | O40: 6 | P40: 5 | Q40: 1 | R40: 1 | S40: 0 | T40: 0 | U40: 0 | AG40: =AE40-AF40 -> 0 | AM40: 2 | AN40: 2 | AO40: =AM40-AN40 -> 0 | AP40: 1 | AU40: 4 | AV40: 3 | AW40: 1
I41: Defossez Aurélien | N41: 1 | O41: 5 | P41: 5 | Q41: 0 | R41: 0 | S41: 0 | T41: 0 | U41: 0 | AG41: 0 | AO41: 0 | AU41: 5 | AV41: 5 | AW41: 0
I42: Subitte Alexis | O42: 0 | P42: 1 | Q42: 1 | R42: 0 | S42: 0 | T42: 1 | U42: 0 | AG42: 0 | AO42: 0 | AU42: 0 | AV42: 1 | AW42: =AV42-AU42 -> 1 | AZ42: 1
I43: Plesnage Jérôme | N43: 0.6666666667 | O43: 9 | P43: 6 | Q43: 3 | R43: 1 | S43: 0 | T43: 0 | U43: 0 | AG43: 0 | AO43: 0 | AT43: 1 | AU43: 9 | AV43: 6 | AW43: 3 | AX43: 1
I44: Alépée Yannick | N44: 1 | O44: 11 | P44: 11 | Q44: 0 | R44: 0 | S44: 0 | T44: 0 | U44: 0 | AG44: 0 | AO44: =AM44-AN44 -> 0 | AT44: 1 | AU44: 11 | AV44: 11 | AW44: 0
I45: Douay Clément | N45: 1 | O45: 2 | P45: 2 | Q45: 0 | R45: 0 | S45: 0 | T45: 0 | U45: 0 | AG45: 0 | AO45: =AM45-AN45 -> 0 | AU45: 2 | AV45: 2 | AW45: 0
I46: Martins Rudy | N46: 1 | O46: 2 | P46: 2 | Q46: 0 | R46: 1 | S46: 0 | T46: 0 | U46: 0 | AG46: 0 | AO46: =AM46-AN46 -> 0 | AU46: 2 | AV46: 2 | AW46: 0 | AX46: 1
I47: Larouette Yann | N47: 1 | O47: 11 | P47: 11 | Q47: 0 | R47: 6 | S47: 1 | T47: 0 | U47: 0 | AG47: 0 | AO47: =AM47-AN47 -> 0 | AT47: 1 | AU47: 11 | AV47: 11 | AW47: 0 | AX47: 6 | AY47: 1
I48: Delplanque Maxime | N48: 0.6666666667 | O48: 3 | P48: 2 | Q48: 1 | R48: 0 | S48: 0 | T48: 0 | U48: 0 | AG48: 0 | AO48: =(AM48-AN48) -> 0 | AT48: 1 | AU48: 3 | AV48: 2 | AW48: =(AU48-AV48) -> 1
I49: Borck Stéphane | N49: 1 | O49: 1 | P49: 1 | Q49: 0 | R49: 0 | S49: 0 | T49: 0 | U49: 0 | AG49: 0 | AO49: =AM49-AN49 -> 0 | AU49: 1 | AV49: 1 | AW49: =AU49-AV49 -> 0
I50: Capelle Stéphane | N50: 0 | O50: 1 | P50: 0 | Q50: 1 | R50: 1 | S50: 0 | T50: 0 | U50: 0 | AO50: 0 | AU50: 1 | AV50: 0 | AW50: 1 | AX50: 1
I51: Pitarch Boris | N51: 0.6666666667 | O51: 3 | P51: 2 | Q51: 1 | R51: 1 | S51: 2 | T51: 0 | U51: 0 | AO51: 0 | AT51: 1 | AU51: 3 | AV51: 2 | AW51: 1 | AX51: 1 | AY51: 2
I52: Duquenoy Loïc | N52: 0.3333333333 | O52: 3 | P52: 1 | Q52: 2 | R52: 0 | S52: 1 | T52: 0 | U52: 0 | AO52: 0 | AT52: 1 | AU52: 3 | AV52: 1 | AW52: 2 | AY52: 1
I53: Dècle Jérôme | N53: 1 | O53: 1 | P53: 1 | Q53: 0 | R53: 0 | S53: 0 | T53: 0 | U53: 0 | AO53: 0 | AU53: 1 | AV53: 1 | AW53: 0
O54: 0 | P54: 0 | Q54: 0 | R54: 0 | S54: 0 | T54: 0 | U54: 0 | AO54: 0 | AW54: 0
O55: 0 | P55: 0 | Q55: 0 | R55: 0 | S55: 0 | T55: 0 | U55: 0 | AE55: 0 | AF55: 0 | AG55: 0 | AO55: 0 | AW55: 0
O56: 0 | P56: 0 | Q56: 0 | R56: 0 | S56: 0 | T56: 0 | U56: 0
O57: 0 | P57: 0 | Q57: 0 | R57: 0 | S57: 0 | T57: 0 | U57: 0
O58: 0 | P58: 0 | Q58: 0 | R58: 0 | S58: 0 | T58: 0 | U58: 0
O59: 0 | P59: 0 | Q59: 0 | R59: 0 | S59: 0 | T59: 0 | U59: 0
O60: 0 | P60: 0 | Q60: 0 | R60: 0 | S60: 0 | T60: 0 | U60: 0
O61: 0 | P61: 0 | Q61: 0 | R61: 0 | S61: 0 | T61: 0 | U61: 0
O62: 0 | P62: 0 | Q62: 0 | R62: 0 | S62: 0 | T62: 0 | U62: 0
O63: 0 | P63: =X63+AF63+AN63+AV63 -> 0 | Q63: 0 | R63: 0 | S63: 0 | T63: 0 | U63: 0
O64: =W64+AE64+AM64+AU64 -> 0 | P64: 0 | Q64: 0 | R64: 0 | S64: 0 | T64: 0 | U64: 0
O65: =W65+AE65+AM65+AU65 -> 0 | P65: 0 | Q65: 0 | R65: 0 | S65: 0 | T65: 0 | U65: 0 | AE65: 0 | AF65: 0 | AG65: =AE65-AF65 -> 0
M66: =SUM(M15:M65) -> 26 | O66: =SUM(O15:O65) -> 457 | P66: 356 | Q66: 74 | R66: 106 | S66: 74 | T66: 10 | U66: 0 | W66: =SUM(W15:W65) -> 0 | X66: 0 | Y66: 0 | Z66: 0 | AA66: 0 | AB66: 0 | AC66: 0 | AE66: =SUM(AE15:AE65) -> 0 | AF66: 0 | AG66: 0 | AH66: 0 | AI66: 0 | AJ66: 0 | AK66: 0 | AM66: =SUM(AM15:AM65) -> 299 | AN66: 251 | AO66: 48 | AP66: 63 | AQ66: 46 | AR66: 4 | AS66: 0 | AT66: =SUM(AT15:AT65) -> 14 | AU66: =SUM(AU15:AU65) -> 158 | AV66: 134 | AW66: 26 | AX66: 43 | AY66: 28 | AZ66: 6 | BA66: 0

Sheet Forme Buteurs B
A1: ASSOCIATION SPORTIVE DE CERISY GAILLY
A2: SAISON SENIORS 2011-2012
A3: SUIVI STATISTIQUE - SENIORS B
B5: Championnats : | F5: 1ère division / 3ème division | M5: Stade : | P5: rue du marais - 80800 Cerisy | Y5: Site internet : | AB5: as-cerisy.footeo.com
B7: Entraîneur : | F7: DUPUTEL David | N7: Adjoint : | R7: DUBOIS Sébastien | Z7: Coach B : | AD7: DEFOSSEZ Martial
F8: duputel.david@gmail.com | R8: sebastien.dubois@aerolia.com | AD8: martial.defossez@wanadoo.fr
F9: Tél : 03.22.96.00.51 / 06.17.16.09.47 | R9: Tél : 03.22.05.83.80 / 06.73.82.67.81 | AD9: Tél : 03.22.76.61.50
L13: 2011 | X13: 2012
H14: NOMS / PRENOMS | L14: 2011-09-04 | M14: 2011-09-11 | N14: 2011-09-18 | O14: 2011-10-09 | P14: 2011-10-16 | Q14: 2011-10-23 | R14: 2011-10-30 | S14: 2011-11-06 | T14: 2011-11-13 | U14: 2011-11-20 | V14: 2011-11-27 | W14: 2011-12-04
H15: RANVIN Lori | K15: =SUM(L15:AR15) -> 8 | L15: 1 | O15: 1 | P15: 5 | R15: 1
H16: JOSSE Grégory | K16: 7 | M16: 1 | P16: 4 | T16: 1 | U16: 1
H17: LAROUETTE Yann | K17: 6 | M17: 2 | P17: 2 | U17: 1 | V17: 1
H18: BERTON Thibault | K18: 5 | M18: 2 | P18: 2 | V18: 1
H19: DUPONT Kévin | K19: 5 | R19: 1 | S19: 2 | T19: 1 | U19: 1
H20: CARETTE Cédric | K20: 3 | M20: 1 | P20: 1 | R20: 1
H21: MAURICE Fabian | K21: 3 | P21: 1 | R21: 1 | V21: 1
H22: CHABA Cory | K22: 1 | M22: 1
H23: MARTINS Rudy | K23: 1 | M23: 1
H24: CAPELLE Stéphane | K24: 1 | Q24: 1
H25: PLESNAGE Jérôme | K25: 1 | P25: 1
H26: JEROME Vincent | K26: 1 | T26: 1
H27: PITARCH Boris | K27: 1 | U27: 1
K28: 0
K29: 0
K30: 0
K31: 0
K32: 0
K33: 0
K34: 0
K35: 0
K36: 0
K37: 0
K38: 0
K39: 0
K41: =SUM(K15:K40) -> 43 | L41: =SUM(L15:L40) -> 1 | M41: =SUM(M15:M40) -> 8 | N41: 0 | O41: 1 | P41: 16 | Q41: 1 | R41: 4 | S41: 2 | T41: 3 | U41: 4 | V41: 3 | W41: 0 | X41: 0 | Y41: 0 | Z41: 0 | AA41: 0 | AB41: 0 | AC41: 0 | AD41: 0 | AE41: 0 | AF41: 0 | AG41: 0 | AH41: 0 | AI41: 0 | AJ41: 0 | AK41: 0 | AL41: 0 | AM41: 0 | AN41: 0 | AO41: 0 | AP41: 0 | AQ41: 0 | AR41: 0

Sheet Forme Passeurs B
A1: ASSOCIATION SPORTIVE DE CERISY GAILLY
A2: SAISON SENIORS 2011-2012
A3: SUIVI STATISTIQUE - SENIORS B
B5: Championnats : | F5: 1ère division / 3ème division | M5: Stade : | P5: rue du marais - 80800 Cerisy | Y5: Site internet : | AB5: as-cerisy.footeo.com
B7: Entraîneur : | F7: DUPUTEL David | N7: Adjoint : | R7: DUBOIS Sébastien | Z7: Coach B : | AD7: DEFOSSEZ Martial
F8: duputel.david@gmail.com | R8: sebastien.dubois@aerolia.com | AD8: martial.defossez@wanadoo.fr
F9: Tél : 03.22.96.00.51 / 06.17.16.09.47 | R9: Tél : 03.22.05.83.80 / 06.73.82.67.81 | AD9: Tél : 03.22.76.61.50
L13: 2011 | X13: 2012
H14: NOMS / PRENOMS | L14: 2011-09-04 | M14: 2011-09-11 | N14: 2011-09-18 | O14: 2011-10-09 | P14: 2011-10-16 | Q14: 2011-10-23 | R14: 2011-10-30 | S14: 2011-11-06 | T14: 2011-11-13 | U14: 2011-11-20 | V14: 2011-11-27 | W14: 2011-12-04
H15: RANVIN Lori | K15: =SUM(L15:AR15) -> 7 | M15: 2 | Q15: 5
H16: JOSSE Grégory | K16: 7 | M16: 4 | O16: 1 | U16: 1 | V16: 1
H17: DUPONT Kévin | K17: 4 | S17: 1 | U17: 1 | V17: 2
H18: AMARIAS Yannick | K18: 2 | R18: 2
H19: CARETTE Cédric | K19: 2 | R19: 1 | T19: 1
H20: PITARCH Boris | K20: 2 | R20: 1 | U20: 1
H21: BERTON Thibault | K21: 1 | M21: 1
H22: LAROUETTE Yann | K22: 1 | Q22: 1
H23: FAQUI Alexandre | K23: 1 | T23: 1
H24: DUQUENOY Loïc | K24: 1 | U24: 1
K25: 0
K26: 0
K27: 0
K28: 0
K29: 0
K30: 0
K31: 0
K32: 0
K33: 0
K34: 0
K35: 0
K36: 0
K37: 0
K38: 0
K39: 0
K41: =SUM(K15:K40) -> 28 | L41: =SUM(L15:L40) -> 0 | M41: =SUM(M15:M40) -> 7 | N41: 0 | O41: 1 | P41: 0 | Q41: 6 | R41: 4 | S41: 1 | T41: 2 | U41: 4 | V41: 3 | W41: 0 | X41: 0 | Y41: 0 | Z41: 0 | AA41: 0 | AB41: 0 | AC41: 0 | AD41: 0 | AE41: 0 | AF41: 0 | AG41: 0 | AH41: 0 | AI41: 0 | AJ41: 0 | AK41: 0 | AL41: 0 | AM41: 0 | AN41: 0 | AO41: 0 | AP41: 0 | AQ41: 0 | AR41: 0

Sheet Résultats 2006-2011 B
A1: Résultats 2006 - 2001 Equipe B | K1: DEPUIS LA SAISON 2006-2007
A2: Jour | B2: Mois | C2: Années | D2: Equipe Domicile | E2: Equipe Extérieur | F2: Score | G2: Score | H2: Compétitions | I2: Résultats
A3: 3 | B3: 9 | C3: 2006 | D3: Rosières 2 | E3: Cerisy B | F3: 1 | G3: 0 | H3: Championnat 3ème Division | I3: Défaite
A4: 10 | B4: 9 | C4: 2006 | D4: Cerisy B | E4: Ham 2 | F4: 3 | G4: 2 | H4: Championnat 3ème Division | I4: Victoire | K4: Victoires | M4: =N4/N10 -> 0.5069444444 | N4: 73
A5: 17 | B5: 9 | C5: 2006 | D5: Sourdon | E5: Cerisy B | F5: 3 | G5: 0 | H5: Challenge Fromentin | I5: Défaite
A6: 24 | B6: 9 | C6: 2006 | D6: Cerisy B | E6: Le Hamel 2 | F6: 10 | G6: 3 | H6: Championnat 3ème Division | I6: Victoire | K6: Nuls | M6: =N6/N10 -> 0.1388888889 | N6: 20
A7: 1 | B7: 10 | C7: 2006 | D7: Moislains 2 | E7: Cerisy B | F7: 6 | G7: 0 | H7: Championnat 3ème Division | I7: Défaite
A8: 15 | B8: 10 | C8: 2006 | D8: Cerisy B | E8: Dompierre 2 | F8: 3 | G8: 2 | H8: Championnat 3ème Division | I8: Victoire | K8: Défaites | M8: =N8/N10 -> 0.3541666667 | N8: 51
A9: 22 | B9: 10 | C9: 2006 | D9: Braye sur Somme 2 | E9: Cerisy B | F9: 1 | G9: 1 | H9: Challenge Jouglet | I9: Victoire
A10: 29 | B10: 10 | C10: 2006 | D10: Marchelepot | E10: Cerisy B | F10: 8 | G10: 1 | H10: Championnat 3ème Division | I10: Défaite | K10: Nbre de Matches | M10: =M4+M6+M8 -> 1 | N10: =N4+N6+N8 -> 144
A11: 5 | B11: 11 | C11: 2006 | D11: Cerisy B | E11: Sailly Saillisel 2 | F11: 1 | G11: 2 | H11: Championnat 3ème Division | I11: Défaite
A12: 12 | B12: 11 | C12: 2006 | D12: Cerisy B | E12: Monchy | F12: 1 | G12: 4 | H12: Championnat 3ème Division | I12: Défaite | K12: Championnats | M12: =M13+M14 -> 117 | N12: =M12/N10 -> 0.8125
A13: 19 | B13: 11 | C13: 2006 | D13: Allaines | E13: Cerisy B | F13: 3 | G13: 0 | H13: Championnat 3ème Division | I13: Défaite | K13: 3ème Division | M13: 52
A14: 17 | B14: 12 | C14: 2006 | D14: Cerisy B | E14: Rosières 2 | F14: 5 | G14: 1 | H14: Championnat 3ème Division | I14: Victoire | K14: 4ème Division | M14: 65
A15: 7 | B15: 1 | C15: 2007 | D15: Cerisy B | E15: Chaulnes 2 | F15: 4 | G15: 1 | H15: Challenge Jouglet | I15: Victoire | K15: Challenge Fromentin | M15: 14 | N15: =M15/N10 -> 0.09722222222
A16: 14 | B16: 1 | C16: 2007 | D16: Cerisy B | E16: Ercheu Nesle 3 | F16: 1 | G16: 2 | H16: Championnat 3ème Division | I16: Défaite | K16: Challenge Jouglet | M16: 10 | N16: =M16/N10 -> 0.06944444444
A17: 18 | B17: 2 | C17: 2007 | D17: Ham 2 | E17: Cerisy B | F17: 3 | G17: 0 | H17: Championnat 3ème Division | I17: Défaite | K17: Challenge Guéant | M17: 3 | N17: =M17/N10 -> 0.02083333333
A18: 11 | B18: 3 | C18: 2007 | D18: Cerisy B | E18: Moislains 2 | F18: 2 | G18: 5 | H18: Championnat 3ème Division | I18: Défaite
A19: 18 | B19: 3 | C19: 2007 | D19: Le Hamel 2 | E19: Cerisy B | F19: 1 | G19: 0 | H19: Championnat 3ème Division | I19: Défaite
A20: 25 | B20: 3 | C20: 2007 | D20: Dompierre 2 | E20: Cerisy B | F20: 1 | G20: 1 | H20: Championnat 3ème Division | I20: nul | M20: =M12+M15+M16+M17 -> 144
A21: 1 | B21: 4 | C21: 2007 | D21: Cerisy B | E21: Marchelepot | F21: 1 | G21: 2 | H21: Championnat 3ème Division | I21: Défaite | K21: Séries
A22: 7 | B22: 4 | C22: 2007 | D22: Moreuil 2 | E22: Cerisy B | F22: 5 | G22: 2 | H22: Championnat 3ème Division | I22: Défaite
A23: 9 | B23: 4 | C23: 2007 | D23: Hombleux | E23: Cerisy B | F23: 3 | G23: 0 | H23: Challenge Jouglet | I23: Défaite | K23: Victoires Consécutives
A24: 15 | B24: 4 | C24: 2007 | D24: Monchy | E24: Cerisy B | F24: 2 | G24: 0 | H24: Championnat 3ème Division | I24: Défaite | K24: 6
A25: 22 | B25: 4 | C25: 2007 | D25: Cerisy B | E25: Allaines | F25: 4 | G25: 1 | H25: Championnat 3ème Division | I25: Victoire | K25: Période
A26: 6 | B26: 5 | C26: 2007 | D26: Ercheu Nesle 3 | E26: Cerisy B | F26: 0 | G26: 1 | H26: Championnat 3ème Division | I26: Victoire | K26: 06/06/2010 au 10/10/2010
A27: 13 | B27: 5 | C27: 2007 | D27: Cerisy B | E27: Moreuil 2 | F27: 1 | G27: 5 | H27: Championnat 3ème Division | I27: Défaite
A28: 20 | B28: 5 | C28: 2007 | D28: Sailly Saillisel 2 | E28: Cerisy B | F28: 0 | G28: 3 | H28: Championnat 3ème Division | I28: Victoire | K28: Nuls Consécutifs
A29: 2 | B29: 9 | C29: 2007 | D29: Ham 2 | E29: Cerisy B | F29: 3 | G29: 4 | H29: Championnat 3ème Division | I29: Victoire | K29: 2
A30: 16 | B30: 9 | C30: 2007 | D30: Cerisy B | E30: Allaines | F30: 1 | G30: 1 | H30: Championnat 3ème Division | I30: nul | K30: Période
A31: 23 | B31: 9 | C31: 2007 | D31: Albert Sport 3 | E31: Cerisy B | F31: 0 | G31: 3 | H31: Challenge Fromentin | I31: Victoire | K31: 02/05/2010 au 05/05/2010
A32: 30 | B32: 9 | C32: 2007 | D32: Montdidier 3 | E32: Cerisy B | F32: 1 | G32: 4 | H32: Championnat 3ème Division | I32: Victoire
A33: 7 | B33: 10 | C33: 2007 | D33: Monchy | E33: Cerisy B | F33: 3 | G33: 3 | H33: Championnat 3ème Division | I33: nul | K33: Défaites Consécutives
A34: 14 | B34: 10 | C34: 2007 | D34: Cerisy B | E34: Licourt | F34: 2 | G34: 1 | H34: Championnat 3ème Division | I34: Victoire | K34: 4
A35: 21 | B35: 10 | C35: 2007 | D35: Maurepas | E35: Cerisy B | F35: 1 | G35: 0 | H35: Challenge Fromentin | I35: Défaite | K35: Période
A36: 28 | B36: 10 | C36: 2007 | D36: Sailly Saillisel 2 | E36: Cerisy B | F36: 5 | G36: 2 | H36: Championnat 3ème Division | I36: Défaite | K36: 21/12/2008 au 22/02/2009
A37: 4 | B37: 11 | C37: 2007 | D37: Cerisy B | E37: Albert Sport 3 | F37: 0 | G37: 0 | H37: Championnat 3ème Division | I37: nul
A38: 11 | B38: 11 | C38: 2007 | D38: Cerisy B | E38: Moreuil 2 | F38: 1 | G38: 1 | H38: Championnat 3ème Division | I38: nul | K38: Matches Consécutifs sans Défaite
A39: 18 | B39: 11 | C39: 2007 | D39: Equancourt | E39: Cerisy B | F39: 3 | G39: 1 | H39: Championnat 3ème Division | I39: Défaite | K39: 9
A40: 25 | B40: 11 | C40: 2007 | D40: Cerisy B | E40: Marcelcaves | F40: 2 | G40: 0 | H40: Challenge Jouglet | I40: Victoire | K40: Période
A41: 6 | B41: 1 | C41: 2008 | D41: Cerisy B | E41: Englebelmer 2 | F41: 1 | G41: 8 | H41: Championnat 3ème Division | I41: Défaite | K41: 20/05/2007 au 07/11/2007
A42: 13 | B42: 1 | C42: 2008 | D42: Montdidier JS | E42: Cerisy B | F42: 1 | G42: 3 | H42: Challenge Jouglet | I42: Victoire
A43: 27 | B43: 1 | C43: 2008 | D43: Cerisy B | E43: Caix | F43: 2 | G43: 1 | H43: Challenge Jouglet | I43: Victoire | K43: Matches Consécutifs sans Victoire
A44: 10 | B44: 2 | C44: 2008 | D44: Cerisy B | E44: Ham 2 | F44: 2 | G44: 3 | H44: Championnat 3ème Division | I44: Défaite | K44: 9
A45: 17 | B45: 2 | C45: 2008 | D45: Allaines | E45: Cerisy B | F45: 6 | G45: 1 | H45: Championnat 3ème Division | I45: Défaite | K45: Période
A46: 24 | B46: 2 | C46: 2008 | D46: Cerisy B | E46: Montdidier 3 | F46: 3 | G46: 0 | H46: Championnat 3ème Division | I46: Victoire | K46: 06/04/2008 au 08/06/2008
A47: 2 | B47: 3 | C47: 2008 | D47: Sainte Emilie 2 | E47: Cerisy B | F47: 0 | G47: 3 | H47: Championnat 3ème Division | I47: Victoire
A48: 9 | B48: 3 | C48: 2008 | D48: Dompierre | E48: Cerisy B | F48: 2 | G48: 2 | H48: Challenge Jouglet | I48: Victoire | K48: Matches Consécutifs sans Nul
A49: 6 | B49: 4 | C49: 2008 | D49: Moreuil 2 | E49: Cerisy B | F49: 2 | G49: 0 | H49: Championnat 3ème Division | I49: Défaite | K49: 39
A50: 13 | B50: 4 | C50: 2008 | D50: Licourt | E50: Cerisy B | F50: 2 | G50: 0 | H50: Championnat 3ème Division | I50: Défaite | K50: Période
A51: 20 | B51: 4 | C51: 2008 | D51: Cerisy B | E51: Equancourt | F51: 0 | G51: 5 | H51: Championnat 3ème Division | I51: Défaite | K51: 19/10/2008 au 21/02/2010
A52: 27 | B52: 4 | C52: 2008 | D52: Englebelmer 2 | E52: Cerisy B | F52: 1 | G52: 0 | H52: Championnat 3ème Division | I52: Défaite
A53: 1 | B53: 5 | C53: 2008 | D53: Cerisy B | E53: Sailly Saillisel 2 | F53: 2 | G53: 2 | H53: Championnat 3ème Division | I53: nul | K53: Matches Consécutifs sans Victoire en Champ.
A54: 4 | B54: 5 | C54: 2008 | D54: Cerisy B | E54: Sainte Emilie 2 | F54: 1 | G54: 6 | H54: Championnat 3ème Division | I54: Défaite | K54: 8
A55: 18 | B55: 5 | C55: 2008 | D55: Cerisy B | E55: Monchy | F55: 1 | G55: 5 | H55: Championnat 3ème Division | I55: Défaite | K55: Période
A56: 25 | B56: 5 | C56: 2008 | D56: Albert Sport 3 | E56: Cerisy B | F56: 3 | G56: 3 | H56: Championnat 3ème Division | I56: nul | K56: 14/01/07 au 15/04/07 et 06/04/08 au 25/5/08
A57: 8 | B57: 6 | C57: 2008 | D57: Ham 2 | E57: Cerisy B | F57: 0 | G57: 0 | H57: Challenge Jouglet | I57: Défaite
A58: 7 | B58: 9 | C58: 2008 | D58: Cerisy B | E58: Ribemont 2 | F58: 4 | G58: 0 | H58: Championnat 4ème Division | I58: Victoire | K58: Matches Consécutifs sans Nul en Champ.
A59: 14 | B59: 9 | C59: 2008 | D59: Hargicourt | E59: Cerisy B | F59: 3 | G59: 3 | H59: Championnat 4ème Division | I59: nul | K59: 28
A60: 28 | B60: 9 | C60: 2008 | D60: Cerisy B | E60: Méaulte 2 | F60: 6 | G60: 1 | H60: Championnat 4ème Division | I60: Victoire | K60: Période
A61: 5 | B61: 10 | C61: 2008 | D61: Harbonnières | E61: Cerisy B | F61: 1 | G61: 0 | H61: Championnat 4ème Division | I61: Défaite | K61: 26/10/2008 au 21/02/2010
A62: 12 | B62: 10 | C62: 2008 | D62: Cardonnette | E62: Cerisy B | F62: 1 | G62: 1 | H62: Championnat 4ème Division | I62: nul
A63: 19 | B63: 10 | C63: 2008 | D63: Cerisy B | E63: Caix | F63: 10 | G63: 0 | H63: Challenge Fromentin | I63: Victoire | K63: Matches Consécutifs sans Défaite en Champ.
A64: 26 | B64: 10 | C64: 2008 | D64: Cerisy B | E64: Hangest en Santerre | F64: 1 | G64: 0 | H64: Championnat 4ème Division | I64: Victoire | K64: 8
A65: 2 | B65: 11 | C65: 2008 | D65: Cartigny | E65: Cerisy B | F65: 0 | G65: 5 | H65: Challenge Fromentin | I65: Victoire | K65: Période
A66: 9 | B66: 11 | C66: 2008 | D66: Ailly sur Noye 2 | E66: Cerisy B | F66: 0 | G66: 3 | H66: Championnat 4ème Division | I66: Victoire | K66: 20/05/2007 au 07/11/2007
A67: 16 | B67: 11 | C67: 2008 | D67: Cerisy B | E67: Allonville 2 | F67: 0 | G67: 3 | H67: Championnat 4ème Division | I67: Défaite
A68: 30 | B68: 11 | C68: 2008 | D68: Plessiers 2 | E68: Cerisy B | F68: 0 | G68: 11 | H68: Championnat 4ème Division | I68: Victoire
A69: 21 | B69: 12 | C69: 2008 | D69: Cerisy B | E69: Allaines | F69: 2 | G69: 2 | H69: Challenge Fromentin | I69: Défaite
A70: 1 | B70: 2 | C70: 2009 | D70: Domart sur la Luce | E70: Cerisy B | F70: 0 | G70: 0 | H70: Challenge Jouglet | I70: Défaite
A71: 15 | B71: 2 | C71: 2009 | D71: Cerisy B | E71: Querrieu 2 | F71: 0 | G71: 1 | H71: Championnat 4ème Division | I71: Défaite
A72: 22 | B72: 2 | C72: 2009 | D72: Ribemont 2 | E72: Cerisy B | F72: 3 | G72: 0 | H72: Championnat 4ème Division | I72: Défaite
A73: 1 | B73: 3 | C73: 2009 | D73: Cerisy B | E73: Englebelmer 3 | F73: 5 | G73: 3 | H73: Championnat 4ème Division | I73: Victoire
A74: 8 | B74: 3 | C74: 2009 | D74: Cerisy B | E74: Hargicourt | F74: 3 | G74: 0 | H74: Championnat 4ème Division | I74: Victoire
A75: 15 | B75: 3 | C75: 2009 | D75: Méaulte 2 | E75: Cerisy B | F75: 2 | G75: 5 | H75: Championnat 4ème Division | I75: Victoire
A76: 22 | B76: 3 | C76: 2009 | D76: Cerisy B | E76: Cardonnette | F76: 0 | G76: 3 | H76: Championnat 4ème Division | I76: Défaite
A77: 5 | B77: 4 | C77: 2009 | D77: Hangest en Santerre | E77: Cerisy B | F77: 1 | G77: 2 | H77: Championnat 4ème Division | I77: Victoire
A78: 19 | B78: 4 | C78: 2009 | D78: Cerisy B | E78: Ailly sur Noye 2 | F78: 2 | G78: 3 | H78: Championnat 4ème Division | I78: Défaite
A79: 26 | B79: 4 | C79: 2009 | D79: Allonville 2 | E79: Cerisy B | F79: 0 | G79: 4 | H79: Championnat 4ème Division | I79: Victoire
A80: 8 | B80: 5 | C80: 2009 | D80: Cerisy B | E80: Péronne 3 | F80: 4 | G80: 3 | H80: Challenge Guéant | I80: Victoire
A81: 10 | B81: 5 | C81: 2009 | D81: Equancourt | E81: Cerisy B | F81: 0 | G81: 2 | H81: Challenge Jouglet | I81: Victoire
A82: 10 | B82: 5 | C82: 2009 | D82: Querrieu 2 | E82: Cerisy B | F82: 0 | G82: 4 | H82: Championnat 4ème Division | I82: Victoire
A83: 17 | B83: 5 | C83: 2009 | D83: Cerisy B | E83: Harbonnières | F83: 1 | G83: 2 | H83: Championnat 4ème Division | I83: Défaite
A84: 21 | B84: 5 | C84: 2009 | D84: Montdidier JS | E84: Cerisy B | F84: 0 | G84: 4 | H84: Challenge Guéant | I84: Victoire
A85: 31 | B85: 5 | C85: 2009 | D85: Sourdon | E85: Cerisy B | F85: 1 | G85: 2 | H85: Challenge Guéant | I85: Victoire
A86: 7 | B86: 6 | C86: 2009 | D86: Englebelmer 3 | E86: Cerisy B | F86: 2 | G86: 0 | H86: Championnat 4ème Division | I86: Défaite
A87: 6 | B87: 9 | C87: 2009 | D87: Cerisy B | E87: Ribemont 2 | F87: 3 | G87: 0 | H87: Championnat 4ème Division | I87: Victoire
A88: 13 | B88: 9 | C88: 2009 | D88: Cardonnette | E88: Cerisy B | F88: 2 | G88: 0 | H88: Championnat 4ème Division | I88: Défaite
A89: 27 | B89: 9 | C89: 2009 | D89: Cerisy B | E89: Grouches Luchuel | F89: 5 | G89: 1 | H89: Championnat 4ème Division | I89: Victoire
A90: 4 | B90: 10 | C90: 2009 | D90: Cerisy B | E90: USO Albert 2 | F90: 5 | G90: 1 | H90: Challenge Fromentin | I90: Victoire
A91: 11 | B91: 10 | C91: 2009 | D91: Méaulte 2 | E91: Cerisy B | F91: 1 | G91: 3 | H91: Championnat 4ème Division | I91: Victoire
A92: 18 | B92: 10 | C92: 2009 | D92: Cerisy B | E92: Englebelmer 3 | F92: 1 | G92: 2 | H92: Championnat 4ème Division | I92: Défaite
A93: 25 | B93: 10 | C93: 2009 | D93: Cerisy B | E93: Arvillers | F93: 7 | G93: 0 | H93: Championnat 4ème Division | I93: Victoire
A94: 1 | B94: 11 | C94: 2009 | D94: Sainte Emilie 2 | E94: Cerisy B | F94: 2 | G94: 2 | H94: Challenge Fromentin | I94: Victoire
A95: 15 | B95: 11 | C95: 2009 | D95: Cerisy B | E95: Rivery | F95: 4 | G95: 2 | H95: Championnat 4ème Division | I95: Victoire
A96: 22 | B96: 11 | C96: 2009 | D96: Cerisy B | E96: Rethonvillers | F96: 1 | G96: 1 | H96: Challenge Fromentin | I96: Victoire
A97: 21 | B97: 2 | C97: 2010 | D97: Amiens RIF 2 | E97: Cerisy B | F97: 4 | G97: 1 | H97: Championnat 4ème Division | I97: Défaite
A98: 7 | B98: 3 | C98: 2010 | D98: USO Albert | E98: Cerisy B | F98: 0 | G98: 5 | H98: Championnat 4ème Division | I98: Victoire
A99: 14 | B99: 3 | C99: 2010 | D99: Cerisy B | E99: Etinehem | F99: 0 | G99: 3 | H99: Championnat 4ème Division | I99: Défaite
A100: 21 | B100: 3 | C100: 2010 | D100: Ribemont 2 | E100: Cerisy B | F100: 2 | G100: 5 | H100: Championnat 4ème Division | I100: Victoire
A101: 28 | B101: 3 | C101: 2010 | D101: Cerisy B | E101: Cardonnette | F101: 2 | G101: 0 | H101: Championnat 4ème Division | I101: Victoire
A102: 4 | B102: 4 | C102: 2010 | D102: Querrieu 2 | E102: Cerisy B | F102: 1 | G102: 1 | H102: Championnat 4ème Division | I102: nul
A103: 11 | B103: 4 | C103: 2010 | D103: Grouches Luchuel | E103: Cerisy B | F103: 1 | G103: 0 | H103: Championnat 4ème Division | I103: Défaite
A104: 18 | B104: 4 | C104: 2010 | D104: Cerisy B | E104: Méaulte 2 | F104: 3 | G104: 1 | H104: Championnat 4ème Division | I104: Victoire
A105: 25 | B105: 4 | C105: 2010 | D105: Arvillers | E105: Cerisy B | F105: 0 | G105: 2 | H105: Championnat 4ème Division | I105: Victoire
A106: 2 | B106: 5 | C106: 2010 | D106: Cerisy B | E106: Querrieu 2 | F106: 2 | G106: 2 | H106: Championnat 4ème Division | I106: nul
A107: 5 | B107: 5 | C107: 2010 | D107: Chaulnes 2 | E107: Cerisy B | F107: 0 | G107: 0 | H107: Challenge Fromentin | I107: nul | J107: (vainqueur aux tirs au but 3-2)
A108: 9 | B108: 5 | C108: 2010 | D108: Rivery | E108: Cerisy B | F108: 3 | G108: 4 | H108: Championnat 4ème Division | I108: Victoire
A109: 13 | B109: 5 | C109: 2010 | D109: Etinehem | E109: Cerisy B | F109: 2 | G109: 1 | H109: Championnat 4ème Division | I109: Défaite
A110: 16 | B110: 5 | C110: 2010 | D110: Cerisy B | E110: Amiens RIF 2 | F110: 3 | G110: 4 | H110: Championnat 4ème Division | I110: Défaite
A111: 24 | B111: 5 | C111: 2010 | D111: Albert Sport 3 | E111: Cerisy B | F111: 4 | G111: 1 | H111: Challenge Fromentin | I111: Défaite
A112: 6 | B112: 6 | C112: 2010 | D112: Englebelmer 3 | E112: Cerisy B | F112: 1 | G112: 4 | H112: Championnat 4ème Division | I112: Victoire
A113: 13 | B113: 6 | C113: 2010 | D113: Cerisy B | E113: USO Albert | F113: 3 | G113: 0 | H113: Championnat 4ème Division | I113: Victoire
A114: 5 | B114: 9 | C114: 2010 | D114: Cerisy B | E114: Marcelcave | F114: 3 | G114: 1 | H114: Championnat 4ème Division | I114: Victoire
A115: 12 | B115: 9 | C115: 2010 | D115: Sourdon | E115: Cerisy B | F115: 2 | G115: 4 | H115: Championnat 4ème Division | I115: Victoire
A116: 27 | B116: 9 | C116: 2010 | D116: Cerisy B | E116: Montdidier 3 | F116: 5 | G116: 0 | H116: Championnat 4ème Division | I116: Victoire
A117: 10 | B117: 10 | C117: 2010 | D117: Ailly sur Noye 2 | E117: Cerisy B | F117: 0 | G117: 4 | H117: Championnat 4ème Division | I117: Victoire
A118: 17 | B118: 10 | C118: 2010 | D118: Dompierre | E118: Cerisy B | F118: 2 | G118: 2 | H118: Challenge Fromentin | I118: nul | J118: (perdu aux tirs au but)
A119: 31 | B119: 10 | C119: 2010 | D119: Hargicourt | E119: Cerisy B | F119: 0 | G119: 4 | H119: Championnat 4ème Division | I119: Victoire
A120: 7 | B120: 11 | C120: 2010 | D120: Caix | E120: Cerisy B | F120: 0 | G120: 4 | H120: Championnat 4ème Division | I120: Victoire
A121: 11 | B121: 11 | C121: 2010 | D121: Cerisy B | E121: Querrieu 2 | F121: 1 | G121: 2 | H121: Championnat 4ème Division | I121: Défaite
A122: 28 | B122: 11 | C122: 2010 | D122: Montdidier JS | E122: Cerisy B | F122: 1 | G122: 5 | H122: Championnat 4ème Division | I122: Victoire
A123: 30 | B123: 1 | C123: 2011 | D123: Cerisy B | E123: Rivery | F123: 7 | G123: 1 | H123: Championnat 4ème Division | I123: Victoire
A124: 6 | B124: 2 | C124: 2011 | D124: Cerisy B | E124: Sains saint Fuscien | F124: 3 | G124: 0 | H124: Championnat 4ème Division | I124: Victoire
A125: 13 | B125: 2 | C125: 2011 | D125: Marcelcave | E125: Cerisy B | F125: 1 | G125: 3 | H125: Championnat 4ème Division | I125: Victoire
A126: 20 | B126: 2 | C126: 2011 | D126: Cerisy B | E126: Ribemont 2 | F126: 2 | G126: 1 | H126: Championnat 4ème Division | I126: Victoire
A127: 27 | B127: 2 | C127: 2011 | D127: Cerisy B | E127: Sourdon | F127: 0 | G127: 0 | H127: Championnat 4ème Division | I127: nul
A128: 6 | B128: 3 | C128: 2011 | D128: Montdidier 3 | E128: Cerisy B | F128: 0 | G128: 1 | H128: Championnat 4ème Division | I128: Victoire
A129: 20 | B129: 3 | C129: 2011 | D129: Cerisy B | E129: Ailly sur Noye 2 | F129: 2 | G129: 0 | H129: Championnat 4ème Division | I129: Victoire
A130: 27 | B130: 3 | C130: 2011 | D130: Querrieu 2 | E130: Cerisy B | F130: 2 | G130: 1 | H130: Championnat 4ème Division | I130: Défaite
A131: 10 | B131: 4 | C131: 2011 | D131: Cerisy B | E131: Caix | F131: 3 | G131: 3 | H131: Championnat 4ème Division | I131: nul
A132: 17 | B132: 4 | C132: 2011 | D132: Rivery | E132: Cerisy B | F132: 0 | G132: 0 | H132: Championnat 4ème Division | I132: nul
A133: 1 | B133: 5 | C133: 2011 | D133: Cerisy B | E133: Montdidier JS | F133: 2 | G133: 1 | H133: Championnat 4ème Division | I133: Victoire
A134: 8 | B134: 5 | C134: 2011 | D134: Sains saint Fuscien | E134: Cerisy B | F134: 0 | G134: 0 | H134: Championnat 4ème Division | I134: nul
A135: 15 | B135: 5 | C135: 2011 | D135: Ribemont 2 | E135: Cerisy B | F135: 0 | G135: 5 | H135: Championnat 4ème Division | I135: Victoire
A136: 28 | B136: 5 | C136: 2011 | D136: Cerisy B | E136: Hargicourt | F136: 6 | G136: 4 | H136: Championnat 4ème Division | I136: Victoire
A137: 4 | B137: 9 | C137: 2011 | D137: Licourt | E137: Cerisy B | F137: 0 | G137: 1 | H137: Championnat 3ème Division | I137: Victoire
A138: 11 | B138: 9 | C138: 2011 | D138: Cerisy B | E138: Englebelmer B | F138: 8 | G138: 0 | H138: Championnat 3ème Division | I138: Victoire
A139: 18 | B139: 9 | C139: 2011 | D139: Sainte Emilie 2 | E139: Cerisy B | F139: 0 | G139: 0 | H139: Championnat 3ème Division | I139: nul
A140: 9 | B140: 10 | C140: 2011 | D140: Cerisy B | E140: Hangest en Santerre | F140: 1 | G140: 2 | H140: Championnat 3ème Division | I140: Défaite
A141: 16 | B141: 10 | C141: 2011 | D141: Marchelepot 2 | E141: Cerisy B | F141: 0 | G141: 16 | H141: Challenge Fromentin | I141: Victoire
A142: 23 | B142: 10 | C142: 2011 | D142: Equancourt | E142: Cerisy B | F142: 1 | G142: 1 | H142: Championnat 3ème Division | I142: nul
A143: 30 | B143: 10 | C143: 2011 | D143: Cerisy B | E143: Roisel 2 | F143: 4 | G143: 1 | H143: Championnat 3ème Division | I143: Victoire
A144: 6 | B144: 11 | C144: 2011 | D144: Domart sur la Luce | E144: Cerisy B | F144: 0 | G144: 2 | H144: Championnat 3ème Division | I144: Victoire
A145: 13 | B145: 11 | C145: 2011 | D145: Cerisy B | E145: Méaulte 2 | F145: 3 | G145: 2 | H145: Championnat 3ème Division | I145: Victoire
A146: 20 | B146: 11 | C146: 2011 | D146: Cerisy B | E146: Bray sur Somme 2 | F146: 4 | G146: 2 | H146: Challenge Fromentin | I146: Victoire
A147: 27 | B147: 11 | C147: 2011 | D147: Chaulnes 2 | E147: Cerisy B | F147: 3 | G147: 3 | H147: Championnat 3ème Division | I147: nul
A148: 4 | B148: 12 | C148: 2011 | D148: Cerisy B | E148: Estrées Mons | F148: 0 | G148: 3 | H148: Championnat 3ème Division | I148: Défaite

Sheet N°2 - TRP%(fiab) (hidden)
A1: DIVISION VEHICULES INDUSTRIELS
A2: DEPLOIEMENT DE POLITIQUE - PAQ 2010
A3: SUIVI DE LA CONTRIBUTION DE FONCTION N° 2
C5: 5 AXES | I5: TOP 10 N + 1
C6: IP | D6: SPV | E6: IF | F6: IC | G6: QT | I6: 1 | J6: 2 | K6: 3 | L6: 4 | M6: 5 | N6: 6 | O6: 7 | P6: 8 | Q6: 9 | R6: 10
D7: x | J7: x
A10: Objectif: | C10: Améliorer l’utilisation des moyens de production
A12: Indicateur: | C12: TRP% | L12: OBJ. : | N12: 0.6
A14: Budget: | X14: Obj. | Y14: TRP% | AA14: Ligne
W15: 2010-01-31 | X15: =#REF! ->  | Y15: =#REF! -> 
W16: 2010-02-01 | X16: =#REF! ->  | Y16: =#REF! -> 
W17: 2010-03-01 | X17: =#REF! ->  | Y17: =#REF! -> 
W18: 2010-04-01 | X18: =#REF! ->  | Y18: =#REF! -> 
W19: 2010-05-01 | X19: =#REF! ->  | Y19: =#REF! -> 
W20: 2010-06-01 | X20: =#REF! ->  | Y20: =#REF! -> 
W21: 2010-07-01 | X21: =#REF! ->  | Y21: =#REF! -> 
W22: 2010-08-01 | X22: =#REF! ->  | Y22: =#REF! -> 
W23: 2010-09-01 | X23: =#REF! ->  | Y23: =#REF! -> 
W24: 2010-10-01 | X24: =#REF! ->  | Y24: =#REF! -> 
W25: 2010-11-01 | X25: =#REF! ->  | Y25: =#REF! -> 
W26: dec-10 | X26: =#REF! ->  | Y26: =#REF! -> 
A35: Actions de progrès | I35: Gain | K35: Responsable | N35: Délai | Q35: PDCA
A38: * | B38: Actions de fiabilisation + risques industriels
A39: * | B39: Améliration de l'aspiration du laser Balliu GD2 | I39: FIAB | K39: F Giai-Pron | N39: 2010-06-01 | Q39: EC
A40: * | B40: Rétrofit mécanique/cartérisation sertisseuse GD2 | I40: FIAB | K40: F Giai-Pron | N40: 2010-07-01 | Q40: x | R40: x | S40: x | T40: x
A41: * | B41: Evolution soft Twinpro W2K => WXP | I41: RISK | K41: F Giai-Pron | N41: 2010-09-01 | Q41: x | R41: x | S41: x | T41: x
A42: * | B42: Rétrofit 1 HF GD (générateur + Camera + Axes/CN) | I42: RISK | K42: F Giai-Pron | N42: ?
A43: *
A44: *
A45: *
A46: *
C64: Origine: | F64: Creé | K64: PILOTE: | P64: Date creation
F65: COURTEHOUX | K65: COURTEHOUX | P65: 2010-04-01
C67: Destinataires: | K67: n° Fiche | M67: Avancement % | P67: Data mise a jour:
D68: PAQ 10 | P68: 2010-06-04
